Service Delivery Area(T),Service Delivery Team(T),CostC,ExpenditureGroup(T),Account(T),Supplier Name(T),Trans Date,Amount
Adult Social Services,Access & Enablement,HCAJ,Supplies & Services,Other Grants (Expenses),PARKWOOD HEALTHCARE LTD,24/07/2015,"-25,000.00"
Adult Social Services,Access & Enablement,HCAJ,Supplies & Services,Other Grants (Expenses),PARKWOOD HEALTHCARE LTD,24/07/2015,"40,162.50"
Adult Social Services,Access & Enablement,HCAJ,Supplies & Services,Other Grants (Expenses),PARKWOOD HEALTHCARE LTD,24/07/2015,"40,162.50"
Adult Social Services,Access & Enablement,HHAG,Supplies & Services,Consultants Fees,Andrew Mason Consultancy Ltd,20/07/2015,"1,126.60"
Adult Social Services,Access & Enablement,HMAA,Supplies & Services,Service Contracts,SRCL LTD,07/07/2015,750.57
Adult Social Services,Access & Enablement,HMAA,Supplies & Services,Service Contracts,SRCL LTD,29/07/2015,760.57
Adult Social Services,Access & Enablement,HMAX,Supplies & Services,Other Grants (Expenses),CAIS Ltd,07/07/2015,"1,295.00"
Adult Social Services,Access & Enablement,HMAX,Supplies & Services,Other Grants (Expenses),CAIS Ltd,07/07/2015,"1,610.00"
Adult Social Services,Access & Enablement,HMAX,Supplies & Services,Other Grants (Expenses),CAIS Ltd,29/07/2015,"1,295.00"
Adult Social Services,Access & Enablement,HMAX,Supplies & Services,Other Grants (Expenses),CAIS Ltd,29/07/2015,"1,150.00"
Adult Social Services,Access & Enablement,HMBB,Premises-Related Expenditure,Electricity,NPOWER,07/07/2015,462.90
Adult Social Services,Access & Enablement,HMBB,Premises-Related Expenditure,Electricity,NPOWER (97104000) ELECTRICITY,07/07/2015,"1,422.26"
Adult Social Services,Access & Enablement,HMBJ,Third Party Payments,Residential Expenditure,Firs Riverside B & B,29/07/2015,"1,470.00"
Adult Social Services,Access & Enablement,HMBK,Third Party Payments,Homecare Expenditure,CARRADICE CARE LTD,07/07/2015,853.18
Adult Social Services,Access & Enablement,HMBK,Third Party Payments,Homecare Expenditure,CARRADICE CARE LTD,07/07/2015,167.76
Adult Social Services,Access & Enablement,HMBK,Third Party Payments,Homecare Expenditure,CARRADICE CARE LTD,07/07/2015,167.76
Adult Social Services,Access & Enablement,HMBK,Third Party Payments,Homecare Expenditure,CLEANIT CLEANING SERVICES,29/07/2015,270.00
Adult Social Services,Access & Enablement,HOAP,Supplies & Services,Aids & Appliances,AA Moving Solutions Ltd,16/07/2015,280.00
Adult Social Services,Access & Enablement,HOAP,Supplies & Services,Aids & Appliances,AA Moving Solutions Ltd,22/07/2015,"1,154.40"
Adult Social Services,Access & Enablement,HOAP,Supplies & Services,Aids & Appliances,Alert-it Care Alarms,21/07/2015,"1,240.00"
Adult Social Services,Access & Enablement,HOAP,Supplies & Services,Aids & Appliances,Alert-it Care Alarms,21/07/2015,142.00
Adult Social Services,Access & Enablement,HOAP,Supplies & Services,Aids & Appliances,Alert-it Care Alarms,21/07/2015,825.00
Adult Social Services,Access & Enablement,HOAP,Supplies & Services,Aids & Appliances,Alert-it Care Alarms,21/07/2015,260.00
Adult Social Services,Access & Enablement,HOAP,Supplies & Services,Aids & Appliances,Alert-it Care Alarms,21/07/2015,220.00
Adult Social Services,Access & Enablement,HOAP,Supplies & Services,Aids & Appliances,ARJOHUNTLEIGH UK,03/07/2015,"4,612.50"
Adult Social Services,Access & Enablement,HOAP,Supplies & Services,Aids & Appliances,COBOLT SYSTEMS LTD,21/07/2015,325.00
Adult Social Services,Access & Enablement,HOAP,Supplies & Services,Aids & Appliances,Easylink,16/07/2015,"1,310.00"
Adult Social Services,Access & Enablement,HOAP,Supplies & Services,Aids & Appliances,Easylink,01/07/2015,109.24
Adult Social Services,Access & Enablement,HOAP,Supplies & Services,Aids & Appliances,Easylink,30/07/2015,122.00
Adult Social Services,Access & Enablement,HOAP,Supplies & Services,Aids & Appliances,HILL-ROM LTD,02/07/2015,403.76
Adult Social Services,Access & Enablement,HOAP,Supplies & Services,Aids & Appliances,HILL-ROM LTD,02/07/2015,212.99
Adult Social Services,Access & Enablement,HOAP,Supplies & Services,Aids & Appliances,M A Smith Associates,07/07/2015,270.00
Adult Social Services,Access & Enablement,HOAP,Supplies & Services,Aids & Appliances,M A Smith Associates,07/07/2015,340.00
Adult Social Services,Access & Enablement,HOAP,Supplies & Services,Aids & Appliances,M A Smith Associates,21/07/2015,340.00
Adult Social Services,Access & Enablement,HOAP,Supplies & Services,Aids & Appliances,M A Smith Associates,07/07/2015,340.00
Adult Social Services,Access & Enablement,HOAP,Supplies & Services,Aids & Appliances,M A Smith Associates,31/07/2015,375.00
Adult Social Services,Access & Enablement,HOAP,Supplies & Services,Aids & Appliances,NRS Healthcare T/A Nottingham Rehab Ltd,01/07/2015,303.60
Adult Social Services,Access & Enablement,HOAP,Supplies & Services,Aids & Appliances,OSPREY HEALTHCARE LTD,16/07/2015,"3,145.00"
Adult Social Services,Access & Enablement,HOAP,Supplies & Services,Aids & Appliances,POWERGUARDS INC RAMPING SYSTEMS,02/07/2015,592.80
Adult Social Services,Access & Enablement,HOAP,Supplies & Services,Aids & Appliances,POWERGUARDS INC RAMPING SYSTEMS,02/07/2015,360.00
Adult Social Services,Access & Enablement,HOAP,Supplies & Services,Aids & Appliances,POWERGUARDS INC RAMPING SYSTEMS,02/07/2015,"1,050.00"
Adult Social Services,Access & Enablement,HOAP,Supplies & Services,Aids & Appliances,SW RETAIL LTD T/A IC,16/07/2015,110.00
Adult Social Services,Access & Enablement,HOAP,Supplies & Services,Aids & Appliances,THE WREKIN HOUSING TRUST (INVOICES ONLY),14/07/2015,125.00
Adult Social Services,Access & Enablement,HOAP,Supplies & Services,Aids & Appliances,THE WREKIN HOUSING TRUST (INVOICES ONLY),14/07/2015,125.00
Adult Social Services,Access & Enablement,HOAP,Supplies & Services,Aids & Appliances,THE WREKIN HOUSING TRUST (INVOICES ONLY),14/07/2015,125.00
Adult Social Services,Access & Enablement,HOAP,Supplies & Services,Aids & Appliances,THE WREKIN HOUSING TRUST (INVOICES ONLY),14/07/2015,125.00
Adult Social Services,Access & Enablement,HOAP,Supplies & Services,Aids & Appliances,THE WREKIN HOUSING TRUST (INVOICES ONLY),14/07/2015,567.12
Adult Social Services,Access & Enablement,HOAP,Supplies & Services,Aids & Appliances,THE WREKIN HOUSING TRUST (INVOICES ONLY),31/07/2015,125.00
Adult Social Services,Access & Enablement,HOAP,Supplies & Services,Adaptations,TRAVIS PERKINS TRADING CO LIMITED,14/07/2015,369.31
Adult Social Services,Access & Enablement,HOAP,Supplies & Services,Adaptations,TRAVIS PERKINS TRADING CO LIMITED,28/07/2015,135.94
Adult Social Services,Access & Enablement,HOAP,Supplies & Services,Adaptations,TRAVIS PERKINS TRADING CO LIMITED,27/07/2015,116.12
Adult Social Services,Access & Enablement,HOAP,Supplies & Services,Adaptations,TRAVIS PERKINS TRADING CO LIMITED,31/07/2015,"1,073.50"
Adult Social Services,Access & Enablement,HOAP,Supplies & Services,Aids & Appliances,Welland Medical,02/07/2015,540.00
Adult Social Services,Access & Enablement,HOAP,Premises-Related Expenditure,Service Contracts,WESSEX LIFT CO. LTD,24/07/2015,"4,766.50"
Adult Social Services,Access & Enablement,HOAP,Premises-Related Expenditure,Service Contracts,WESSEX LIFT CO. LTD,24/07/2015,"4,766.50"
Adult Social Services,Access & Enablement,HOBK,Third Party Payments,Nursing Expenditure,COVERAGE CARE SERVICES LTD (SY3),24/07/2015,"1,785.16"
Adult Social Services,Access & Enablement,HOBK,Third Party Payments,Nursing Expenditure,COVERAGE CARE SERVICES LTD (SY3),24/07/2015,"5,240.30"
Adult Social Services,Access & Enablement,HOBK,Supplies & Services,Respite Care,COVERAGE CARE SERVICES LTD (SY3),24/07/2015,254.54
Adult Social Services,Access & Enablement,HOBK,Supplies & Services,Respite Care,COVERAGE CARE SERVICES LTD (SY3),24/07/2015,"4,333.71"
Adult Social Services,Access & Enablement,HOBK,Third Party Payments,Nursing Expenditure,COVERAGE CARE SERVICES LTD (SY3),24/07/2015,416.00
Adult Social Services,Access & Enablement,HOBK,Third Party Payments,Nursing Expenditure,COVERAGE CARE SERVICES LTD (SY3),24/07/2015,"89,230.40"
Adult Social Services,Access & Enablement,HOBL,Third Party Payments,Residential Expenditure,COVERAGE CARE SERVICES LTD (SY3),21/07/2015,"8,746.43"
Adult Social Services,Access & Enablement,HOBL,Third Party Payments,Residential Expenditure,COVERAGE CARE SERVICES LTD (SY3),24/07/2015,"58,900.00"
Adult Social Services,Access & Enablement,HOBL,Third Party Payments,Daycare Expenditure,Interserve Healthcare Group - Trading as Advantage Healthcare,08/07/2015,"10,000.00"
Adult Social Services,Access & Enablement,HOBP,Third Party Payments,Daycare Expenditure,COVERAGE CARE SERVICES LTD (SY3),24/07/2015,"5,973.70"
Adult Social Services,Access & Enablement,HOBR,Third Party Payments,Homecare Expenditure,COVERAGE CARE SERVICES LTD (SY3),03/07/2015,"50,507.94"
Adult Social Services,Access & Enablement,HOBR,Third Party Payments,Homecare Expenditure,COVERAGE CARE SERVICES LTD (SY3),24/07/2015,"52,818.88"
Adult Social Services,Access & Enablement,HOBR,Third Party Payments,Homecare Expenditure,SUPREME HOME CARE,24/07/2015,"7,159.04"
Adult Social Services,Access & Enablement,HOBS,Supplies & Services,Aids & Appliances,SHROPSHIRE COMMUNITY HEALTH NHS TRUST,17/07/2015,"6,301.66"
Adult Social Services,Access & Enablement,HOBZ,Premises-Related Expenditure,General Rents,BOURNVILLE VILLAGE TRUST,08/07/2015,"12,146.94"
Adult Social Services,Access & Enablement,HOBZ,Premises-Related Expenditure,General Rents,BOURNVILLE VILLAGE TRUST,08/07/2015,"11,981.85"
Adult Social Services,Access & Enablement,HOBZ,Third Party Payments,Residential Expenditure,DIMENSIONS (UK) LTD,31/07/2015,"37,173.00"
Adult Social Services,Adult Safeguarding,JJAC,Employees,Course Fees,UNIVERSITY OF WOLVERHAMPTON (80970905),31/07/2015,850.50
Adult Social Services,Assessment & Case Management,HLAB,Premises-Related Expenditure,General Rents,BOURNVILLE VILLAGE TRUST,08/07/2015,"1,650.00"
Adult Social Services,Assessment & Case Management,HLAB,Premises-Related Expenditure,General Rents,BOURNVILLE VILLAGE TRUST,08/07/2015,"2,850.00"
Adult Social Services,Assessment & Case Management,HLAB,Premises-Related Expenditure,General Rents,WREKIN HOUSING TRUST (CARE SUPPORT PYMTS ONLY),15/07/2015,"1,197.82"
Adult Social Services,Assessment & Case Management,HLAF,Supplies & Services,Other Grants (Expenses),CREATIVE SUPPORT LTD,17/07/2015,449.56
Adult Social Services,Assessment & Case Management,HLAF,Supplies & Services,Other Grants (Expenses),CREATIVE SUPPORT LTD,17/07/2015,449.56
Adult Social Services,Assessment & Case Management,HLAF,Supplies & Services,Other Grants (Expenses),CREATIVE SUPPORT LTD,17/07/2015,449.56
Adult Social Services,Assessment & Case Management,HLAH,Transfer Payments,ILF Direct Payments,Redacted Personal Information,16/07/2015,"1,046.40"
Adult Social Services,Assessment & Case Management,HLAH,Transfer Payments,ILF Direct Payments,Redacted Personal Information,16/07/2015,"1,190.40"
Adult Social Services,Assessment & Case Management,HLAH,Transfer Payments,ILF Direct Payments,Redacted Personal Information,16/07/2015,"2,665.78"
Adult Social Services,Assessment & Case Management,HLAH,Transfer Payments,ILF Direct Payments,Redacted Personal Information,16/07/2015,"3,788.23"
Adult Social Services,Assessment & Case Management,HLCK,Third Party Payments,Residential Expenditure,CHOICES HOUSING ASSOCIATION LTD,17/07/2015,"34,163.61"
Adult Social Services,Assessment & Case Management,HLCL,Premises-Related Expenditure,General Rents,BOURNVILLE VILLAGE TRUST,27/07/2015,"-181,886.09"
Adult Social Services,Assessment & Case Management,HLCL,Premises-Related Expenditure,General Rents,BOURNVILLE VILLAGE TRUST,27/07/2015,"181,886.09"
Adult Social Services,Assessment & Case Management,HLCL,Premises-Related Expenditure,General Rents,BOURNVILLE VILLAGE TRUST,27/07/2015,"181,870.97"
Adult Social Services,Assessment & Case Management,HOAC,Supplies & Services,Purchased Meals,ICare (GB) Limited,02/07/2015,"2,321.40"
Adult Social Services,Assessment & Case Management,HOAC,Supplies & Services,Purchased Meals,ICare (GB) Limited,31/07/2015,"2,342.60"
Adult Social Services,Assessment & Case Management,HOAK,Transfer Payments,ILF Direct Payments,Redacted Personal Information,16/07/2015,"1,824.82"
Adult Social Services,Assessment & Case Management,HOAW,Supplies & Services,Equipment - Purchase,Aqueduct Pharmacy,24/07/2015,120.00
Adult Social Services,Assessment & Case Management,HOAW,Employees,Employee Costs Recharged,SHROPSHIRE COMMUNITY HEALTH NHS TRUST,17/07/2015,"19,662.00"
Adult Social Services,Assessment & Case Management,HOCJ,Third Party Payments,Residential Expenditure,COVERAGE CARE SERVICES LTD (SY3),21/07/2015,"10,857.84"
Adult Social Services,Assessment & Case Management,HPAB,Supplies & Services,Telecomms,BT GLOBAL SERVICES (00637351),23/07/2015,369.82
Adult Social Services,Care & Support,HHAK,Employees,Course Fees,KEELE UNIVERSITY,03/07/2015,"3,600.00"
Adult Social Services,Personalisation Support & Service Provision,HOCP,Supplies & Services,Subscriptions,QUICKCALC LTD,17/07/2015,151.96
Children's Safeguarding & Specialist Services,Child Protection & Assessment,JHAB,Employees,Agency Supply Costs,Hamptons Resourcing,09/07/2015,"2,400.00"
Children's Safeguarding & Specialist Services,Child Protection & Assessment,JHAB,Employees,Training Expenses,MEETING POINT TRUST LTD,09/07/2015,322.00
Children's Safeguarding & Specialist Services,Child Protection & Assessment,JHAB,Employees,Training Expenses,MEETING POINT TRUST LTD,09/07/2015,278.60
Children's Safeguarding & Specialist Services,Child Protection & Assessment,JHAB,Employees,Training Expenses,MEETING POINT TRUST LTD,09/07/2015,160.30
Children's Safeguarding & Specialist Services,Child Protection & Assessment,JHAK,Supplies & Services,Other Services,Adoption Matters Northwest,09/07/2015,"3,913.33"
Children's Safeguarding & Specialist Services,Child Protection & Assessment,JHAK,Supplies & Services,Other Services,Neath Port Talbot,09/07/2015,"9,000.00"
Children's Safeguarding & Specialist Services,Child Protection & Assessment,JMAA,contribution to provision,Court Costs,HM Courts and Tribunal service,16/07/2015," 9,845.00 "
Children's Safeguarding & Specialist Services,Child Protection & Assessment,JMAD,Third Party Payments,Childminders,HAPPITOTS DAY NURSERIES LTD,30/07/2015,141.70
Children's Safeguarding & Specialist Services,Child Protection & Assessment,JMAD,Third Party Payments,Childminders,HAPPITOTS DAY NURSERIES LTD,30/07/2015,651.40
Children's Safeguarding & Specialist Services,Child Protection & Assessment,JMAD,Third Party Payments,Childminders,SMILEY FACES DAY NURSERIES LTD,30/07/2015,759.00
Children's Safeguarding & Specialist Services,Child Protection & Assessment,JMAE,Supplies & Services,Other Services,CORE ASSETS CHILDREN'S SERVICES LIMITED,31/07/2015,600.00
Children's Safeguarding & Specialist Services,Child Protection & Assessment,JMAE,Supplies & Services,Other Services,ELMHURST PSYCHOLOGY LTD,27/07/2015,751.17
Children's Safeguarding & Specialist Services,Child Protection & Assessment,JMAE,Supplies & Services,Other Services,LIVING SPRINGS FAMILY CENTRE,01/07/2015,"9,500.25"
Children's Safeguarding & Specialist Services,Child Protection & Assessment,JMAE,Supplies & Services,Other Services,NEWSTART NETWORKS CIC,01/07/2015,470.00
Children's Safeguarding & Specialist Services,Child Protection & Assessment,JMAE,Supplies & Services,Other Services,NEWSTART NETWORKS CIC,27/07/2015,"1,200.00"
Children's Safeguarding & Specialist Services,Child Protection & Assessment,JMAE,Supplies & Services,Other Services,Psyben Limited,01/07/2015,657.60
Children's Safeguarding & Specialist Services,Child Protection & Assessment,JMAE,Supplies & Services,Other Services,Redacted Personal Information,27/07/2015,"2,312.90"
Children's Safeguarding & Specialist Services,Child Protection & Assessment,JMAE,Supplies & Services,Other Services,SLA Jeffery Ltd,30/07/2015,567.00
Children's Safeguarding & Specialist Services,Child Protection & Assessment,JMAE,Supplies & Services,Other Services,Uni Hospital Southampton,30/07/2015,523.88
Children's Safeguarding & Specialist Services,Child Protection & Assessment,JMAE,Supplies & Services,Other Services,WILCOX PSYCHOLOGICAL ASSOCIATES LTD,27/07/2015,982.80
Children's Safeguarding & Specialist Services,Child Protection & Assessment,JMAL,Third Party Payments,Social Care External Contact,DMR Services Ltd,30/07/2015,455.00
Children's Safeguarding & Specialist Services,Child Protection & Assessment,JMAL,Supplies & Services,Section 17 Childrens Act,NESTOR PRIMECARE SERVICES LTD T/A ALLIED HEALTHCARE,27/07/2015,337.64
Children's Safeguarding & Specialist Services,Child Protection & Assessment,JMAL,Supplies & Services,Section 17 Childrens Act,NESTOR PRIMECARE SERVICES LTD T/A ALLIED HEALTHCARE,27/07/2015,330.63
Children's Safeguarding & Specialist Services,Child Protection & Assessment,JMAL,Supplies & Services,Section 17 Childrens Act,NESTOR PRIMECARE SERVICES LTD T/A ALLIED HEALTHCARE,30/07/2015,337.64
Children's Safeguarding & Specialist Services,Child Protection & Assessment,JMAL,Supplies & Services,Other Services,NESTOR PRIMECARE SERVICES LTD T/A ALLIED HEALTHCARE,30/07/2015,399.87
Children's Safeguarding & Specialist Services,Child Protection & Assessment,JMAL,Supplies & Services,Section 17 Childrens Act,NESTOR PRIMECARE SERVICES LTD T/A ALLIED HEALTHCARE,01/07/2015,482.24
Children's Safeguarding & Specialist Services,Child Protection & Assessment,JMAL,Supplies & Services,Section 17 Childrens Act,NESTOR PRIMECARE SERVICES LTD T/A ALLIED HEALTHCARE,01/07/2015,337.64
Children's Safeguarding & Specialist Services,Child Protection & Assessment,JMAL,Supplies & Services,Section 17 Childrens Act,NESTOR PRIMECARE SERVICES LTD T/A ALLIED HEALTHCARE,15/07/2015,337.64
Children's Safeguarding & Specialist Services,Child Protection & Assessment,JMAL,Supplies & Services,Section 17 Childrens Act,NESTOR PRIMECARE SERVICES LTD T/A ALLIED HEALTHCARE,28/07/2015,-263.16
Children's Safeguarding & Specialist Services,Child Protection & Assessment,JMAL,Supplies & Services,Section 17 Childrens Act,NESTOR PRIMECARE SERVICES LTD T/A ALLIED HEALTHCARE,28/07/2015,-236.16
Children's Safeguarding & Specialist Services,Child Protection & Assessment,JMAL,Supplies & Services,Section 17 Childrens Act,Redacted Personal Information,28/07/2015,-236.16
Children's Safeguarding & Specialist Services,Child Protection & Assessment,JSAB,Supplies & Services,Section 17 Childrens Act,Maybach Lettings,07/07/2015,530.00
Children's Safeguarding & Specialist Services,Child Protection & Assessment,JSAB,Supplies & Services,Section 17 Childrens Act,Maybach Lettings,07/07/2015,530.00
Children's Safeguarding & Specialist Services,Children in Care & Fostering,JCAB,Supplies & Services,CL - Birthday Allowance,Above N beyond Limited,02/07/2015,338.70
Children's Safeguarding & Specialist Services,Children in Care & Fostering,JCAB,Supplies & Services,Supportive Lodgings,Above N beyond Limited,21/07/2015,"1,602.90"
Children's Safeguarding & Specialist Services,Children in Care & Fostering,JCAB,Supplies & Services,Supportive Lodgings,Above N beyond Limited,21/07/2015,"1,170.03"
Children's Safeguarding & Specialist Services,Children in Care & Fostering,JCAB,Supplies & Services,CL - Basic Allowance,Above N beyond Limited,31/07/2015,231.60
Children's Safeguarding & Specialist Services,Children in Care & Fostering,JCAB,Transfer Payments,Leaving Care Grant,ARGOS BUSINESS SOLUTIONS,02/07/2015,375.77
Children's Safeguarding & Specialist Services,Children in Care & Fostering,JCAB,Transfer Payments,Leaving Care Grant,ARGOS BUSINESS SOLUTIONS,02/07/2015,-149.11
Children's Safeguarding & Specialist Services,Children in Care & Fostering,JCAB,Supplies & Services,Other Travel,ARRIVA MIDLANDS NORTH LIMITED,02/07/2015,329.60
Children's Safeguarding & Specialist Services,Children in Care & Fostering,JCAB,Supplies & Services,Supportive Lodgings,BROMFORD HOUSING ASSOCIATION LIMITED,28/07/2015,513.23
Children's Safeguarding & Specialist Services,Children in Care & Fostering,JCAB,Supplies & Services,Supportive Lodgings,BROMFORD HOUSING ASSOCIATION LIMITED,28/07/2015,997.95
Children's Safeguarding & Specialist Services,Children in Care & Fostering,JCAB,Supplies & Services,Supportive Lodgings,BROMFORD HOUSING ASSOCIATION LIMITED,21/07/2015,940.92
Children's Safeguarding & Specialist Services,Children in Care & Fostering,JCAB,Supplies & Services,Supportive Lodgings,BROMFORD HOUSING ASSOCIATION LIMITED,29/07/2015,940.92
Children's Safeguarding & Specialist Services,Children in Care & Fostering,JCAB,Supplies & Services,Supportive Lodgings,BROMFORD HOUSING ASSOCIATION LIMITED,31/07/2015,997.95
Children's Safeguarding & Specialist Services,Children in Care & Fostering,JCAB,Supplies & Services,Supportive Lodgings,BROMFORD HOUSING ASSOCIATION LIMITED,31/07/2015,969.44
Children's Safeguarding & Specialist Services,Children in Care & Fostering,JCAB,Supplies & Services,Supportive Lodgings,BROMFORD HOUSING ASSOCIATION LIMITED,31/07/2015,313.64
Children's Safeguarding & Specialist Services,Children in Care & Fostering,JCAB,Supplies & Services,Supportive Lodgings,BROMFORD HOUSING ASSOCIATION LIMITED,31/07/2015,997.95
Children's Safeguarding & Specialist Services,Children in Care & Fostering,JCAB,Supplies & Services,Supportive Lodgings,BROMFORD HOUSING ASSOCIATION LIMITED,31/07/2015,969.44
Children's Safeguarding & Specialist Services,Children in Care & Fostering,JCAB,Supplies & Services,Supportive Lodgings,Carefirst Services Limited,09/07/2015,"1,435.80"
Children's Safeguarding & Specialist Services,Children in Care & Fostering,JCAB,Supplies & Services,Supportive Lodgings,Carefirst Services Limited,02/07/2015,"1,483.66"
Children's Safeguarding & Specialist Services,Children in Care & Fostering,JCAB,Supplies & Services,Supportive Lodgings,Carefirst Services Limited,07/07/2015,"1,435.80"
Children's Safeguarding & Specialist Services,Children in Care & Fostering,JCAB,Supplies & Services,CL - Basic Allowance,Carefirst Services Limited,07/07/2015,229.40
Children's Safeguarding & Specialist Services,Children in Care & Fostering,JCAB,Supplies & Services,CL - Basic Allowance,Carefirst Services Limited,07/07/2015,229.40
Children's Safeguarding & Specialist Services,Children in Care & Fostering,JCAB,Supplies & Services,CL - Basic Allowance,Carefirst Services Limited,21/07/2015,229.40
Children's Safeguarding & Specialist Services,Children in Care & Fostering,JCAB,Supplies & Services,CL - Basic Allowance,Carefirst Services Limited,31/07/2015,517.00
Children's Safeguarding & Specialist Services,Children in Care & Fostering,JCAB,Supplies & Services,CL - Basic Allowance,Carefirst Services Limited,31/07/2015,413.60
Children's Safeguarding & Specialist Services,Children in Care & Fostering,JCAB,Supplies & Services,CL - Basic Allowance,Carefirst Services Limited,31/07/2015,413.60
Children's Safeguarding & Specialist Services,Children in Care & Fostering,JCAB,Transfer Payments,Leaving Care Grant,DAWLEY BARGAIN CENTRE,14/07/2015,115.00
Children's Safeguarding & Specialist Services,Children in Care & Fostering,JCAB,Transfer Payments,Leaving Care Grant,Harrisons Solicitors LLP,02/07/2015,150.00
Children's Safeguarding & Specialist Services,Children in Care & Fostering,JCAB,Supplies & Services,Supportive Lodgings,Just One Recruitment & Training Ltd,31/07/2015,423.90
Children's Safeguarding & Specialist Services,Children in Care & Fostering,JCAB,Supplies & Services,Supportive Lodgings,Just One Recruitment & Training Ltd,31/07/2015,989.10
Children's Safeguarding & Specialist Services,Children in Care & Fostering,JCAB,Supplies & Services,Supportive Lodgings,LEAVING CARE COMPANY,02/07/2015,141.71
Children's Safeguarding & Specialist Services,Children in Care & Fostering,JCAB,Supplies & Services,Supportive Lodgings,LEAVING CARE COMPANY,02/07/2015,"1,000.00"
Children's Safeguarding & Specialist Services,Children in Care & Fostering,JCAB,Supplies & Services,Supportive Lodgings,LEAVING CARE COMPANY,15/07/2015,"1,328.57"
Children's Safeguarding & Specialist Services,Children in Care & Fostering,JCAB,Supplies & Services,Supportive Lodgings,LEAVING CARE COMPANY,21/07/2015,137.14
Children's Safeguarding & Specialist Services,Children in Care & Fostering,JCAB,Supplies & Services,Supportive Lodgings,LEAVING CARE COMPANY,21/07/2015,"1,050.00"
Children's Safeguarding & Specialist Services,Children in Care & Fostering,JCAB,Supplies & Services,Supportive Lodgings,NEXT STEP CARE MANAGEMENT LTD,22/07/2015,153.00
Children's Safeguarding & Specialist Services,Children in Care & Fostering,JCAB,Supplies & Services,Supportive Lodgings,NEXT STEP CARE MANAGEMENT LTD,22/07/2015,207.40
Children's Safeguarding & Specialist Services,Children in Care & Fostering,JCAB,Supplies & Services,Supportive Lodgings,NEXT STEP CARE MANAGEMENT LTD,22/07/2015,"2,514.29"
Children's Safeguarding & Specialist Services,Children in Care & Fostering,JCAB,Supplies & Services,Supportive Lodgings,NEXT STEP CARE MANAGEMENT LTD,22/07/2015,"3,200.00"
Children's Safeguarding & Specialist Services,Children in Care & Fostering,JCAB,Supplies & Services,Supportive Lodgings,NEXT STEP CARE MANAGEMENT LTD,22/07/2015,"1,660.71"
Children's Safeguarding & Specialist Services,Children in Care & Fostering,JCAB,Supplies & Services,Supportive Lodgings,STAY TELFORD XC SUPPORTED HOUSE,02/07/2015,927.50
Children's Safeguarding & Specialist Services,Children in Care & Fostering,JCAB,Supplies & Services,Supportive Lodgings,STAY TELFORD XC SUPPORTED HOUSE,02/07/2015,910.91
Children's Safeguarding & Specialist Services,Children in Care & Fostering,JCAB,Supplies & Services,Supportive Lodgings,STAY TELFORD XC SUPPORTED HOUSE,02/07/2015,215.74
Children's Safeguarding & Specialist Services,Children in Care & Fostering,JCAB,Supplies & Services,Supportive Lodgings,STAY TELFORD XC SUPPORTED HOUSE,02/07/2015,671.20
Children's Safeguarding & Specialist Services,Children in Care & Fostering,JCAB,Supplies & Services,Supportive Lodgings,STAY TELFORD XC SUPPORTED HOUSE,02/07/2015,914.90
Children's Safeguarding & Specialist Services,Children in Care & Fostering,JCAB,Supplies & Services,Supportive Lodgings,STAY TELFORD XC SUPPORTED HOUSE,02/07/2015,287.65
Children's Safeguarding & Specialist Services,Children in Care & Fostering,JCAB,Supplies & Services,Supportive Lodgings,STAY TELFORD XC SUPPORTED HOUSE,02/07/2015,671.20
Children's Safeguarding & Specialist Services,Children in Care & Fostering,JCAB,Supplies & Services,Supportive Lodgings,STAY TELFORD XC SUPPORTED HOUSE,21/07/2015,671.20
Children's Safeguarding & Specialist Services,Children in Care & Fostering,JCAB,Supplies & Services,Supportive Lodgings,STAY TELFORD XC SUPPORTED HOUSE,28/07/2015,742.00
Children's Safeguarding & Specialist Services,Children in Care & Fostering,JCAB,Supplies & Services,Supportive Lodgings,STAY TELFORD XC SUPPORTED HOUSE,28/07/2015,736.24
Children's Safeguarding & Specialist Services,Children in Care & Fostering,JCAB,Supplies & Services,Supportive Lodgings,STAY TELFORD XC SUPPORTED HOUSE,31/07/2015,671.20
Children's Safeguarding & Specialist Services,Children in Care & Fostering,JCAB,Transport-Related Expenditure,Taxi Costs,WALFORD & NORTH SHROPSHIRE COLLEGE,31/07/2015,152.00
Children's Safeguarding & Specialist Services,Children in Care & Fostering,JMAF,Third Party Payments,Foster Care Fees,Crackerjacks Day Nursery,30/07/2015,316.80
Children's Safeguarding & Specialist Services,Children in Care & Fostering,JMAF,Third Party Payments,Childminders,SMILEY FACES DAY NURSERIES LTD,30/07/2015,245.05
Children's Safeguarding & Specialist Services,Children in Care & Fostering,JMAF,Third Party Payments,Childminders,SMILEY FACES DAY NURSERIES LTD,30/07/2015,366.80
Children's Safeguarding & Specialist Services,Children in Care & Fostering,JPAD,Third Party Payments,External Foster Care Payments,By The Bridge,21/07/2015,"4,738.57"
Children's Safeguarding & Specialist Services,Children in Care & Fostering,JPAD,Third Party Payments,External Foster Care Payments,Childcare Bureau,28/07/2015,"3,627.00"
Children's Safeguarding & Specialist Services,Children in Care & Fostering,JPAD,Third Party Payments,External Foster Care Payments,Childcare Bureau,28/07/2015,"3,997.50"
Children's Safeguarding & Specialist Services,Children in Care & Fostering,JPAD,Third Party Payments,External Foster Care Payments,Childcare Bureau,28/07/2015,"3,510.00"
Children's Safeguarding & Specialist Services,Children in Care & Fostering,JPAD,Third Party Payments,External Foster Care Payments,Childcare Bureau,20/07/2015,"4,047.98"
Children's Safeguarding & Specialist Services,Children in Care & Fostering,JPAD,Third Party Payments,External Foster Care Payments,Childcare Bureau,21/07/2015,"4,217.55"
Children's Safeguarding & Specialist Services,Children in Care & Fostering,JPAD,Third Party Payments,External Foster Care Payments,Childcare Bureau,21/07/2015,"4,081.50"
Children's Safeguarding & Specialist Services,Children in Care & Fostering,JPAD,Third Party Payments,External Foster Care Payments,Childcare Bureau,21/07/2015,"3,510.00"
Children's Safeguarding & Specialist Services,Children in Care & Fostering,JPAD,Third Party Payments,External Foster Care Payments,CLIFFORD HOUSE FOSTERING LTD,17/07/2015,"3,664.20"
Children's Safeguarding & Specialist Services,Children in Care & Fostering,JPAD,Third Party Payments,External Foster Care Payments,CLIFFORD HOUSE FOSTERING LTD,20/07/2015,"3,412.00"
Children's Safeguarding & Specialist Services,Children in Care & Fostering,JPAD,Third Party Payments,External Foster Care Payments,CLIFFORD HOUSE FOSTERING LTD,20/07/2015,354.60
Children's Safeguarding & Specialist Services,Children in Care & Fostering,JPAD,Third Party Payments,External Foster Care Payments,CLIFFORD HOUSE FOSTERING LTD,21/07/2015,"-3,412.00"
Children's Safeguarding & Specialist Services,Children in Care & Fostering,JPAD,Third Party Payments,External Foster Care Payments,FAMILIES@FAMILYCARE,24/07/2015,"2,611.44"
Children's Safeguarding & Specialist Services,Children in Care & Fostering,JPAD,Third Party Payments,External Foster Care Payments,FAMILIES@FAMILYCARE,24/07/2015,"4,017.60"
Children's Safeguarding & Specialist Services,Children in Care & Fostering,JPAD,Third Party Payments,External Foster Care Payments,FAMILY FOSTER CARE LTD,21/07/2015,"1,936.13"
Children's Safeguarding & Specialist Services,Children in Care & Fostering,JPAD,Third Party Payments,External Foster Care Payments,FAMILY FOSTER CARE LTD,21/07/2015,"3,334.36"
Children's Safeguarding & Specialist Services,Children in Care & Fostering,JPAD,Third Party Payments,External Foster Care Payments,FAMILY FOSTER CARE LTD,21/07/2015,"3,226.80"
Children's Safeguarding & Specialist Services,Children in Care & Fostering,JPAD,Third Party Payments,External Foster Care Payments,FAMILY FOSTER CARE LTD,21/07/2015,"8,306.85"
Children's Safeguarding & Specialist Services,Children in Care & Fostering,JPAD,Third Party Payments,External Foster Care Payments,FAMILY FOSTER CARE LTD,28/07/2015,"3,259.65"
Children's Safeguarding & Specialist Services,Children in Care & Fostering,JPAD,Third Party Payments,External Foster Care Payments,FAMILY FOSTER CARE LTD,28/07/2015,"3,334.36"
Children's Safeguarding & Specialist Services,Children in Care & Fostering,JPAD,Third Party Payments,External Foster Care Payments,FOSTER CARE ASSOCIATES LTD,16/07/2015,"3,095.10"
Children's Safeguarding & Specialist Services,Children in Care & Fostering,JPAD,Third Party Payments,External Foster Care Payments,FOSTER CARE ASSOCIATES LTD,27/07/2015,684.6
Children's Safeguarding & Specialist Services,Children in Care & Fostering,JPAD,Third Party Payments,External Foster Care Payments,FOSTER CARE ASSOCIATES LTD,27/07/2015,579
Children's Safeguarding & Specialist Services,Children in Care & Fostering,JPAD,Third Party Payments,External Foster Care Payments,FOSTERING PRIORY,21/07/2015,"3,618.14"
Children's Safeguarding & Specialist Services,Children in Care & Fostering,JPAD,Third Party Payments,External Foster Care Payments,FOSTERING SOLUTIONS LTD,28/07/2015,-177.72
Children's Safeguarding & Specialist Services,Children in Care & Fostering,JPAD,Third Party Payments,External Foster Care Payments,FOSTERING SOLUTIONS LTD,28/07/2015,"3,554.46"
Children's Safeguarding & Specialist Services,Children in Care & Fostering,JPAD,Third Party Payments,External Foster Care Payments,FREEDOM FOSTERING,21/07/2015,"6,604.28"
Children's Safeguarding & Specialist Services,Children in Care & Fostering,JPAD,Third Party Payments,External Foster Care Payments,NATIONAL FOSTERING AGENCY,22/07/2015,"3,271.80"
Children's Safeguarding & Specialist Services,Children in Care & Fostering,JPAD,Third Party Payments,External Foster Care Payments,NATIONAL FOSTERING AGENCY,22/07/2015,"3,129.00"
Children's Safeguarding & Specialist Services,Children in Care & Fostering,JPAD,Third Party Payments,External Foster Care Payments,NATIONAL FOSTERING AGENCY,22/07/2015,"3,129.00"
Children's Safeguarding & Specialist Services,Children in Care & Fostering,JPAD,Third Party Payments,External Foster Care Payments,NATIONAL FOSTERING AGENCY,22/07/2015,"3,129.00"
Children's Safeguarding & Specialist Services,Children in Care & Fostering,JPAD,Third Party Payments,External Foster Care Payments,NATIONAL FOSTERING AGENCY,22/07/2015,"3,204.90"
Children's Safeguarding & Specialist Services,Children in Care & Fostering,JPAD,Third Party Payments,External Foster Care Payments,NATIONAL FOSTERING AGENCY,22/07/2015,"3,271.80"
Children's Safeguarding & Specialist Services,Children in Care & Fostering,JPAD,Third Party Payments,External Foster Care Payments,NATIONAL FOSTERING AGENCY,06/07/2015,"3,352.30"
Children's Safeguarding & Specialist Services,Children in Care & Fostering,JPAD,Third Party Payments,External Foster Care Payments,NATIONAL FOSTERING AGENCY,23/07/2015,"3,065.10"
Children's Safeguarding & Specialist Services,Children in Care & Fostering,JPAD,Third Party Payments,External Foster Care Payments,NATIONAL FOSTERING AGENCY,20/07/2015,"3,271.80"
Children's Safeguarding & Specialist Services,Children in Care & Fostering,JPAD,Third Party Payments,External Foster Care Payments,NATIONAL FOSTERING AGENCY,20/07/2015,"2,978.70"
Children's Safeguarding & Specialist Services,Children in Care & Fostering,JPAD,Third Party Payments,External Foster Care Payments,NATIONAL FOSTERING AGENCY,28/07/2015,"2,508.38"
Children's Safeguarding & Specialist Services,Children in Care & Fostering,JPAD,Third Party Payments,External Foster Care Payments,NATIONAL FOSTERING AGENCY,28/07/2015,104.30
Children's Safeguarding & Specialist Services,Children in Care & Fostering,JPAD,Third Party Payments,External Foster Care Payments,NATIONAL FOSTERING AGENCY,28/07/2015,"3,024.70"
Children's Safeguarding & Specialist Services,Children in Care & Fostering,JPAD,Third Party Payments,External Foster Care Payments,NEXUS FOSTERING,23/07/2015,"3,602.20"
Children's Safeguarding & Specialist Services,Children in Care & Fostering,JPAD,Third Party Payments,External Foster Care Payments,NEXUS FOSTERING,21/07/2015,"3,486.00"
Children's Safeguarding & Specialist Services,Children in Care & Fostering,JPAD,Third Party Payments,External Foster Care Payments,ORANGE GROVE FOSTERCARE LTD,01/07/2015,"5,247.86"
Children's Safeguarding & Specialist Services,Children in Care & Fostering,JPAD,Third Party Payments,External Foster Care Payments,ORANGE GROVE FOSTERCARE LTD,01/07/2015,"5,078.57"
Children's Safeguarding & Specialist Services,Children in Care & Fostering,JPAD,Third Party Payments,External Foster Care Payments,ORANGE GROVE FOSTERCARE LTD,13/07/2015,"1,294.71"
Children's Safeguarding & Specialist Services,Children in Care & Fostering,JPAD,Third Party Payments,External Foster Care Payments,ORANGE GROVE FOSTERCARE LTD,13/07/2015,"1,255.87"
Children's Safeguarding & Specialist Services,Children in Care & Fostering,JPAD,Third Party Payments,External Foster Care Payments,ORANGE GROVE FOSTERCARE LTD,01/07/2015,"3,520.71"
Children's Safeguarding & Specialist Services,Children in Care & Fostering,JPAD,Third Party Payments,External Foster Care Payments,ORANGE GROVE FOSTERCARE LTD,23/07/2015,"3,344.68"
Children's Safeguarding & Specialist Services,Children in Care & Fostering,JPAD,Third Party Payments,External Foster Care Payments,ORANGE GROVE FOSTERCARE LTD,23/07/2015,"3,450.30"
Children's Safeguarding & Specialist Services,Children in Care & Fostering,JPAD,Third Party Payments,External Foster Care Payments,ORANGE GROVE FOSTERCARE LTD,21/07/2015,180.00
Children's Safeguarding & Specialist Services,Children in Care & Fostering,JPAD,Third Party Payments,External Foster Care Payments,ORANGE GROVE FOSTERCARE LTD,21/07/2015,360.00
Children's Safeguarding & Specialist Services,Children in Care & Fostering,JPAD,Third Party Payments,External Foster Care Payments,ORANGE GROVE FOSTERCARE LTD,21/07/2015,"-2,700.11"
Children's Safeguarding & Specialist Services,Children in Care & Fostering,JPAD,Third Party Payments,External Foster Care Payments,ORANGE GROVE FOSTERCARE LTD,21/07/2015,360.00
Children's Safeguarding & Specialist Services,Children in Care & Fostering,JPAD,Third Party Payments,External Foster Care Payments,ORANGE GROVE FOSTERCARE LTD,23/07/2015,"3,077.86"
Children's Safeguarding & Specialist Services,Children in Care & Fostering,JPAD,Third Party Payments,External Foster Care Payments,ORANGE GROVE FOSTERCARE LTD,23/07/2015,"3,449.86"
Children's Safeguarding & Specialist Services,Children in Care & Fostering,JPAD,Third Party Payments,External Foster Care Payments,ORANGE GROVE FOSTERCARE LTD,23/07/2015,"3,050.18"
Children's Safeguarding & Specialist Services,Children in Care & Fostering,JPAD,Third Party Payments,External Foster Care Payments,ORANGE GROVE FOSTERCARE LTD,23/07/2015,"3,344.68"
Children's Safeguarding & Specialist Services,Children in Care & Fostering,JPAD,Third Party Payments,External Foster Care Payments,ORANGE GROVE FOSTERCARE LTD,23/07/2015,"3,520.71"
Children's Safeguarding & Specialist Services,Children in Care & Fostering,JPAD,Third Party Payments,External Foster Care Payments,ORANGE GROVE FOSTERCARE LTD,23/07/2015,"2,635.00"
Children's Safeguarding & Specialist Services,Children in Care & Fostering,JPAD,Third Party Payments,External Foster Care Payments,ORANGE GROVE FOSTERCARE LTD,23/07/2015,"3,050.18"
Children's Safeguarding & Specialist Services,Children in Care & Fostering,JPAD,Third Party Payments,External Foster Care Payments,ORANGE GROVE FOSTERCARE LTD,23/07/2015,"3,244.33"
Children's Safeguarding & Specialist Services,Children in Care & Fostering,JPAD,Third Party Payments,External Foster Care Payments,ORANGE GROVE FOSTERCARE LTD,23/07/2015,"3,344.68"
Children's Safeguarding & Specialist Services,Children in Care & Fostering,JPAD,Third Party Payments,External Foster Care Payments,ORANGE GROVE FOSTERCARE LTD,23/07/2015,"3,210.71"
Children's Safeguarding & Specialist Services,Children in Care & Fostering,JPAD,Third Party Payments,External Foster Care Payments,ORANGE GROVE FOSTERCARE LTD,23/07/2015,"3,244.33"
Children's Safeguarding & Specialist Services,Children in Care & Fostering,JPAD,Third Party Payments,External Foster Care Payments,ORANGE GROVE FOSTERCARE LTD,23/07/2015,"3,449.86"
Children's Safeguarding & Specialist Services,Children in Care & Fostering,JPAD,Third Party Payments,External Foster Care Payments,ORANGE GROVE FOSTERCARE LTD,13/07/2015,360.00
Children's Safeguarding & Specialist Services,Children in Care & Fostering,JPAD,Third Party Payments,External Foster Care Payments,ORANGE GROVE FOSTERCARE LTD,10/07/2015,495.36
Children's Safeguarding & Specialist Services,Children in Care & Fostering,JPAD,Third Party Payments,External Foster Care Payments,ORANGE GROVE FOSTERCARE LTD,06/07/2015,"5,078.57"
Children's Safeguarding & Specialist Services,Children in Care & Fostering,JPAD,Third Party Payments,External Foster Care Payments,ORANGE GROVE FOSTERCARE LTD,22/07/2015,"3,077.86"
Children's Safeguarding & Specialist Services,Children in Care & Fostering,JPAD,Third Party Payments,External Foster Care Payments,ORANGE GROVE FOSTERCARE LTD,23/07/2015,"3,277.76"
Children's Safeguarding & Specialist Services,Children in Care & Fostering,JPAD,Third Party Payments,External Foster Care Payments,ORANGE GROVE FOSTERCARE LTD,23/07/2015,"3,244.33"
Children's Safeguarding & Specialist Services,Children in Care & Fostering,JPAD,Third Party Payments,External Foster Care Payments,PARK FOSTER CARE,21/07/2015,480.00
Children's Safeguarding & Specialist Services,Children in Care & Fostering,JPAD,Third Party Payments,External Foster Care Payments,PARK FOSTER CARE,21/07/2015,"3,309.60"
Children's Safeguarding & Specialist Services,Children in Care & Fostering,JPAD,Third Party Payments,External Foster Care Payments,PARK FOSTER CARE,28/07/2015,240.00
Children's Safeguarding & Specialist Services,Children in Care & Fostering,JPAD,Third Party Payments,External Foster Care Payments,PARK FOSTER CARE,20/07/2015,"3,600.00"
Children's Safeguarding & Specialist Services,Children in Care & Fostering,JPAD,Third Party Payments,External Foster Care Payments,PARK FOSTER CARE,20/07/2015,"6,000.00"
Children's Safeguarding & Specialist Services,Children in Care & Fostering,JPAD,Third Party Payments,External Foster Care Payments,PARK FOSTER CARE,20/07/2015,"3,240.00"
Children's Safeguarding & Specialist Services,Children in Care & Fostering,JPAD,Third Party Payments,External Foster Care Payments,PHOENIX FOSTERING,22/07/2015,"6,532.01"
Children's Safeguarding & Specialist Services,Children in Care & Fostering,JPAD,Third Party Payments,External Foster Care Payments,PHOENIX FOSTERING,22/07/2015,"6,532.01"
Children's Safeguarding & Specialist Services,Children in Care & Fostering,JPAD,Third Party Payments,External Foster Care Payments,PHOENIX FOSTERING,23/07/2015,"5,878.84"
Children's Safeguarding & Specialist Services,Children in Care & Fostering,JPAD,Third Party Payments,External Foster Care Payments,PHOENIX FOSTERING,23/07/2015,"5,878.84"
Children's Safeguarding & Specialist Services,Children in Care & Fostering,JPAD,Third Party Payments,External Foster Care Payments,Prospects for Young People Ltd,30/07/2015,"3,604.99"
Children's Safeguarding & Specialist Services,Children in Care & Fostering,JPAD,Third Party Payments,External Foster Care Payments,Prospects for Young People Ltd,30/07/2015,"3,609.33"
Children's Safeguarding & Specialist Services,Children in Care & Fostering,JPAD,Third Party Payments,External Foster Care Payments,Prospects for Young People Ltd,30/07/2015,"3,366.60"
Children's Safeguarding & Specialist Services,Children in Care & Fostering,JPAD,Third Party Payments,External Foster Care Payments,RED KITE FOSTERING,22/07/2015,"5,207.14"
Children's Safeguarding & Specialist Services,Children in Care & Fostering,JPAD,Third Party Payments,External Foster Care Payments,SWIIS FOSTER CARE LTD,23/07/2015,872.62
Children's Safeguarding & Specialist Services,Children in Care & Fostering,JPAD,Third Party Payments,External Foster Care Payments,SWIIS FOSTER CARE LTD,28/07/2015,872.62
Children's Safeguarding & Specialist Services,Children in Care & Fostering,JPAD,Third Party Payments,External Foster Care Payments,SWIIS FOSTER CARE LTD,28/07/2015,872.62
Children's Safeguarding & Specialist Services,Children in Care & Fostering,JPAD,Third Party Payments,External Foster Care Payments,SWIIS FOSTER CARE LTD,06/07/2015,872.62
Children's Safeguarding & Specialist Services,Children in Care & Fostering,JPAD,Third Party Payments,External Foster Care Payments,THE ADOLESCENT & CHILDRENS TRUST,20/07/2015,"2,907.00"
Children's Safeguarding & Specialist Services,Children in Care & Fostering,JPAM,Supplies & Services,Other Services,BAAF REGISTERED CHARITY,28/07/2015,647.75
Children's Safeguarding & Specialist Services,Children in Care & Fostering,JPAM,Supplies & Services,Legal Expenses,CLARKES SOLICITORS,23/07/2015,"1,403.53"
Children's Safeguarding & Specialist Services,Children in Care & Fostering,JPAM,Supplies & Services,Form F Assessments,HN Assessments Ltd,23/07/2015,"2,136.00"
Children's Safeguarding & Specialist Services,Children in Care & Fostering,JPAM,Supplies & Services,Marketing & Publicity,ORION MEDIA,23/07/2015,"1,500.00"
Children's Safeguarding & Specialist Services,Children in Care & Fostering,JPAM,Supplies & Services,Marketing & Publicity,Redbus Media Group,23/07/2015,329.28
Children's Safeguarding & Specialist Services,Children in Care & Fostering,JPAM,Supplies & Services,Marketing & Publicity,THE MIDLAND NEWS ASSOCIATION LTD,23/07/2015,150.00
Children's Safeguarding & Specialist Services,Children in Care & Fostering,JPAM,Supplies & Services,Legal Expenses,WACE MORGAN SOLICITORS,23/07/2015,"1,105.27"
Children's Safeguarding & Specialist Services,Children in Care & Fostering,JPAN,Third Party Payments,Residential Expenditure,ABC CARE LTD,30/07/2015,"10,714.20"
Children's Safeguarding & Specialist Services,Children in Care & Fostering,JPAN,Third Party Payments,Residential Expenditure,BETTERCARE KEYS LTD,28/07/2015,"8,142.90"
Children's Safeguarding & Specialist Services,Children in Care & Fostering,JPAN,Third Party Payments,Residential Expenditure,CARE TODAY CHILDRENS SERVICES,20/07/2015,"12,407.10"
Children's Safeguarding & Specialist Services,Children in Care & Fostering,JPAN,Third Party Payments,Residential Expenditure,CARE TODAY CHILDRENS SERVICES,21/07/2015,"3,377.10"
Children's Safeguarding & Specialist Services,Children in Care & Fostering,JPAN,Third Party Payments,Residential Expenditure,DURHAM COUNTY COUNCIL,31/07/2015,"23,932.00"
Children's Safeguarding & Specialist Services,Children in Care & Fostering,JPAN,Third Party Payments,Residential Expenditure,DURHAM COUNTY COUNCIL,01/07/2015,"23,640.00"
Children's Safeguarding & Specialist Services,Children in Care & Fostering,JPAN,Third Party Payments,Residential Expenditure,INSIGHT DIRECT (UK) LTD,21/07/2015,"11,842.17"
Children's Safeguarding & Specialist Services,Children in Care & Fostering,JPAN,Third Party Payments,Residential Expenditure,KEYS CHILDCARE LTD,22/07/2015,250.00
Children's Safeguarding & Specialist Services,Children in Care & Fostering,JPAN,Third Party Payments,Residential Expenditure,KEYS CHILDCARE LTD,23/07/2015,"11,691.34"
Children's Safeguarding & Specialist Services,Children in Care & Fostering,JPAN,Third Party Payments,Residential Expenditure,Unity Residential Care Services Ltd,20/07/2015,"11,647.01"
Children's Safeguarding & Specialist Services,Children in Care & Fostering,JPAN,Third Party Payments,Residential Expenditure,Unity Residential Care Services Ltd,20/07/2015,"11,647.01"
Children's Safeguarding & Specialist Services,Children in Care & Fostering,JPAN,Third Party Payments,Residential Expenditure,Young Options Pathways Stoke,21/07/2015,"17,085.43"
Children's Safeguarding & Specialist Services,Children Specialist Services,GEAR,Supplies & Services,Other Grants (Expenses), TIGGY'S MONTESSORI NURSERY,24/07/2015,266.22
Children's Safeguarding & Specialist Services,Children Specialist Services,GEAR,Supplies & Services,Other Grants (Expenses),ABC DAY NURSERY HOLLINSWOOD 20588539,24/07/2015,134.54
Children's Safeguarding & Specialist Services,Children Specialist Services,GEAR,Supplies & Services,Other Grants (Expenses),ABC DAY NURSERY LTD 20588539,17/07/2015,561.07
Children's Safeguarding & Specialist Services,Children Specialist Services,GEAR,Supplies & Services,Other Grants (Expenses),Aqueduct Little Learners,24/07/2015,134.54
Children's Safeguarding & Specialist Services,Children Specialist Services,GEAR,Supplies & Services,Other Grants (Expenses),Aqueduct Little Learners,17/07/2015,131.68
Children's Safeguarding & Specialist Services,Children Specialist Services,GEAR,Supplies & Services,Other Grants (Expenses),BEARS DEN PRE-SCHOOL A/C 00372906,17/07/2015,561.07
Children's Safeguarding & Specialist Services,Children Specialist Services,GEAR,Supplies & Services,Other Grants (Expenses),BUSY BEES AT TELFORD PARKWAY,17/07/2015,313.86
Children's Safeguarding & Specialist Services,Children Specialist Services,GEAR,Supplies & Services,Other Grants (Expenses),BUSY BEES AT TELFORD PARKWAY,24/07/2015,269.08
Children's Safeguarding & Specialist Services,Children Specialist Services,GEAR,Supplies & Services,Other Grants (Expenses),CENTRAL PARK NURSERY,24/07/2015,134.54
Children's Safeguarding & Specialist Services,Children Specialist Services,GEAR,Supplies & Services,Other Grants (Expenses),CHILDCARE SOS,17/07/2015,561.08
Children's Safeguarding & Specialist Services,Children Specialist Services,GEAR,Supplies & Services,Other Grants (Expenses),Church Street Day Nursery,24/07/2015,231.87
Children's Safeguarding & Specialist Services,Children Specialist Services,GEAR,Supplies & Services,Other Grants (Expenses),DAISY CHAIN @ OLD HALL,17/07/2015,841.62
Children's Safeguarding & Specialist Services,Children Specialist Services,GEAR,Supplies & Services,Other Grants (Expenses),EDGMOND OWLS 14507218,17/07/2015,395.04
Children's Safeguarding & Specialist Services,Children Specialist Services,GEAR,Supplies & Services,Other Grants (Expenses),LEEGOMERY UNDER 5'S PLAYGROUP,17/07/2015,165.00
Children's Safeguarding & Specialist Services,Children Specialist Services,GEAR,Supplies & Services,Other Grants (Expenses),LEEGOMERY UNDER 5'S PLAYGROUP,24/07/2015,110.00
Children's Safeguarding & Specialist Services,Children Specialist Services,GEAR,Supplies & Services,Other Grants (Expenses),THE LEARNING TREE PRE-SCHOOL 2655956,24/07/2015,269.09
Children's Safeguarding & Specialist Services,Children Specialist Services,GEAR,Supplies & Services,Other Grants (Expenses),WOODEN TOPS DAY NURSERY A/C 2862358,17/07/2015,131.68
Children's Safeguarding & Specialist Services,Children Specialist Services,GEAR,Supplies & Services,Other Grants (Expenses),WOODEN TOPS DAY NURSERY A/C 2862358,24/07/2015,532.45
Children's Safeguarding & Specialist Services,Children Specialist Services,GY03,Supplies & Services,Confectionery & Snacks,BIKOLD,24/07/2015,216.62
Children's Safeguarding & Specialist Services,Children Specialist Services,HDAC,Third Party Payments,Agency Services,NESTOR PRIMECARE SERVICES LTD T/A ALLIED HEALTHCARE,17/07/2015,469.02
Children's Safeguarding & Specialist Services,Children Specialist Services,HDAC,Third Party Payments,Agency Services,NESTOR PRIMECARE SERVICES LTD T/A ALLIED HEALTHCARE,24/07/2015,504.72
Children's Safeguarding & Specialist Services,Children Specialist Services,HDAE,Third Party Payments,Contribution To Other La's,SHROPSHIRE COUNCIL (55636551),17/07/2015,"84,401.00"
Children's Safeguarding & Specialist Services,Children Specialist Services,HDAF,Third Party Payments,Private Contractors,ACTION FOR CHILDREN LIMITED,19/07/2015,"131,638.50"
Children's Safeguarding & Specialist Services,Children Specialist Services,HDAF,Third Party Payments,Private Contractors,ACTION FOR CHILDREN LIMITED,24/07/2015,"131,638.50"
Children's Safeguarding & Specialist Services,Children Specialist Services,HDAG,Supplies & Services,Aids & Appliances,G & S SMIRTHWAITE LTD,27/07/2015,191.00
Children's Safeguarding & Specialist Services,Children Specialist Services,HDAG,Supplies & Services,Aids & Appliances,G & S SMIRTHWAITE LTD,27/07/2015,146.00
Children's Safeguarding & Specialist Services,Children Specialist Services,HDAG,Supplies & Services,Aids & Appliances,JCM SEATING SOLUTIONS,31/07/2015,164.19
Children's Safeguarding & Specialist Services,Children Specialist Services,HDAG,Supplies & Services,Aids & Appliances,JENX LIMITED,03/07/2015,505.00
Children's Safeguarding & Specialist Services,Children Specialist Services,HDAG,Supplies & Services,Aids & Appliances,JENX LIMITED,03/07/2015,104.00
Children's Safeguarding & Specialist Services,Children Specialist Services,HDAG,Supplies & Services,Aids & Appliances,M A Smith Associates,13/07/2015,195.00
Children's Safeguarding & Specialist Services,Children Specialist Services,HDAG,Supplies & Services,Aids & Appliances,M A Smith Associates,31/07/2015,340.00
Children's Safeguarding & Specialist Services,Children Specialist Services,HDAG,Supplies & Services,Aids & Appliances,NRS Healthcare T/A Nottingham Rehab Ltd,01/07/2015,303.60
Children's Safeguarding & Specialist Services,Children Specialist Services,HDAG,Supplies & Services,Aids & Appliances,NRS Healthcare T/A Nottingham Rehab Ltd,14/07/2015,159.00
Children's Safeguarding & Specialist Services,Children Specialist Services,HDAG,Supplies & Services,Aids & Appliances,R82 UK LIMITED,10/07/2015,"1,670.00"
Children's Safeguarding & Specialist Services,Children Specialist Services,HDAG,Supplies & Services,Aids & Appliances,R82 UK LIMITED,21/07/2015,123.00
Children's Safeguarding & Specialist Services,Children Specialist Services,HDAG,Supplies & Services,Aids & Appliances,R82 UK LIMITED,21/07/2015,"2,198.00"
Children's Safeguarding & Specialist Services,Children Specialist Services,HDAJ,Third Party Payments,Agency Services,Direct Health Homecare Limited,01/07/2015,191.20
Children's Safeguarding & Specialist Services,Children Specialist Services,HDAJ,Third Party Payments,Agency Services,Direct Health Homecare Limited,20/07/2015,246.00
Children's Safeguarding & Specialist Services,Children Specialist Services,HDAJ,Third Party Payments,Agency Services,Direct Health Homecare Limited,21/07/2015,118.24
Children's Safeguarding & Specialist Services,Children Specialist Services,HDAJ,Third Party Payments,Agency Services,Direct Health Homecare Limited,21/07/2015,118.24
Children's Safeguarding & Specialist Services,Children Specialist Services,HDAJ,Third Party Payments,Agency Services,Direct Health Homecare Limited,21/07/2015,255.52
Children's Safeguarding & Specialist Services,Children Specialist Services,HDAJ,Third Party Payments,Agency Services,Direct Health Homecare Limited,21/07/2015,118.24
Children's Safeguarding & Specialist Services,Children Specialist Services,HDAJ,Third Party Payments,Agency Services,Direct Health Homecare Limited,21/07/2015,177.36
Children's Safeguarding & Specialist Services,Children Specialist Services,HDAJ,Third Party Payments,Agency Services,Direct Health Homecare Limited,24/07/2015,115.20
Children's Safeguarding & Specialist Services,Children Specialist Services,HDAJ,Third Party Payments,Agency Services,Direct Health Homecare Limited,24/07/2015,411.20
Children's Safeguarding & Specialist Services,Children Specialist Services,HDAJ,Third Party Payments,Agency Services,Direct Health Homecare Limited,24/07/2015,273.18
Children's Safeguarding & Specialist Services,Children Specialist Services,HDAJ,Third Party Payments,Agency Services,NESTOR PRIMECARE SERVICES LTD T/A ALLIED HEALTHCARE,01/07/2015,104.25
Children's Safeguarding & Specialist Services,Children Specialist Services,HDAJ,Third Party Payments,Agency Services,NESTOR PRIMECARE SERVICES LTD T/A ALLIED HEALTHCARE,01/07/2015,122.06
Children's Safeguarding & Specialist Services,Children Specialist Services,HDAJ,Third Party Payments,Agency Services,NESTOR PRIMECARE SERVICES LTD T/A ALLIED HEALTHCARE,01/07/2015,346.39
Children's Safeguarding & Specialist Services,Children Specialist Services,HDAJ,Third Party Payments,Agency Services,NESTOR PRIMECARE SERVICES LTD T/A ALLIED HEALTHCARE,01/07/2015,116.45
Children's Safeguarding & Specialist Services,Children Specialist Services,HDAJ,Third Party Payments,Agency Services,NESTOR PRIMECARE SERVICES LTD T/A ALLIED HEALTHCARE,13/07/2015,136.10
Children's Safeguarding & Specialist Services,Children Specialist Services,HDAJ,Third Party Payments,Agency Services,NESTOR PRIMECARE SERVICES LTD T/A ALLIED HEALTHCARE,16/07/2015,285.75
Children's Safeguarding & Specialist Services,Children Specialist Services,HDAJ,Third Party Payments,Agency Services,NESTOR PRIMECARE SERVICES LTD T/A ALLIED HEALTHCARE,03/07/2015,187.39
Children's Safeguarding & Specialist Services,Children Specialist Services,HDAJ,Third Party Payments,Agency Services,NESTOR PRIMECARE SERVICES LTD T/A ALLIED HEALTHCARE,24/07/2015,267.70
Children's Safeguarding & Specialist Services,Children Specialist Services,HDAJ,Third Party Payments,Agency Services,NESTOR PRIMECARE SERVICES LTD T/A ALLIED HEALTHCARE,01/07/2015,106.06
Children's Safeguarding & Specialist Services,Children Specialist Services,HDAJ,Third Party Payments,Agency Services,NESTOR PRIMECARE SERVICES LTD T/A ALLIED HEALTHCARE,01/07/2015,133.18
Children's Safeguarding & Specialist Services,Children Specialist Services,HDAJ,Third Party Payments,Agency Services,NESTOR PRIMECARE SERVICES LTD T/A ALLIED HEALTHCARE,01/07/2015,354.32
Children's Safeguarding & Specialist Services,Children Specialist Services,HDAJ,Third Party Payments,Agency Services,NESTOR PRIMECARE SERVICES LTD T/A ALLIED HEALTHCARE,01/07/2015,185.61
Children's Safeguarding & Specialist Services,Children Specialist Services,HDAJ,Third Party Payments,Agency Services,NESTOR PRIMECARE SERVICES LTD T/A ALLIED HEALTHCARE,01/07/2015,251.57
Children's Safeguarding & Specialist Services,Children Specialist Services,HDAJ,Third Party Payments,Agency Services,NESTOR PRIMECARE SERVICES LTD T/A ALLIED HEALTHCARE,15/07/2015,107.85
Children's Safeguarding & Specialist Services,Children Specialist Services,HDAJ,Third Party Payments,Agency Services,NESTOR PRIMECARE SERVICES LTD T/A ALLIED HEALTHCARE,13/07/2015,110.75
Children's Safeguarding & Specialist Services,Children Specialist Services,HDAJ,Third Party Payments,Agency Services,NESTOR PRIMECARE SERVICES LTD T/A ALLIED HEALTHCARE,13/07/2015,108.10
Children's Safeguarding & Specialist Services,Children Specialist Services,HDAJ,Third Party Payments,Agency Services,WE ARE THE CARE COMPANY LTD,01/07/2015,254.40
Children's Safeguarding & Specialist Services,Children Specialist Services,HDAJ,Third Party Payments,Agency Services,WE ARE THE CARE COMPANY LTD,01/07/2015,222.00
Children's Safeguarding & Specialist Services,Children Specialist Services,HDAK,Third Party Payments,Agency Services,Direct Health Homecare Limited,06/07/2015,255.52
Children's Safeguarding & Specialist Services,Children Specialist Services,HDAK,Third Party Payments,Agency Services,Direct Health Homecare Limited,21/07/2015,133.02
Children's Safeguarding & Specialist Services,Children Specialist Services,HDAK,Third Party Payments,Agency Services,Direct Health Homecare Limited,21/07/2015,191.64
Children's Safeguarding & Specialist Services,Children Specialist Services,HDAK,Third Party Payments,Agency Services,Direct Health Homecare Limited,06/07/2015,133.02
Children's Safeguarding & Specialist Services,Children Specialist Services,HDAK,Third Party Payments,Agency Services,NESTOR PRIMECARE SERVICES LTD T/A ALLIED HEALTHCARE,23/07/2015,235.46
Children's Safeguarding & Specialist Services,Children Specialist Services,HDAK,Third Party Payments,Agency Services,NESTOR PRIMECARE SERVICES LTD T/A ALLIED HEALTHCARE,24/07/2015,116.95
Children's Safeguarding & Specialist Services,Children Specialist Services,HDAK,Supplies & Services,Refreshments Meetings,WINDMILL PRIMARY SCHOOL,06/07/2015,190.00
Children's Safeguarding & Specialist Services,Children Specialist Services,KCAS,Third Party Payments,Health Funded Services,SHROPSHIRE COMMUNITY HEALTH NHS TRUST,17/07/2015,"4,000.00"
Children's Safeguarding & Specialist Services,Children Specialist Services,KCAS,Third Party Payments,Health Funded Services,SHROPSHIRE COMMUNITY HEALTH NHS TRUST,17/07/2015,"4,000.00"
Children's Safeguarding & Specialist Services,Children Specialist Services,KCAS,Third Party Payments,Health Funded Services,SHROPSHIRE COMMUNITY HEALTH NHS TRUST,17/07/2015,"4,000.00"
Children's Safeguarding & Specialist Services,Children Specialist Services,KNAA,Third Party Payments,Residential Expenditure,The National Teaching & Advisory Service,17/07/2015,252.00
Children's Safeguarding & Specialist Services,Children Specialist Services,KNAA,Third Party Payments,Residential Expenditure,The National Teaching & Advisory Service,17/07/2015,479.50
Children's Safeguarding & Specialist Services,Children Specialist Services,KNAA,Third Party Payments,Residential Expenditure,The National Teaching & Advisory Service,17/07/2015,192.00
Children's Safeguarding & Specialist Services,Children Specialist Services,KNAA,Third Party Payments,Residential Expenditure,YOUNG OPTIONS COLLEGE LTD,03/07/2015,"16,500.00"
Children's Safeguarding & Specialist Services,Children Specialist Services,KNAC,Third Party Payments,Residential Expenditure,DUDLEY METROPOLITAN BOROUGH COUNCIL,17/07/2015,"24,716.25"
Children's Safeguarding & Specialist Services,Children Specialist Services,KNAJ,Supplies & Services,Out of School Activities,HAMMONDS CATERING SERVICES LTD,01/07/2015,197.50
Children's Safeguarding & Specialist Services,Children Specialist Services,KNAJ,Supplies & Services,Out of School Activities,LIVE THE ADVENTURE LTD,17/07/2015,600.00
Children's Safeguarding & Specialist Services,Children Specialist Services,KNAJ,Supplies & Services,Aids & Appliances,RNIB SERVICES LIMITED,30/07/2015,107.94
Children's Safeguarding & Specialist Services,Children Specialist Services,KNAM,Supplies & Services,Comp Hardware (Purch / Hire),EUROPEAN ELECTRONIQUE LTD,17/07/2015,532.60
Children's Safeguarding & Specialist Services,Children Specialist Services,KNAN,Employees,Training Expenses,National Development Team for Inclusion,17/07/2015,735.00
Co-Operative Council,Community Engagement & Voluntary Sector,AEAH,Supplies & Services,Grants To Voluntary Organis,TELFORD & WREKIN CVS,01/07/2015,"1,800.00"
Co-Operative Council,Community Engagement & Voluntary Sector,LEAC,Capital Financing Costs,Leased Equipment,CIT VENDOR FINANCE,01/07/2015,215.90
Co-Operative Council,Community Engagement & Voluntary Sector,LEAC,Supplies & Services,Equipment - Purchase,ERIC NEVILLE CATERING SUPPLIES LTD,16/07/2015,477.30
Co-Operative Council,Community Engagement & Voluntary Sector,LEAC,Supplies & Services,Performing Rights Fees,PPL,01/07/2015,119.16
Co-Operative Council,Community Engagement & Voluntary Sector,LEAC,Supplies & Services,Performing Rights Fees,PPL,01/07/2015,129.47
Co-Operative Council,Community Engagement & Voluntary Sector,LEAC,Supplies & Services,Performing Rights Fees,PPL,01/07/2015,253.50
Co-Operative Council,Community Engagement & Voluntary Sector,LEAC,Supplies & Services,Performing Rights Fees,PPL,01/07/2015,256.82
Co-Operative Council,Community Engagement & Voluntary Sector,LEAC,Supplies & Services,Performing Rights Fees,PPL,01/07/2015,341.72
Co-Operative Council,Community Engagement & Voluntary Sector,WECF,Capital Expenditure,Other Capital Expenditure,PARK LANE CENTRE,01/07/2015,"50,339.44"
Co-Operative Council,Corporate Communications,MMAA,Premises-Related Expenditure,R&M -Buildings DLO Charge,3S PRINT & DISPLAY LIMITED,07/07/2015,340.00
Co-Operative Council,Corporate Communications,MMAB,Supplies & Services,Community Newspaper,Leaflet Distribution Services Ltd,30/07/2015,"6,152.39"
Co-Operative Council,Corporate Communications,MMAB,Supplies & Services,Subscriptions,LG COMMUNICATIONS,08/07/2015,250.00
Co-Operative Council,Corporate Communications,MMAD,Employees,Recruitment Advertising,Association of Educational Psychologist,01/07/2015,"1,260.00"
Co-Operative Council,Corporate Communications,MMAD,Employees,Recruitment Advertising,CARTREF PUBLISHING LTD,07/07/2015,374.62
Co-Operative Council,Corporate Communications,MMAD,Employees,Recruitment Advertising,Landor LINKS Ltd,01/07/2015,"1,800.00"
Co-Operative Council,Corporate Communications,MMAD,Employees,Recruitment Advertising,TES GLOBAL LTD (06090251),30/07/2015,787.50
Co-Operative Council,Corporate Communications,MMAD,Employees,Recruitment Advertising,THE MIDLAND NEWS ASSOCIATION LTD,30/07/2015,624.37
Co-Operative Council,Delivery & Planning,MDAB,Supplies & Services,Subscriptions,Office for National Statistics,31/07/2015,150.00
Co-Operative Council,Policy & Strategy,MPAA,Supplies & Services,Other Expenses,European Innovation Limited,14/07/2015,215.00
Co-Operative Council,Policy & Strategy,MPAE,Premises-Related Expenditure,Electricity,West Mercia Energy (WME),10/07/2015,116.44
Customer Services,ALD Services,HLBB,Supplies & Services,Chemicals/Cleaning Products,CARESHOP,21/07/2015,349.97
Customer Services,ALD Services,HLBB,Supplies & Services,Chemicals/Cleaning Products,CARESHOP,29/07/2015,283.71
Customer Services,ALD Services,HLBB,Supplies & Services,Laundry & Towel Hire,PHS GROUP LTD,16/07/2015,313.95
Customer Services,ALD Services,HLBC,Premises-Related Expenditure,Hire Of Rooms,1ST PRIORSLEE & ST GEORGES SCOUT GROUP,16/07/2015,120.00
Customer Services,ALD Services,HLBC,Premises-Related Expenditure,Hire Of Rooms,1ST PRIORSLEE & ST GEORGES SCOUT GROUP,16/07/2015,150.00
Customer Services,ALD Services,HLBC,Premises-Related Expenditure,Clean Mats & Toilet Requisites,CARESHOP,16/07/2015,316.75
Customer Services,ALD Services,HLBC,Supplies & Services,Photocopying,WEST MERCIA SUPPLIES Catalogue Supplies (None Utility),16/07/2015,147.28
Customer Services,ALD Services,HLEB,Supplies & Services,Equipment - Purchase,CARESHOP,16/07/2015,424.50
Customer Services,ALD Services,HLEB,Capital Financing Costs,Leased Equipment,LEX AUTOLEASE LTD,16/07/2015,133.70
Customer Services,ALD Services,HLEB,Capital Financing Costs,Leased Equipment,LEX AUTOLEASE LTD,21/07/2015,657.38
Customer Services,ALD Services,HLEB,Capital Financing Costs,Leased Equipment,LEX AUTOLEASE LTD,02/07/2015,657.38
Customer Services,ALD Services,HLEB,Supplies & Services,Equipment - Purchase,THE CONSORTIUM FOR PURCHASING & DISTRIBUTION LTD T/A WEST MERCIA SUPPLIES,16/07/2015,326.37
Customer Services,ALD Services,HLEB,Supplies & Services,Equipment - Purchase,THE CONSORTIUM FOR PURCHASING & DISTRIBUTION LTD T/A WEST MERCIA SUPPLIES,21/07/2015,367.48
Customer Services,ALD Services,HLEC,Supplies & Services,Protective Clothing,CARESHOP,06/07/2015,227.28
Customer Services,ALD Services,HLEC,Capital Financing Costs,Leased Equipment,LEX AUTOLEASE LTD,29/07/2015,500.14
Customer Services,ALD Services,HLEC,Capital Financing Costs,Leased Equipment,LEX AUTOLEASE LTD,07/07/2015,500.14
Customer Services,ALD Services,HLED,Premises-Related Expenditure,Electricity,SCOTTISH POWER PLC,08/07/2015,244.77
Customer Services,ALD Services,HLED,Supplies & Services,Equipment - Repair,TECHNICAL SERVICES (SHROPSHIRE) LIMITED,28/07/2015,155.00
Customer Services,ALD Services,HLEG,Supplies & Services,Respite Care,Redacted Personal Information,16/07/2015,197.49
Customer Services,ALD Services,HLEG,Supplies & Services,Respite Care,Redacted Personal Information,27/07/2015,540.00
Customer Services,ALD Services,WHAK,Capital Expenditure,Payments to Contractor,AGS Projects Solutions Ltd,01/07/2015,600.00
Customer Services,ALD Services,WHAK,Capital Expenditure,Payments to Contractor,AGS Projects Solutions Ltd,01/07/2015,"9,347.85"
Customer Services,ALD Services,WHAK,Capital Expenditure,Payments to Contractor,PRYCE (BUILDERS) LTD,16/07/2015,"47,091.98"
Customer Services,ALD Services,WHAK,Capital Expenditure,Payments to Contractor,SEVEN CONSULTING LTD,16/07/2015,495.00
Customer Services,Benefits,LRSF,Transfer Payments,Crisis Assistance Awards,A W HOLDINGS,13/07/2015,110.00
Customer Services,Benefits,LRSF,Transfer Payments,Crisis Assistance Awards,A W HOLDINGS,13/07/2015,110.00
Customer Services,Benefits,LRSF,Transfer Payments,Crisis Assistance Awards,A W HOLDINGS,29/07/2015,110.00
Customer Services,Benefits,LRSF,Transfer Payments,Crisis Assistance Awards,DAWLEY BARGAIN CENTRE,22/07/2015,765.00
Customer Services,Benefits,LRSF,Transfer Payments,Crisis Assistance Awards,DAWLEY BARGAIN CENTRE,16/07/2015,170.00
Customer Services,Benefits,LRSF,Transfer Payments,Crisis Assistance Awards,DAWLEY BARGAIN CENTRE,16/07/2015,110.00
Customer Services,Benefits,LRSF,Transfer Payments,Crisis Assistance Awards,DAWLEY BARGAIN CENTRE,29/07/2015,295.00
Customer Services,Benefits,LRSF,Transfer Payments,Crisis Assistance Awards,DAWLEY BARGAIN CENTRE,29/07/2015,275.00
Customer Services,Benefits,LRSF,Transfer Payments,Crisis Assistance Awards,DAWLEY BARGAIN CENTRE,29/07/2015,250.00
Customer Services,Benefits,LRSF,Transfer Payments,Crisis Assistance Awards,DAWLEY BARGAIN CENTRE,30/07/2015,115.00
Customer Services,Benefits,LRSF,Supplies & Services,Crisis Assistance Awards,PayPoint Network Limited,16/07/2015,"2,400.00"
Customer Services,Benefits,LRSF,Transfer Payments,Crisis Assistance Awards,PayPoint Network Limited,09/07/2015,170.00
Customer Services,Benefits,LRSF,Transfer Payments,Crisis Assistance Awards,PayPoint Network Limited,14/07/2015,110.00
Customer Services,Benefits,LRSF,Transfer Payments,Crisis Assistance Awards,PayPoint Network Limited,02/07/2015,476.00
Customer Services,Benefits,LRSF,Transfer Payments,Crisis Assistance Awards,PayPoint Network Limited,21/07/2015,145.00
Customer Services,Benefits,LRSF,Transfer Payments,Crisis Assistance Awards,PayPoint Network Limited,27/07/2015,108.00
Customer Services,Benefits,LRTC,Third Party Payments,Concessionary Travel Award,ACCESS INDEPENDENT,29/07/2015,"3,975.00"
Customer Services,Benefits,LRTC,Supplies & Services,Software support,NORTHGATE PUBLIC SERVICES (UK) LTD,21/07/2015,"1,520.78"
Customer Services,Benefits,LRTC,Supplies & Services,Concessionary Travel Award,STAGECOACH SERVICES LTD,01/07/2015,150.00
Customer Services,Benefits,LRTD,Employees,Staff Training,ITS Training (UK) Limited,10/07/2015,160.00
Customer Services,Catering,CAHH,Supplies & Services,Provisions,Bikold,07/07/2015,183.73
Customer Services,Catering,CAHH,Supplies & Services,Provisions,Bikold,10/07/2015,151.46
Customer Services,Catering,CAHH,Supplies & Services,Provisions,Bikold,24/07/2015,220.49
Customer Services,Catering,CAHH,Supplies & Services,Provisions,Bikold,20/07/2015,155.38
Customer Services,Catering,CAHH,Supplies & Services,Provisions,Bikold,31/07/2015,187.81
Customer Services,Catering,CAHH,Supplies & Services,Provisions,Bikold,07/07/2015,141.54
Customer Services,Catering,CAHH,Supplies & Services,Provisions,Bikold,07/07/2015,130.73
Customer Services,Catering,CAHH,Supplies & Services,Provisions,ROWLANDS & COMPANY,24/07/2015,126.35
Customer Services,Catering,CAHH,Supplies & Services,Provisions,ROWLANDS & COMPANY,24/07/2015,114.96
Customer Services,Catering,CAHH,Supplies & Services,Provisions,ROWLANDS & COMPANY,24/07/2015,165.65
Customer Services,Catering,CAMA,Supplies & Services,Equipment - Purchase,Charnwood Instrumentation Services Ltd,22/07/2015,426.75
Customer Services,Catering,CAMA,Employees,Training Expenses,CIEH,24/07/2015,101.50
Customer Services,Catering,CAMA,Employees,Training Expenses,CIEH,24/07/2015,326.85
Customer Services,Catering,CAMA,Employees,Training Expenses,CIEH,24/07/2015,361.80
Customer Services,Catering,CAMA,Employees,Training Expenses,CIEH,31/07/2015,405.25
Customer Services,Catering,CAMA,Supplies & Services,Protective Clothing,IMAGE@WORK LTD,15/07/2015,389.40
Customer Services,Catering,CAMA,Supplies & Services,Protective Clothing,IMAGE@WORK LTD,31/07/2015,148.60
Customer Services,Catering,CAMA,Supplies & Services,Protective Clothing,IMAGE@WORK LTD,31/07/2015,293.75
Customer Services,Catering,CAOC,Supplies & Services,Provisions,Bikold,31/07/2015,125.72
Customer Services,Catering,CASM,Supplies & Services,EEC Whole Milk,JOHAL DAIRIES,14/07/2015,749.47
Customer Services,Catering,CASM,Supplies & Services,EEC Whole Milk,JOHAL DAIRIES,14/07/2015,"-1,107.40"
Customer Services,Catering,CASM,Supplies & Services,EEC Whole Milk,JOHAL DAIRIES,22/07/2015,760.18
Customer Services,Catering,CASM,Supplies & Services,EEC Whole Milk,JOHAL DAIRIES,22/07/2015,"1,791.75"
Customer Services,Catering,CASM,Supplies & Services,EEC Whole Milk,JOHAL DAIRIES,21/07/2015,"1,805.10"
Customer Services,Catering,CASM,Supplies & Services,EEC Whole Milk,JOHAL DAIRIES,21/07/2015,761.99
Customer Services,Catering,CASM,Supplies & Services,EEC Whole Milk,JOHAL DAIRIES,01/07/2015,"1,801.48"
Customer Services,Catering,CASM,Supplies & Services,EEC Whole Milk,JOHAL DAIRIES,01/07/2015,764.35
Customer Services,Catering,CASN,Supplies & Services,Provisions,Bikold,31/07/2015,335.32
Customer Services,Catering,CASN,Supplies & Services,Provisions,Bikold,31/07/2015,110.14
Customer Services,Catering,CASN,Supplies & Services,Provisions,Bikold,31/07/2015,100.77
Customer Services,Catering,CASN,Supplies & Services,Provisions,Bikold,07/07/2015,140.59
Customer Services,Catering,CASN,Supplies & Services,Provisions,Bikold,07/07/2015,249.80
Customer Services,Catering,CASN,Supplies & Services,Provisions,Bikold,20/07/2015,213.35
Customer Services,Catering,CASN,Supplies & Services,Provisions,Bikold,20/07/2015,262.25
Customer Services,Catering,CASN,Supplies & Services,Provisions,Bikold,24/07/2015,106.33
Customer Services,Catering,CASN,Supplies & Services,Provisions,Bikold,24/07/2015,374.37
Customer Services,Catering,CASN,Supplies & Services,Provisions,Bikold,24/07/2015,114.27
Customer Services,Catering,CASN,Supplies & Services,Provisions,Bikold,24/07/2015,184.60
Customer Services,Catering,CASN,Supplies & Services,Provisions,Bikold,10/07/2015,266.83
Customer Services,Catering,CASN,Supplies & Services,Provisions,Bikold,10/07/2015,105.07
Customer Services,Catering,CASN,Supplies & Services,Provisions,Bikold,10/07/2015,119.54
Customer Services,Catering,CASN,Supplies & Services,Provisions,Bikold,10/07/2015,151.86
Customer Services,Catering,CASN,Supplies & Services,Provisions,Bikold,20/07/2015,-101.00
Customer Services,Catering,CASN,Supplies & Services,Provisions,Bikold,20/07/2015,181.79
Customer Services,Catering,CASN,Supplies & Services,Provisions,Bikold,07/07/2015,290.16
Customer Services,Catering,CASP,Supplies & Services,Provisions,Bikold,07/07/2015,129.41
Customer Services,Catering,CASP,Supplies & Services,Provisions,Bikold,07/07/2015,298.24
Customer Services,Catering,CASP,Supplies & Services,Provisions,Bikold,07/07/2015,104.84
Customer Services,Catering,CASP,Supplies & Services,Provisions,Bikold,20/07/2015,171.50
Customer Services,Catering,CASP,Supplies & Services,Provisions,Bikold,07/07/2015,194.12
Customer Services,Catering,CASP,Supplies & Services,Provisions,Bikold,07/07/2015,139.95
Customer Services,Catering,CASP,Supplies & Services,Provisions,Bikold,24/07/2015,438.81
Customer Services,Catering,CASP,Supplies & Services,Provisions,Bikold,24/07/2015,136.92
Customer Services,Catering,CASP,Supplies & Services,Provisions,Bikold,24/07/2015,108.24
Customer Services,Catering,CASP,Supplies & Services,Provisions,Bikold,31/07/2015,120.62
Customer Services,Catering,CASP,Supplies & Services,Provisions,Bikold,31/07/2015,143.64
Customer Services,Catering,CASP,Supplies & Services,Provisions,Bikold,07/07/2015,134.17
Customer Services,Catering,CASP,Supplies & Services,Provisions,Bikold,20/07/2015,136.51
Customer Services,Catering,CASP,Supplies & Services,Provisions,Bikold,20/07/2015,130.30
Customer Services,Catering,CASP,Supplies & Services,Provisions,Bikold,20/07/2015,177.72
Customer Services,Catering,CASP,Supplies & Services,Provisions,Bikold,20/07/2015,121.73
Customer Services,Catering,CASP,Supplies & Services,Provisions,Bikold,20/07/2015,129.84
Customer Services,Catering,CASP,Supplies & Services,Provisions,Bikold,24/07/2015,154.03
Customer Services,Catering,CASP,Supplies & Services,Provisions,Bikold,20/07/2015,102.94
Customer Services,Catering,CASP,Supplies & Services,Provisions,Bikold,20/07/2015,127.25
Customer Services,Catering,CASP,Supplies & Services,Provisions,Bikold,20/07/2015,127.57
Customer Services,Catering,CASP,Supplies & Services,Provisions,Bikold,20/07/2015,-107.35
Customer Services,Catering,CASP,Supplies & Services,Provisions,Bikold,20/07/2015,180.94
Customer Services,Catering,CASP,Supplies & Services,Provisions,Bikold,20/07/2015,248.30
Customer Services,Catering,CASP,Supplies & Services,Provisions,Bikold,20/07/2015,144.58
Customer Services,Catering,CASP,Supplies & Services,Provisions,Bikold,20/07/2015,166.31
Customer Services,Catering,CASP,Supplies & Services,Provisions,Bikold,20/07/2015,137.37
Customer Services,Catering,CASP,Supplies & Services,Provisions,Bikold,20/07/2015,292.93
Customer Services,Catering,CASP,Supplies & Services,Provisions,Bikold,20/07/2015,128.82
Customer Services,Catering,CASP,Supplies & Services,Provisions,Bikold,20/07/2015,156.61
Customer Services,Catering,CASP,Supplies & Services,Provisions,Bikold,20/07/2015,278.55
Customer Services,Catering,CASP,Supplies & Services,Provisions,Bikold,20/07/2015,194.00
Customer Services,Catering,CASP,Supplies & Services,Provisions,Bikold,20/07/2015,100.92
Customer Services,Catering,CASP,Supplies & Services,Provisions,Bikold,20/07/2015,137.73
Customer Services,Catering,CASP,Supplies & Services,Provisions,Bikold,20/07/2015,106.69
Customer Services,Catering,CASP,Supplies & Services,Provisions,Bikold,20/07/2015,173.61
Customer Services,Catering,CASP,Supplies & Services,Provisions,Bikold,20/07/2015,180.99
Customer Services,Catering,CASP,Supplies & Services,Provisions,Bikold,20/07/2015,131.42
Customer Services,Catering,CASP,Supplies & Services,Provisions,Bikold,20/07/2015,153.83
Customer Services,Catering,CASP,Supplies & Services,Provisions,Bikold,20/07/2015,120.26
Customer Services,Catering,CASP,Supplies & Services,Provisions,Bikold,20/07/2015,289.86
Customer Services,Catering,CASP,Supplies & Services,Provisions,Bikold,20/07/2015,178.55
Customer Services,Catering,CASP,Supplies & Services,Provisions,Bikold,20/07/2015,161.46
Customer Services,Catering,CASP,Supplies & Services,Provisions,Bikold,20/07/2015,113.75
Customer Services,Catering,CASP,Supplies & Services,Provisions,Bikold,20/07/2015,227.37
Customer Services,Catering,CASP,Supplies & Services,Provisions,Bikold,20/07/2015,157.45
Customer Services,Catering,CASP,Supplies & Services,Provisions,Bikold,20/07/2015,203.82
Customer Services,Catering,CASP,Supplies & Services,Provisions,Bikold,20/07/2015,128.62
Customer Services,Catering,CASP,Supplies & Services,Provisions,Bikold,20/07/2015,139.41
Customer Services,Catering,CASP,Supplies & Services,Provisions,Bikold,20/07/2015,107.12
Customer Services,Catering,CASP,Supplies & Services,Provisions,Bikold,20/07/2015,149.31
Customer Services,Catering,CASP,Supplies & Services,Provisions,Bikold,20/07/2015,258.74
Customer Services,Catering,CASP,Supplies & Services,Provisions,Bikold,20/07/2015,158.02
Customer Services,Catering,CASP,Supplies & Services,Provisions,Bikold,20/07/2015,139.51
Customer Services,Catering,CASP,Supplies & Services,Provisions,Bikold,20/07/2015,144.41
Customer Services,Catering,CASP,Supplies & Services,Provisions,Bikold,20/07/2015,100.06
Customer Services,Catering,CASP,Supplies & Services,Provisions,Bikold,20/07/2015,160.21
Customer Services,Catering,CASP,Supplies & Services,Provisions,Bikold,20/07/2015,117.55
Customer Services,Catering,CASP,Supplies & Services,Provisions,Bikold,20/07/2015,164.52
Customer Services,Catering,CASP,Supplies & Services,Provisions,Bikold,20/07/2015,127.42
Customer Services,Catering,CASP,Supplies & Services,Provisions,Bikold,10/07/2015,156.94
Customer Services,Catering,CASP,Supplies & Services,Provisions,Bikold,10/07/2015,379.89
Customer Services,Catering,CASP,Supplies & Services,Provisions,Bikold,10/07/2015,134.54
Customer Services,Catering,CASP,Supplies & Services,Provisions,Bikold,20/07/2015,239.85
Customer Services,Catering,CASP,Supplies & Services,Provisions,Bikold,20/07/2015,190.05
Customer Services,Catering,CASP,Supplies & Services,Provisions,Bikold,20/07/2015,187.51
Customer Services,Catering,CASP,Supplies & Services,Provisions,Bikold,10/07/2015,110.88
Customer Services,Catering,CASP,Supplies & Services,Provisions,Bikold,10/07/2015,112.19
Customer Services,Catering,CASP,Supplies & Services,Provisions,Bikold,10/07/2015,112.12
Customer Services,Catering,CASP,Supplies & Services,Provisions,Bikold,10/07/2015,193.31
Customer Services,Catering,CASP,Supplies & Services,Provisions,Bikold,10/07/2015,119.52
Customer Services,Catering,CASP,Supplies & Services,Provisions,Bikold,10/07/2015,243.20
Customer Services,Catering,CASP,Supplies & Services,Provisions,Bikold,10/07/2015,215.11
Customer Services,Catering,CASP,Supplies & Services,Provisions,Bikold,10/07/2015,259.48
Customer Services,Catering,CASP,Supplies & Services,Provisions,Bikold,10/07/2015,165.56
Customer Services,Catering,CASP,Supplies & Services,Provisions,Bikold,10/07/2015,185.83
Customer Services,Catering,CASP,Supplies & Services,Provisions,Bikold,10/07/2015,253.60
Customer Services,Catering,CASP,Supplies & Services,Provisions,Bikold,10/07/2015,110.88
Customer Services,Catering,CASP,Supplies & Services,Provisions,Bikold,10/07/2015,135.12
Customer Services,Catering,CASP,Supplies & Services,Provisions,Bikold,10/07/2015,197.82
Customer Services,Catering,CASP,Supplies & Services,Provisions,Bikold,10/07/2015,103.37
Customer Services,Catering,CASP,Supplies & Services,Provisions,Bikold,10/07/2015,203.67
Customer Services,Catering,CASP,Supplies & Services,Provisions,Bikold,10/07/2015,136.81
Customer Services,Catering,CASP,Supplies & Services,Provisions,Bikold,10/07/2015,388.53
Customer Services,Catering,CASP,Supplies & Services,Provisions,Bikold,10/07/2015,160.57
Customer Services,Catering,CASP,Supplies & Services,Provisions,Bikold,10/07/2015,105.33
Customer Services,Catering,CASP,Supplies & Services,Provisions,Bikold,10/07/2015,103.93
Customer Services,Catering,CASP,Supplies & Services,Provisions,Bikold,10/07/2015,123.91
Customer Services,Catering,CASP,Supplies & Services,Provisions,Bikold,10/07/2015,206.35
Customer Services,Catering,CASP,Supplies & Services,Provisions,Bikold,10/07/2015,177.07
Customer Services,Catering,CASP,Supplies & Services,Provisions,Bikold,10/07/2015,167.74
Customer Services,Catering,CASP,Supplies & Services,Provisions,Bikold,10/07/2015,160.61
Customer Services,Catering,CASP,Supplies & Services,Provisions,Bikold,10/07/2015,258.37
Customer Services,Catering,CASP,Supplies & Services,Provisions,Bikold,10/07/2015,134.02
Customer Services,Catering,CASP,Supplies & Services,Provisions,Bikold,10/07/2015,117.35
Customer Services,Catering,CASP,Supplies & Services,Provisions,Bikold,10/07/2015,202.44
Customer Services,Catering,CASP,Supplies & Services,Provisions,Bikold,10/07/2015,127.48
Customer Services,Catering,CASP,Supplies & Services,Provisions,Bikold,10/07/2015,127.92
Customer Services,Catering,CASP,Supplies & Services,Provisions,Bikold,10/07/2015,122.73
Customer Services,Catering,CASP,Supplies & Services,Provisions,Bikold,10/07/2015,282.65
Customer Services,Catering,CASP,Supplies & Services,Provisions,Bikold,10/07/2015,103.69
Customer Services,Catering,CASP,Supplies & Services,Provisions,Bikold,10/07/2015,222.70
Customer Services,Catering,CASP,Supplies & Services,Provisions,Bikold,10/07/2015,147.56
Customer Services,Catering,CASP,Supplies & Services,Provisions,Bikold,10/07/2015,140.73
Customer Services,Catering,CASP,Supplies & Services,Provisions,Bikold,10/07/2015,102.69
Customer Services,Catering,CASP,Supplies & Services,Provisions,Bikold,10/07/2015,107.23
Customer Services,Catering,CASP,Supplies & Services,Provisions,Bikold,10/07/2015,119.53
Customer Services,Catering,CASP,Supplies & Services,Provisions,Bikold,10/07/2015,170.61
Customer Services,Catering,CASP,Supplies & Services,Provisions,Bikold,10/07/2015,209.20
Customer Services,Catering,CASP,Supplies & Services,Provisions,Bikold,10/07/2015,181.33
Customer Services,Catering,CASP,Supplies & Services,Provisions,Bikold,10/07/2015,344.19
Customer Services,Catering,CASP,Supplies & Services,Provisions,Bikold,10/07/2015,228.61
Customer Services,Catering,CASP,Supplies & Services,Provisions,Bikold,10/07/2015,152.10
Customer Services,Catering,CASP,Supplies & Services,Provisions,Bikold,10/07/2015,219.59
Customer Services,Catering,CASP,Supplies & Services,Provisions,Bikold,10/07/2015,108.67
Customer Services,Catering,CASP,Supplies & Services,Provisions,Bikold,10/07/2015,156.48
Customer Services,Catering,CASP,Supplies & Services,Provisions,Bikold,10/07/2015,222.13
Customer Services,Catering,CASP,Supplies & Services,Provisions,Bikold,10/07/2015,115.28
Customer Services,Catering,CASP,Supplies & Services,Provisions,Bikold,10/07/2015,333.31
Customer Services,Catering,CASP,Supplies & Services,Provisions,Bikold,10/07/2015,190.39
Customer Services,Catering,CASP,Supplies & Services,Provisions,Bikold,10/07/2015,254.81
Customer Services,Catering,CASP,Supplies & Services,Provisions,Bikold,10/07/2015,187.35
Customer Services,Catering,CASP,Supplies & Services,Provisions,Bikold,10/07/2015,149.51
Customer Services,Catering,CASP,Supplies & Services,Provisions,Bikold,10/07/2015,126.14
Customer Services,Catering,CASP,Supplies & Services,Provisions,Bikold,10/07/2015,226.10
Customer Services,Catering,CASP,Supplies & Services,Provisions,Bikold,10/07/2015,123.20
Customer Services,Catering,CASP,Supplies & Services,Provisions,Bikold,10/07/2015,147.62
Customer Services,Catering,CASP,Supplies & Services,Provisions,Bikold,10/07/2015,122.68
Customer Services,Catering,CASP,Supplies & Services,Provisions,Bikold,10/07/2015,107.29
Customer Services,Catering,CASP,Supplies & Services,Provisions,Bikold,10/07/2015,132.20
Customer Services,Catering,CASP,Supplies & Services,Provisions,Bikold,10/07/2015,210.89
Customer Services,Catering,CASP,Supplies & Services,Provisions,Bikold,10/07/2015,126.16
Customer Services,Catering,CASP,Supplies & Services,Provisions,Bikold,07/07/2015,156.45
Customer Services,Catering,CASP,Supplies & Services,Provisions,Bikold,07/07/2015,105.48
Customer Services,Catering,CASP,Supplies & Services,Provisions,Bikold,07/07/2015,112.70
Customer Services,Catering,CASP,Supplies & Services,Provisions,Bikold,07/07/2015,159.19
Customer Services,Catering,CASP,Supplies & Services,Provisions,Bikold,07/07/2015,182.31
Customer Services,Catering,CASP,Supplies & Services,Provisions,Bikold,07/07/2015,123.79
Customer Services,Catering,CASP,Supplies & Services,Provisions,Bikold,10/07/2015,381.70
Customer Services,Catering,CASP,Supplies & Services,Provisions,Bikold,07/07/2015,178.29
Customer Services,Catering,CASP,Supplies & Services,Provisions,Bikold,07/07/2015,296.85
Customer Services,Catering,CASP,Supplies & Services,Provisions,Bikold,07/07/2015,268.53
Customer Services,Catering,CASP,Supplies & Services,Provisions,Bikold,10/07/2015,248.97
Customer Services,Catering,CASP,Supplies & Services,Provisions,Bikold,07/07/2015,-196.72
Customer Services,Catering,CASP,Supplies & Services,Provisions,Bikold,07/07/2015,104.29
Customer Services,Catering,CASP,Supplies & Services,Provisions,Bikold,07/07/2015,120.21
Customer Services,Catering,CASP,Supplies & Services,Provisions,Bikold,07/07/2015,120.09
Customer Services,Catering,CASP,Supplies & Services,Provisions,Bikold,07/07/2015,-127.50
Customer Services,Catering,CASP,Supplies & Services,Provisions,Bikold,07/07/2015,139.38
Customer Services,Catering,CASP,Supplies & Services,Provisions,Bikold,10/07/2015,337.60
Customer Services,Catering,CASP,Supplies & Services,Provisions,Bikold,07/07/2015,146.87
Customer Services,Catering,CASP,Supplies & Services,Provisions,Bikold,07/07/2015,274.64
Customer Services,Catering,CASP,Supplies & Services,Provisions,Bikold,07/07/2015,114.50
Customer Services,Catering,CASP,Supplies & Services,Provisions,Bikold,07/07/2015,142.23
Customer Services,Catering,CASP,Supplies & Services,Provisions,Bikold,07/07/2015,150.14
Customer Services,Catering,CASP,Supplies & Services,Provisions,Bikold,07/07/2015,106.86
Customer Services,Catering,CASP,Supplies & Services,Provisions,Bikold,07/07/2015,205.23
Customer Services,Catering,CASP,Supplies & Services,Provisions,Bikold,07/07/2015,315.48
Customer Services,Catering,CASP,Supplies & Services,Provisions,Bikold,07/07/2015,223.41
Customer Services,Catering,CASP,Supplies & Services,Provisions,Bikold,07/07/2015,236.56
Customer Services,Catering,CASP,Supplies & Services,Provisions,Bikold,07/07/2015,154.42
Customer Services,Catering,CASP,Supplies & Services,Provisions,Bikold,07/07/2015,151.66
Customer Services,Catering,CASP,Supplies & Services,Provisions,Bikold,07/07/2015,119.59
Customer Services,Catering,CASP,Supplies & Services,Provisions,Bikold,07/07/2015,105.73
Customer Services,Catering,CASP,Supplies & Services,Provisions,Bikold,07/07/2015,399.11
Customer Services,Catering,CASP,Supplies & Services,Provisions,Bikold,07/07/2015,302.63
Customer Services,Catering,CASP,Supplies & Services,Provisions,Bikold,07/07/2015,248.00
Customer Services,Catering,CASP,Supplies & Services,Provisions,Bikold,07/07/2015,163.74
Customer Services,Catering,CASP,Supplies & Services,Provisions,Bikold,07/07/2015,206.07
Customer Services,Catering,CASP,Supplies & Services,Provisions,Bikold,07/07/2015,111.77
Customer Services,Catering,CASP,Supplies & Services,Provisions,Bikold,07/07/2015,260.23
Customer Services,Catering,CASP,Supplies & Services,Provisions,Bikold,07/07/2015,117.31
Customer Services,Catering,CASP,Supplies & Services,Provisions,Bikold,07/07/2015,123.60
Customer Services,Catering,CASP,Supplies & Services,Provisions,Bikold,07/07/2015,163.47
Customer Services,Catering,CASP,Supplies & Services,Provisions,Bikold,07/07/2015,258.04
Customer Services,Catering,CASP,Supplies & Services,Provisions,Bikold,07/07/2015,207.54
Customer Services,Catering,CASP,Supplies & Services,Provisions,Bikold,07/07/2015,127.44
Customer Services,Catering,CASP,Supplies & Services,Provisions,Bikold,07/07/2015,384.86
Customer Services,Catering,CASP,Supplies & Services,Provisions,Bikold,07/07/2015,293.91
Customer Services,Catering,CASP,Supplies & Services,Provisions,Bikold,07/07/2015,207.91
Customer Services,Catering,CASP,Supplies & Services,Provisions,Bikold,07/07/2015,204.21
Customer Services,Catering,CASP,Supplies & Services,Provisions,Bikold,07/07/2015,238.89
Customer Services,Catering,CASP,Supplies & Services,Provisions,Bikold,07/07/2015,138.63
Customer Services,Catering,CASP,Supplies & Services,Provisions,Bikold,07/07/2015,307.22
Customer Services,Catering,CASP,Supplies & Services,Provisions,Bikold,07/07/2015,316.40
Customer Services,Catering,CASP,Supplies & Services,Provisions,Bikold,07/07/2015,238.12
Customer Services,Catering,CASP,Supplies & Services,Provisions,Bikold,07/07/2015,177.57
Customer Services,Catering,CASP,Supplies & Services,Provisions,Bikold,07/07/2015,135.19
Customer Services,Catering,CASP,Supplies & Services,Provisions,Bikold,07/07/2015,144.16
Customer Services,Catering,CASP,Supplies & Services,Provisions,Bikold,07/07/2015,195.60
Customer Services,Catering,CASP,Supplies & Services,Provisions,Bikold,07/07/2015,142.86
Customer Services,Catering,CASP,Supplies & Services,Provisions,Bikold,07/07/2015,256.75
Customer Services,Catering,CASP,Supplies & Services,Provisions,Bikold,07/07/2015,138.96
Customer Services,Catering,CASP,Supplies & Services,Provisions,Bikold,07/07/2015,117.99
Customer Services,Catering,CASP,Supplies & Services,Provisions,Bikold,07/07/2015,114.15
Customer Services,Catering,CASP,Supplies & Services,Provisions,Bikold,07/07/2015,100.66
Customer Services,Catering,CASP,Supplies & Services,Provisions,Bikold,07/07/2015,157.39
Customer Services,Catering,CASP,Supplies & Services,Provisions,Bikold,07/07/2015,187.28
Customer Services,Catering,CASP,Supplies & Services,Provisions,Bikold,07/07/2015,166.79
Customer Services,Catering,CASP,Supplies & Services,Provisions,Bikold,07/07/2015,153.40
Customer Services,Catering,CASP,Supplies & Services,Provisions,Bikold,07/07/2015,176.21
Customer Services,Catering,CASP,Supplies & Services,Provisions,Bikold,07/07/2015,119.17
Customer Services,Catering,CASP,Supplies & Services,Provisions,Bikold,07/07/2015,188.86
Customer Services,Catering,CASP,Supplies & Services,Provisions,Bikold,07/07/2015,103.56
Customer Services,Catering,CASP,Supplies & Services,Provisions,Bikold,07/07/2015,322.38
Customer Services,Catering,CASP,Supplies & Services,Provisions,Bikold,07/07/2015,144.51
Customer Services,Catering,CASP,Supplies & Services,Provisions,Bikold,07/07/2015,127.82
Customer Services,Catering,CASP,Supplies & Services,Provisions,Bikold,07/07/2015,186.76
Customer Services,Catering,CASP,Supplies & Services,Provisions,Bikold,07/07/2015,104.56
Customer Services,Catering,CASP,Supplies & Services,Provisions,Bikold,07/07/2015,136.90
Customer Services,Catering,CASP,Supplies & Services,Provisions,Bikold,07/07/2015,375.69
Customer Services,Catering,CASP,Premises-Related Expenditure,Clean Mats & Toilet Requisites,ERIC NEVILLE CATERING SUPPLIES LTD,22/07/2015,104.15
Customer Services,Catering,CASP,Premises-Related Expenditure,Clean Mats & Toilet Requisites,ERIC NEVILLE CATERING SUPPLIES LTD,22/07/2015,250.45
Customer Services,Catering,CASP,Premises-Related Expenditure,Clean Mats & Toilet Requisites,ERIC NEVILLE CATERING SUPPLIES LTD,22/07/2015,115.44
Customer Services,Catering,CASP,Supplies & Services,Equipment - Purchase,ERIC NEVILLE CATERING SUPPLIES LTD,22/07/2015,279.04
Customer Services,Catering,CASP,Supplies & Services,Crockery/Hardware/Light Equip,ERIC NEVILLE CATERING SUPPLIES LTD,22/07/2015,300.32
Customer Services,Catering,CASP,Supplies & Services,Crockery/Hardware/Light Equip,ERIC NEVILLE CATERING SUPPLIES LTD,22/07/2015,100.18
Customer Services,Catering,CASP,Premises-Related Expenditure,Trade Refuse,FCC Recycling (UK) Ltd (39521486),10/07/2015,179.40
Customer Services,Catering,CASP,Premises-Related Expenditure,Clean Mats & Toilet Requisites,Hartnoll Limited,16/07/2015,255.44
Customer Services,Catering,CASP,Supplies & Services,Provisions,SMART FOOD,10/07/2015,229.20
Customer Services,Catering,CASP,Supplies & Services,Provisions,SMART FOOD,16/07/2015,183.80
Customer Services,Catering,CASS,Supplies & Services,Provisions,Bikold,07/07/2015,102.84
Customer Services,Catering,CASS,Supplies & Services,Provisions,Bikold,10/07/2015,296.47
Customer Services,Catering,CASS,Supplies & Services,Provisions,Bikold,10/07/2015,492.87
Customer Services,Catering,CASS,Supplies & Services,Provisions,Bikold,20/07/2015,128.62
Customer Services,Catering,CASS,Supplies & Services,Provisions,Bikold,20/07/2015,419.80
Customer Services,Catering,CASS,Supplies & Services,Provisions,Bikold,20/07/2015,131.00
Customer Services,Catering,CASS,Supplies & Services,Provisions,Bikold,07/07/2015,407.71
Customer Services,Catering,CASS,Supplies & Services,Provisions,Bikold,07/07/2015,268.01
Customer Services,Catering,CASS,Supplies & Services,Provisions,Bikold,07/07/2015,147.42
Customer Services,Catering,CASS,Supplies & Services,Provisions,Bikold,07/07/2015,241.61
Customer Services,Catering,CASS,Supplies & Services,Provisions,Bikold,07/07/2015,110.68
Customer Services,Catering,CASS,Supplies & Services,Provisions,Bikold,07/07/2015,142.61
Customer Services,Catering,CASS,Supplies & Services,Provisions,Bikold,07/07/2015,818.30
Customer Services,Catering,CASS,Supplies & Services,Provisions,Bikold,07/07/2015,157.21
Customer Services,Catering,CASS,Supplies & Services,Provisions,Bikold,07/07/2015,169.01
Customer Services,Catering,CASS,Supplies & Services,Provisions,Bikold,07/07/2015,201.12
Customer Services,Catering,CASS,Supplies & Services,Provisions,Bikold,07/07/2015,199.64
Customer Services,Catering,CASS,Supplies & Services,Provisions,Bikold,07/07/2015,391.87
Customer Services,Catering,CASS,Supplies & Services,Provisions,Delice de France,10/07/2015,190.53
Customer Services,Catering,CASS,Supplies & Services,Provisions,On A Roll,10/07/2015,231.25
Customer Services,Catering,CASS,Supplies & Services,Provisions,On A Roll,10/07/2015,162.39
Customer Services,Catering,CASS,Supplies & Services,Provisions,On A Roll,15/07/2015,146.82
Customer Services,Catering,CASS,Supplies & Services,Provisions,On A Roll,15/07/2015,146.82
Customer Services,Catering,CASS,Supplies & Services,Provisions,On A Roll,22/07/2015,208.75
Customer Services,Catering,CASS,Supplies & Services,Provisions,On A Roll,22/07/2015,208.75
Customer Services,Catering,CASS,Supplies & Services,Provisions,On A Roll,24/07/2015,198.70
Customer Services,Catering,CASS,Supplies & Services,Provisions,On A Roll,21/07/2015,164.92
Customer Services,Catering,CASS,Supplies & Services,Provisions,On A Roll,21/07/2015,158.21
Customer Services,Catering,CASS,Supplies & Services,Provisions,On A Roll,21/07/2015,205.09
Customer Services,Catering,CASS,Supplies & Services,Provisions,On A Roll,21/07/2015,272.50
Customer Services,Catering,CASS,Supplies & Services,Provisions,On A Roll,21/07/2015,162.39
Customer Services,Catering,CASS,Supplies & Services,Provisions,On A Roll,21/07/2015,127.20
Customer Services,Catering,CASS,Supplies & Services,Provisions,RADNOR HILLS MINERAL WATER COMPANY LTD,10/07/2015,255.90
Customer Services,Catering,CASS,Supplies & Services,Provisions,RADNOR HILLS MINERAL WATER COMPANY LTD,10/07/2015,122.80
Customer Services,Catering,CASS,Supplies & Services,Provisions,RADNOR HILLS MINERAL WATER COMPANY LTD,10/07/2015,162.17
Customer Services,Catering,CASS,Supplies & Services,Provisions,RADNOR HILLS MINERAL WATER COMPANY LTD,10/07/2015,117.90
Customer Services,Catering,CASS,Supplies & Services,Provisions,RADNOR HILLS MINERAL WATER COMPANY LTD,22/07/2015,303.87
Customer Services,Catering,CASS,Supplies & Services,Provisions,RADNOR HILLS MINERAL WATER COMPANY LTD,22/07/2015,233.40
Customer Services,Catering,CASS,Supplies & Services,Provisions,RADNOR HILLS MINERAL WATER COMPANY LTD,21/07/2015,185.65
Customer Services,Catering,CASS,Supplies & Services,Provisions,RADNOR HILLS MINERAL WATER COMPANY LTD,21/07/2015,303.87
Customer Services,Catering,CASS,Supplies & Services,Provisions,RADNOR HILLS MINERAL WATER COMPANY LTD,21/07/2015,113.54
Customer Services,Catering,CASS,Supplies & Services,Provisions,RADNOR HILLS MINERAL WATER COMPANY LTD,21/07/2015,122.74
Customer Services,Catering,CASS,Supplies & Services,Provisions,RADNOR HILLS MINERAL WATER COMPANY LTD,24/07/2015,131.24
Customer Services,Catering,CASS,Supplies & Services,Provisions,SMART FOOD,10/07/2015,384.20
Customer Services,Catering,CASS,Supplies & Services,Provisions,SMART FOOD,22/07/2015,482.20
Customer Services,Catering,CASS,Supplies & Services,Provisions,Tasties of Chester Ltd,10/07/2015,300.60
Customer Services,Catering,CASS,Supplies & Services,Provisions,Tasties of Chester Ltd,15/07/2015,300.60
Customer Services,Catering,CASS,Supplies & Services,Provisions,Tasties of Chester Ltd,16/07/2015,222.41
Customer Services,Catering,CASS,Supplies & Services,Holidays & Outings,TRI STAR PACKAGING SUPPLIES LIMITED,21/07/2015,105.04
Customer Services,Catering,CASS,Supplies & Services,Provisions,TROPICAL ICE,10/07/2015,120.00
Customer Services,Catering,CASS,Supplies & Services,Provisions,TROPICAL ICE,24/07/2015,290.00
Customer Services,Catering,CASX,Supplies & Services,Provisions,Bikold,07/07/2015,182.15
Customer Services,Catering,CASX,Supplies & Services,Provisions,Bikold,10/07/2015,131.36
Customer Services,Catering,CASX,Supplies & Services,Provisions,Bikold,10/07/2015,128.95
Customer Services,Catering,COMM,Supplies & Services,Provisions,Bikold,07/07/2015,101.95
Customer Services,Catering,COMM,Supplies & Services,Provisions,Bikold,20/07/2015,224.69
Customer Services,Catering,COMM,Supplies & Services,Provisions,Bikold,20/07/2015,162.03
Customer Services,Catering,COMM,Supplies & Services,Provisions,Bikold,20/07/2015,200.03
Customer Services,Catering,COMM,Supplies & Services,Provisions,Bikold,24/07/2015,253.27
Customer Services,Catering,COMM,Supplies & Services,Provisions,Bikold,24/07/2015,161.70
Customer Services,Catering,COMM,Supplies & Services,Provisions,Bikold,31/07/2015,171.63
Customer Services,Catering,COMM,Supplies & Services,Provisions,Bikold,07/07/2015,255.33
Customer Services,Catering,COMM,Supplies & Services,Provisions,Bikold,10/07/2015,118.98
Customer Services,Catering,COMM,Supplies & Services,Provisions,Bikold,10/07/2015,204.22
Customer Services,Catering,COMM,Supplies & Services,Provisions,Brambles Foods Ltd,24/07/2015,405.59
Customer Services,Catering,COMM,Supplies & Services,Provisions,Brambles Foods Ltd,24/07/2015,508.06
Customer Services,Catering,COMM,Supplies & Services,Provisions,Brambles Foods Ltd,24/07/2015,546.62
Customer Services,Catering,COMM,Supplies & Services,Provisions,Buttercross Farm,24/07/2015,630.00
Customer Services,Catering,COMM,Supplies & Services,Provisions,Delice de France,24/07/2015,642.05
Customer Services,Catering,COMM,Supplies & Services,Provisions,Delice de France,24/07/2015,170.24
Customer Services,Catering,COMM,Premises-Related Expenditure,R&M -Building Other,JCE & SONS LTD,28/07/2015,121.00
Customer Services,Catering,COMM,Supplies & Services,Holidays & Outings,Vegware,24/07/2015,113.50
Customer Services,Catering,LCAP,Supplies & Services,Provisions,Bikold,10/07/2015,149.22
Customer Services,Catering,LCAP,Supplies & Services,Provisions,Bikold,20/07/2015,170.82
Customer Services,Catering,LCAP,Supplies & Services,Provisions,Bikold,31/07/2015,128.34
Customer Services,Catering,LEIC,Supplies & Services,Provisions,Bikold,20/07/2015,198.26
Customer Services,Catering,LEIC,Supplies & Services,Provisions,Bikold,20/07/2015,100.14
Customer Services,Catering,LEIC,Supplies & Services,Provisions,Bikold,20/07/2015,232.79
Customer Services,Catering,LEIC,Supplies & Services,Provisions,Bikold,24/07/2015,254.35
Customer Services,Catering,LEIC,Supplies & Services,Provisions,Bikold,24/07/2015,159.68
Customer Services,Catering,LEIC,Supplies & Services,Provisions,Bikold,31/07/2015,241.57
Customer Services,Catering,LEIC,Supplies & Services,Provisions,Bikold,31/07/2015,204.85
Customer Services,Catering,LEIC,Supplies & Services,Provisions,Bikold,10/07/2015,280.72
Customer Services,Catering,LEIC,Supplies & Services,Provisions,Bikold,10/07/2015,143.51
Customer Services,Catering,LEIC,Supplies & Services,Provisions,Delice de France,24/07/2015,300.03
Customer Services,Catering,LEIC,Supplies & Services,Equipment - Purchase,ERIC NEVILLE CATERING SUPPLIES LTD,22/07/2015,116.50
Customer Services,Catering,LEIC,Supplies & Services,Provisions,P & H SNACKS DIRECT LTD,15/07/2015,138.87
Customer Services,Catering,LEIC,Supplies & Services,Provisions,TROPICAL ICE,15/07/2015,802.04
Customer Services,Catering,LEIC,Supplies & Services,Holidays & Outings,TROPICAL ICE,15/07/2015,801.70
Customer Services,Catering,LEIC,Supplies & Services,Provisions,Willoughby (731) Ltd T/A The Fabulous Bakin' Boys,15/07/2015,144.44
Customer Services,Customer & Registrars Services,LMAA,Supplies & Services,Other Office Expenses,CHRISBEON OFFICE SUPPLIES,20/07/2015,115.00
Customer Services,Customer & Registrars Services,LMAA,Supplies & Services,Stationery,CHRISBEON OFFICE SUPPLIES,23/07/2015,115.00
Customer Services,Customer & Registrars Services,LMAA,Supplies & Services,Stationery,CIPFA BUSINESS LTD,03/07/2015,680.00
Customer Services,Customer & Registrars Services,LMAA,Supplies & Services,Stationery,IMAGE@WORK LTD,13/07/2015,153.25
Customer Services,Customer & Registrars Services,LMAA,Supplies & Services,Stationery,IMAGE@WORK LTD,13/07/2015,732.88
Customer Services,Customer & Registrars Services,LMAA,Supplies & Services,Web Services,JADU LIMITED,20/07/2015,"4,860.00"
Customer Services,Customer & Registrars Services,LMAA,Supplies & Services,Translation Services,VISS LTD,07/07/2015,125.00
Customer Services,Customer & Registrars Services,LMAG,Premises-Related Expenditure,Hire Of Rooms,BOURNVILLE VILLAGE TRUST,16/07/2015,104.00
Customer Services,Customer & Registrars Services,LMAG,Premises-Related Expenditure,Hire Of Rooms,DAWLEY CHRISTIAN CENTRE,16/07/2015,150.00
Customer Services,Customer & Registrars Services,LSAA,Supplies & Services,Grounds Maintenance,Limetree Landscape Services and Nurseries Limited,02/07/2015,364.00
Customer Services,Customer & Registrars Services,LSAA,Supplies & Services,Postages,NEOPOST LTD 0010012918,29/07/2015,400.00
Customer Services,Customer & Registrars Services,LSAB,Premises-Related Expenditure,Grounds Maintenance - Wood,Limetree Landscape Services and Nurseries Limited,09/07/2015,182.00
Customer Services,Customer & Registrars Services,LSAB,Premises-Related Expenditure,Grounds Maintenance - Wood,Limetree Landscape Services and Nurseries Limited,02/07/2015,364.00
Customer Services,Customer & Registrars Services,LSAB,Premises-Related Expenditure,Grounds Maintenance - Wood,Limetree Landscape Services and Nurseries Limited,02/07/2015,140.00
Customer Services,Customer & Registrars Services,LSAB,Premises-Related Expenditure,Grounds Maintenance - Cemeteries,P & W MAINTENANCE CONTRACTING LTD,18/07/2015,"1,034.38"
Customer Services,Customer & Registrars Services,LSAB,Premises-Related Expenditure,Grounds Maintenance - Cemeteries,P & W MAINTENANCE CONTRACTING LTD,18/07/2015,"4,513.99"
Customer Services,Facilities Management and Cleaning Services,ASAB,Supplies & Services,Security Services,BUSINESS WATCH GUARDING LIMITED,17/07/2015,694.72
Customer Services,Facilities Management and Cleaning Services,CFAA,Premises-Related Expenditure,Grounds Maintenance - Other,Cropper Grounds Maintenance Ltd,07/07/2015,"3,081.88"
Customer Services,Facilities Management and Cleaning Services,CFAA,Premises-Related Expenditure,Grounds Maintenance - Other,Cropper Grounds Maintenance Ltd,23/07/2015,775.00
Customer Services,Facilities Management and Cleaning Services,CFAA,Premises-Related Expenditure,Grounds Maintenance - Other,NOBRIDGE LTD,17/07/2015,"7,388.91"
Customer Services,Facilities Management and Cleaning Services,CFAA,Premises-Related Expenditure,Grounds Maintenance - Other,Oakleaf Ground Services,22/07/2015,"1,287.94"
Customer Services,Facilities Management and Cleaning Services,CFAD,Supplies & Services,Security Services,BUSINESS WATCH GUARDING LIMITED,17/07/2015,"19,053.29"
Customer Services,Facilities Management and Cleaning Services,CFAV,Capital Financing Costs,Unitary Charge,PYRAMID SCHOOLS (HADLEY) LTD,16/07/2015,"828,045.69"
Customer Services,Facilities Management and Cleaning Services,CFAX,Premises-Related Expenditure,R&M -Buildings DLO Charge,BUSINESS WATCH GUARDING LIMITED,28/07/2015,480.66
Customer Services,Facilities Management and Cleaning Services,CFAY,Premises-Related Expenditure,R&M -Buildings DLO Charge,AY FABRICATIONS LTD,17/07/2015,160.00
Customer Services,Facilities Management and Cleaning Services,CFAY,Premises-Related Expenditure,R&M -Buildings DLO Charge,BemroseBooth Paragon,24/07/2015,340.90
Customer Services,Facilities Management and Cleaning Services,CFAY,Premises-Related Expenditure,R&M -Buildings DLO Charge,BUSINESS WATCH GUARDING LIMITED,17/07/2015,452.14
Customer Services,Facilities Management and Cleaning Services,CFAY,Premises-Related Expenditure,R&M -Buildings DLO Charge,BUSINESS WATCH GUARDING LIMITED,17/07/2015,415.48
Customer Services,Facilities Management and Cleaning Services,CFAY,Premises-Related Expenditure,R&M -Buildings DLO Charge,DENMANS ELECTRICAL WHOLESALERS LTD,28/07/2015,188.45
Customer Services,Facilities Management and Cleaning Services,CFAY,Premises-Related Expenditure,R&M -Buildings DLO Charge,NOVASCOPE IT LTD,21/07/2015,120.00
Customer Services,Facilities Management and Cleaning Services,CFAY,Premises-Related Expenditure,R&M -Buildings DLO Charge,PPG ARCHITECTURAL COATINGS UK LTD,29/07/2015,110.29
Customer Services,Facilities Management and Cleaning Services,CFAY,Premises-Related Expenditure,R&M -Buildings DLO Charge,SCREWFIX DIRECT T/A TRADE UK,29/07/2015,130.71
Customer Services,Facilities Management and Cleaning Services,CLCM,Premises-Related Expenditure,Clean Mats & Toilet Requisites,Border Janitorial Supplies Limited,16/07/2015,127.28
Customer Services,Facilities Management and Cleaning Services,CLCM,Premises-Related Expenditure,Clean Mats & Toilet Requisites,Border Janitorial Supplies Limited,16/07/2015,172.08
Customer Services,Facilities Management and Cleaning Services,CLCM,Premises-Related Expenditure,Clean Mats & Toilet Requisites,Border Janitorial Supplies Limited,16/07/2015,211.06
Customer Services,Facilities Management and Cleaning Services,CLCM,Premises-Related Expenditure,Clean Mats & Toilet Requisites,Border Janitorial Supplies Limited,08/07/2015,105.74
Customer Services,Facilities Management and Cleaning Services,CLCM,Premises-Related Expenditure,Clean Mats & Toilet Requisites,Border Janitorial Supplies Limited,24/07/2015,298.68
Customer Services,Facilities Management and Cleaning Services,CLCM,Premises-Related Expenditure,Clean Mats & Toilet Requisites,Border Janitorial Supplies Limited,28/07/2015,251.02
Customer Services,Facilities Management and Cleaning Services,CLCM,Premises-Related Expenditure,Clean Mats & Toilet Requisites,Border Janitorial Supplies Limited,29/07/2015,129.32
Customer Services,Facilities Management and Cleaning Services,CLCM,Premises-Related Expenditure,Clean Mats & Toilet Requisites,Border Janitorial Supplies Limited,29/07/2015,217.40
Customer Services,Facilities Management and Cleaning Services,CLCM,Premises-Related Expenditure,Contract Cleaning,CLEANIT CLEANING SERVICES,24/07/2015,112.50
Customer Services,Facilities Management and Cleaning Services,CLCM,Premises-Related Expenditure,Contract Cleaning,CLEANIT CLEANING SERVICES,24/07/2015,112.50
Customer Services,Facilities Management and Cleaning Services,CLCM,Premises-Related Expenditure,Contract Cleaning,CLEANIT CLEANING SERVICES,20/07/2015,112.50
Customer Services,Facilities Management and Cleaning Services,CLSP,Premises-Related Expenditure,Clean Mats & Toilet Requisites,Border Janitorial Supplies Limited,29/07/2015,249.00
Customer Services,Facilities Management and Cleaning Services,CLSP,Supplies & Services,Equipment - Purchase,Border Janitorial Supplies Limited,28/07/2015,249.00
Customer Services,Facilities Management and Cleaning Services,CLSP,Premises-Related Expenditure,Clean Mats & Toilet Requisites,Border Janitorial Supplies Limited,28/07/2015,190.84
Customer Services,Facilities Management and Cleaning Services,CLSP,Premises-Related Expenditure,Clean Mats & Toilet Requisites,Border Janitorial Supplies Limited,28/07/2015,249.00
Customer Services,Facilities Management and Cleaning Services,CLSP,Premises-Related Expenditure,Clean Mats & Toilet Requisites,Border Janitorial Supplies Limited,28/07/2015,249.00
Customer Services,Facilities Management and Cleaning Services,CLSP,Premises-Related Expenditure,Clean Mats & Toilet Requisites,Border Janitorial Supplies Limited,28/07/2015,128.91
Customer Services,Facilities Management and Cleaning Services,CLSP,Premises-Related Expenditure,Clean Mats & Toilet Requisites,Border Janitorial Supplies Limited,29/07/2015,256.95
Customer Services,Facilities Management and Cleaning Services,CLSP,Premises-Related Expenditure,Clean Mats & Toilet Requisites,Border Janitorial Supplies Limited,29/07/2015,256.95
Customer Services,Facilities Management and Cleaning Services,CLSP,Premises-Related Expenditure,Clean Mats & Toilet Requisites,Border Janitorial Supplies Limited,16/07/2015,102.64
Customer Services,Facilities Management and Cleaning Services,CLSP,Premises-Related Expenditure,Clean Mats & Toilet Requisites,Border Janitorial Supplies Limited,16/07/2015,109.89
Customer Services,Facilities Management and Cleaning Services,CLSP,Premises-Related Expenditure,Clean Mats & Toilet Requisites,Border Janitorial Supplies Limited,16/07/2015,201.80
Customer Services,Facilities Management and Cleaning Services,CLSP,Premises-Related Expenditure,Clean Mats & Toilet Requisites,Border Janitorial Supplies Limited,16/07/2015,179.73
Customer Services,Facilities Management and Cleaning Services,CLSP,Premises-Related Expenditure,Clean Mats & Toilet Requisites,Border Janitorial Supplies Limited,16/07/2015,354.41
Customer Services,Facilities Management and Cleaning Services,CLSP,Premises-Related Expenditure,Clean Mats & Toilet Requisites,Border Janitorial Supplies Limited,08/07/2015,150.13
Customer Services,Facilities Management and Cleaning Services,CLSP,Supplies & Services,Equipment - Repair,THE CLEAN MACHINE DIRECT LTD,24/07/2015,160.36
Customer Services,Facilities Management and Cleaning Services,CLSS,Premises-Related Expenditure,Clean Mats & Toilet Requisites,Border Janitorial Supplies Limited,16/07/2015,204.78
Customer Services,Facilities Management and Cleaning Services,CLSX,Supplies & Services,Equipment - Purchase,Border Janitorial Supplies Limited,28/07/2015,249.00
Customer Services,ICT,CBAF,Supplies & Services,Telecomms,Airband Community Internet,14/07/2015,295.00
Customer Services,ICT,CBAF,Supplies & Services,Telecomms,Airband Community Internet,14/07/2015,295.00
Customer Services,ICT,CBAF,Supplies & Services,Telecomms,Airband Community Internet,14/07/2015,295.00
Customer Services,ICT,CBAF,Supplies & Services,Telecomms,Airband Community Internet,14/07/2015,295.00
Customer Services,ICT,CBAF,Supplies & Services,Telecomms,Airband Community Internet,14/07/2015,295.00
Customer Services,ICT,CBAF,Supplies & Services,Telecomms,Airband Community Internet,14/07/2015,295.00
Customer Services,ICT,CBAF,Supplies & Services,Telecomms,Airband Community Internet,17/07/2015,790.00
Customer Services,ICT,CBAF,Supplies & Services,Telecomms,Airband Community Internet,21/07/2015,295.00
Customer Services,ICT,CBAF,Supplies & Services,Telecomms,Airband Community Internet,21/07/2015,295.00
Customer Services,ICT,CBAF,Supplies & Services,Telecomms,Airband Community Internet,21/07/2015,295.00
Customer Services,ICT,CBAF,Supplies & Services,Telecomms,Airband Community Internet,21/07/2015,295.00
Customer Services,ICT,CBAF,Supplies & Services,Telecomms,Airband Community Internet,21/07/2015,295.00
Customer Services,ICT,CBAG,Supplies & Services,Mobile Phones,EE LTD AIRTIME (97171263),09/07/2015,356.00
Customer Services,ICT,CBAG,Supplies & Services,Mobile Phones,EE LTD AIRTIME (97171263),21/07/2015,"5,421.07"
Customer Services,ICT,CBAG,Supplies & Services,Mobile Phones,EE LTD AIRTIME (97171263),21/07/2015,"13,408.98"
Customer Services,ICT,CBAG,Supplies & Services,Mobile Phones,EE LTD AIRTIME (97171263),21/07/2015,"1,361.60"
Customer Services,ICT,CBAG,Supplies & Services,Mobile Phones,EE LTD AIRTIME (97171263),21/07/2015,"9,278.56"
Customer Services,ICT,CBAG,Supplies & Services,Mobile Phones,EE LTD AIRTIME (97171263),21/07/2015,"1,298.85"
Customer Services,ICT,CBAG,Supplies & Services,Mobile Phones,EE LTD AIRTIME (97171263),21/07/2015,"2,297.50"
Customer Services,ICT,CBAG,Supplies & Services,Mobile Phones,EE LTD AIRTIME (97171263),21/07/2015,169.66
Customer Services,ICT,CBAG,Supplies & Services,Mobile Phones,EE LTD AIRTIME (97171263),21/07/2015,975.20
Customer Services,ICT,CBAG,Supplies & Services,Mobile Phones,EE LTD AIRTIME (97171263),13/07/2015,-533.00
Customer Services,ICT,CBAG,Supplies & Services,Mobile Phones,EE LTD AIRTIME (97171263),13/07/2015,-123.00
Customer Services,ICT,CBAG,Supplies & Services,Mobile Phones,EE LTD EQUIPMENT (97217077),08/07/2015,-779.00
Customer Services,ICT,CBAG,Supplies & Services,Mobile Phones,EE LTD EQUIPMENT (97217077),22/07/2015,"-1,025.00"
Customer Services,ICT,CBAG,Supplies & Services,Mobile Phones,EE LTD EQUIPMENT (97217077),22/07/2015,356.00
Customer Services,ICT,CBAG,Supplies & Services,Mobile Phones,EE LTD EQUIPMENT (97217077),22/07/2015,-205.00
Customer Services,ICT,CBAG,Supplies & Services,Mobile Phones,EE LTD EQUIPMENT (97217077),22/07/2015,-574.00
Customer Services,ICT,CBAG,Supplies & Services,Mobile Phones,EE LTD EQUIPMENT (97217077),22/07/2015,-123.00
Customer Services,ICT,CBAG,Supplies & Services,Mobile Phones,EE LTD EQUIPMENT (97217077),13/07/2015,-123.00
Customer Services,ICT,CBAG,Supplies & Services,Mobile Phones,EE LTD EQUIPMENT (97217077),22/07/2015,-533.00
Customer Services,ICT,CBAG,Supplies & Services,Equipment - Purchase,EUROPEAN ELECTRONIQUE LTD,07/07/2015,"1,731.00"
Customer Services,ICT,CBAG,Supplies & Services,Comp Hardware (Purch / Hire),EUROPEAN ELECTRONIQUE LTD,17/07/2015,"2,510.55"
Customer Services,ICT,CBAG,Supplies & Services,Comp Hardware (Purch / Hire),EUROPEAN ELECTRONIQUE LTD,08/07/2015,"2,412.75"
Customer Services,ICT,CBAG,Supplies & Services,Comp Hardware (Purch / Hire),EUROPEAN ELECTRONIQUE LTD,08/07/2015,"1,065.20"
Customer Services,ICT,CBAG,Supplies & Services,Comp Hardware (Purch / Hire),EUROPEAN ELECTRONIQUE LTD,08/07/2015,189.60
Customer Services,ICT,CBAG,Supplies & Services,Comp Hardware (Purch / Hire),EUROPEAN ELECTRONIQUE LTD,08/07/2015,"2,273.70"
Customer Services,ICT,CBAG,Supplies & Services,Comp Software (Purch / Hire),PHOENIX SOFTWARE LTD,10/07/2015,"3,048.00"
Customer Services,ICT,CBAG,Supplies & Services,Comp Software (Purch / Hire),PHOENIX SOFTWARE LTD,17/07/2015,137.16
Customer Services,ICT,CBAG,Supplies & Services,Other Expenses,PROCESS FLOWS UK LTD,21/07/2015,572.64
Customer Services,ICT,CBAG,Supplies & Services,Comp Hardware (Purch / Hire),SOFTCAT PLC,21/07/2015,"1,575.16"
Customer Services,ICT,CBAG,Supplies & Services,Telephones,VIRGIN MEDIA BUSINESS,21/07/2015,"11,063.13"
Customer Services,ICT,CBAG,Supplies & Services,Telephones,VIRGIN MEDIA BUSINESS,15/07/2015,"9,861.00"
Customer Services,ICT,CBAG,Supplies & Services,Equipment - Purchase,WREKIN SERVICES LTD,14/07/2015,180.00
Customer Services,ICT,CBAG,Supplies & Services,Equipment - Purchase,WREKIN SERVICES LTD,14/07/2015,600.00
Customer Services,ICT,CBAG,Supplies & Services,Equipment - Purchase,WREKIN SERVICES LTD,14/07/2015,440.00
Customer Services,ICT,CBAG,Supplies & Services,Equipment - Purchase,WREKIN SERVICES LTD,14/07/2015,140.00
Customer Services,ICT,CBAG,Supplies & Services,Equipment - Purchase,WREKIN SERVICES LTD,20/07/2015,300.00
Customer Services,ICT,CBAG,Supplies & Services,Equipment - Purchase,WREKIN SERVICES LTD,20/07/2015,"1,000.00"
Customer Services,ICT,CBAG,Supplies & Services,Equipment - Purchase,WREKIN SERVICES LTD,20/07/2015,150.00
Customer Services,ICT,CBAG,Supplies & Services,Equipment - Purchase,WREKIN SERVICES LTD,20/07/2015,186.00
Customer Services,ICT,CBAG,Supplies & Services,Equipment - Purchase,WREKIN SERVICES LTD,30/07/2015,240.00
Customer Services,ICT,CBAG,Supplies & Services,Equipment - Purchase,WREKIN SERVICES LTD,30/07/2015,280.00
Customer Services,ICT,CBAH,Supplies & Services,Telecomms,Airband Community Internet,21/07/2015,295.00
Customer Services,ICT,CBAH,Supplies & Services,Equipment - Purchase,EUROPEAN ELECTRONIQUE LTD,27/07/2015,391.92
Customer Services,ICT,CBAH,Supplies & Services,Equipment - Purchase,EUROPEAN ELECTRONIQUE LTD,27/07/2015,"4,355.28"
Customer Services,ICT,CBAH,Supplies & Services,Equipment - Purchase,EUROPEAN ELECTRONIQUE LTD,27/07/2015,695.72
Customer Services,ICT,CBAH,Supplies & Services,Equipment - Purchase,EUROPEAN ELECTRONIQUE LTD,27/07/2015,879.58
Customer Services,ICT,CBAH,Supplies & Services,External Computer Use,Lanners Limited,17/07/2015,"6,300.00"
Customer Services,ICT,CBAJ,Supplies & Services,Telecomms,Airband Community Internet,14/07/2015,250.00
Customer Services,ICT,CBAJ,Supplies & Services,Telecomms,Airband Community Internet,14/07/2015,250.00
Customer Services,ICT,CBAJ,Supplies & Services,Telecomms,Airband Community Internet,21/07/2015,250.00
Customer Services,ICT,CBAJ,Supplies & Services,Telecomms,Airband Community Internet,21/07/2015,250.00
Customer Services,ICT,CBAJ,Supplies & Services,Comp Software (Purch / Hire),AQ LIMITED,15/07/2015,203.31
Customer Services,ICT,CBAJ,Supplies & Services,Telephones,BRITISH TELECOMMUNICATIONS PLC,15/07/2015,"3,852.28"
Customer Services,ICT,CBAJ,Supplies & Services,Comp Software (Purch / Hire),Dotted Eyes,06/07/2015,"6,250.00"
Customer Services,ICT,CBAJ,Supplies & Services,Mobile Phones,EE LTD AIRTIME (97171263),05/07/2015,-205.00
Customer Services,ICT,CBAJ,Supplies & Services,Mobile Phones,EE LTD AIRTIME (97171263),05/07/2015,"-1,025.00"
Customer Services,ICT,CBAJ,Supplies & Services,Comp Hardware (Purch / Hire),EUROPEAN ELECTRONIQUE LTD,16/07/2015,692.00
Customer Services,ICT,CBAJ,Supplies & Services,Comp Hardware (Purch / Hire),EUROPEAN ELECTRONIQUE LTD,21/07/2015,692.00
Customer Services,ICT,CBAJ,Supplies & Services,Comp Software (Purch / Hire),Managed Security Solutions Ltd,14/07/2015,"1,611.50"
Customer Services,ICT,CBAJ,Supplies & Services,Comp Software (Purch / Hire),NORTHGATEARINSO UK LTD,23/07/2015,950.00
Customer Services,ICT,CBAJ,Supplies & Services,Computer Hardware (Maint),Recycle IT 4 U Ltd,23/07/2015,"1,270.00"
Customer Services,ICT,CBAJ,Supplies & Services,Comp Hardware (Purch / Hire),SPECIALIST COMPUTERS CENTRES PLC,14/07/2015,"9,565.17"
Customer Services,ICT,CBAJ,Supplies & Services,Comp Hardware (Purch / Hire),SPECIALIST COMPUTERS CENTRES PLC,14/07/2015,"4,338.09"
Customer Services,ICT,CBAJ,Supplies & Services,Comp Software (Purch / Hire),UNIT4 BUSINESS SOFTWARE LTD,28/07/2015,"1,694.13"
Customer Services,ICT,CBAJ,Supplies & Services,Comp Software (Purch / Hire),UNIT4 BUSINESS SOFTWARE LTD,24/07/2015,"12,542.39"
Customer Services,ICT,CBAJ,Supplies & Services,Comp Software (Purch / Hire),UNIT4 BUSINESS SOFTWARE LTD,24/07/2015,"32,096.03"
Customer Services,ICT,CBAJ,Supplies & Services,Consultants Fees,UNIT4 BUSINESS SOFTWARE LTD,24/07/2015,"4,050.00"
Customer Services,ICT,CBAJ,Supplies & Services,Telecomms,VODAFONE LTD (70649252),21/07/2015,"2,587.18"
Customer Services,ICT,CBAL,Supplies & Services,Equipment - Hire,CSI Leasing UK,14/07/2015,-514.14
Customer Services,ICT,CBAL,Supplies & Services,Equipment - Hire,CSI Leasing UK,14/07/2015,545.79
Customer Services,ICT,CBAL,Supplies & Services,Equipment - Hire,CSI Leasing UK,14/07/2015,545.79
Customer Services,ICT,CBAL,Supplies & Services,Equipment - Hire,CSI Leasing UK,14/07/2015,545.79
Customer Services,ICT,CBAL,Supplies & Services,Equipment - Hire,CSI Leasing UK,17/07/2015,525.94
Customer Services,ICT,CBAL,Supplies & Services,Equipment - Hire,CSI Leasing UK,17/07/2015,649.53
Customer Services,ICT,CBAL,Supplies & Services,Equipment - Hire,CSI Leasing UK,14/07/2015,496.21
Customer Services,ICT,CBAL,Supplies & Services,Equipment - Hire,CSI Leasing UK,14/07/2015,545.79
Customer Services,ICT,CBAL,Supplies & Services,Equipment - Hire,CSI Leasing UK,14/07/2015,838.61
Customer Services,ICT,CBAL,Supplies & Services,Equipment - Hire,CSI Leasing UK,14/07/2015,"18,638.52"
Customer Services,ICT,CBAL,Supplies & Services,Equipment - Hire,CSI Leasing UK,14/07/2015,545.79
Customer Services,ICT,CBAL,Supplies & Services,Equipment - Hire,CSI Leasing UK,14/07/2015,356.71
Customer Services,ICT,CBAL,Supplies & Services,Equipment - Hire,CSI Leasing UK,14/07/2015,545.79
Customer Services,ICT,CBAL,Supplies & Services,Equipment - Hire,CSI Leasing UK,14/07/2015,356.71
Customer Services,ICT,CBAL,Supplies & Services,Equipment - Hire,CSI Leasing UK,14/07/2015,356.71
Customer Services,ICT,CBAL,Supplies & Services,Equipment - Hire,CSI Leasing UK,14/07/2015,620.33
Customer Services,ICT,CBAL,Supplies & Services,Equipment - Hire,CSI Leasing UK,14/07/2015,496.21
Customer Services,ICT,CBAL,Supplies & Services,Equipment - Hire,CSI Leasing UK,14/07/2015,356.71
Customer Services,ICT,CBAL,Supplies & Services,Stationery,PREMIER PAPER GROUP LTD,16/07/2015,248.75
Customer Services,ICT,CBAL,Supplies & Services,Stationery,PREMIER PAPER GROUP LTD,13/07/2015,497.50
Customer Services,ICT,CBAL,Supplies & Services,Stationery,PREMIER PAPER GROUP LTD,13/07/2015,248.75
Customer Services,ICT,CBAL,Supplies & Services,Equipment - Hire,SPECIALIST COMPUTERS CENTRES PLC,13/07/2015,"1,820.72"
Customer Services,ICT,CBAL,Supplies & Services,Equipment - Hire,SPECIALIST COMPUTERS CENTRES PLC,13/07/2015,"10,807.92"
Customer Services,ICT,CBAL,Supplies & Services,Equipment - Hire,SPECIALIST COMPUTERS CENTRES PLC,13/07/2015,"1,986.07"
Customer Services,ICT,CBAR,Supplies & Services,Comp Hardware (Purch / Hire),EUROPEAN ELECTRONIQUE LTD,08/07/2015,692.00
Customer Services,ICT,CBAR,Supplies & Services,Comp Hardware (Purch / Hire),EUROPEAN ELECTRONIQUE LTD,08/07/2015,692.00
Customer Services,ICT,WCAG,Capital Expenditure,Computer Hardware,Airband Community Internet,14/07/2015,250.00
Customer Services,ICT,WCAG,Capital Expenditure,Computer Hardware,Airband Community Internet,14/07/2015,250.00
Customer Services,ICT,WCAG,Capital Expenditure,Computer Hardware,Airband Community Internet,14/07/2015,650.00
Customer Services,ICT,WCAG,Capital Expenditure,Computer Hardware,Airband Community Internet,14/07/2015,295.00
Customer Services,ICT,WCAG,Capital Expenditure,Computer Hardware,Airband Community Internet,21/07/2015,250.00
Customer Services,ICT,WCAG,Capital Expenditure,Computer Hardware,Airband Community Internet,21/07/2015,650.00
Customer Services,ICT,WCAG,Capital Expenditure,Computer Hardware,Airband Community Internet,21/07/2015,250.00
Customer Services,ICT,WCAG,Capital Expenditure,Computer Hardware,Airband Community Internet,21/07/2015,250.00
Customer Services,ICT,WCAG,Capital Expenditure,Other Capital Expenditure,Bronze Software Labs Ltd,14/07/2015,"90,000.00"
Customer Services,ICT,WCAG,Capital Expenditure,Payments to Contractor,Oaresome LTD,03/07/2015,"5,060.00"
Customer Services,ICT,WCAG,Capital Expenditure,Payments to Contractor,OPTEVIA,17/07/2015,800.00
Customer Services,ICT,WCAG,Capital Expenditure,Payments to Contractor,OPTEVIA,21/07/2015,"1,310.00"
Customer Services,ICT,WCAG,Capital Expenditure,Payments to Contractor,SPECIALIST COMPUTERS CENTRES PLC,14/07/2015,"1,503.00"
Customer Services,ICT,WCAG,Capital Expenditure,Payments to Contractor,SPECIALIST COMPUTERS CENTRES PLC,27/07/2015,"13,650.00"
Customer Services,ICT,WCAG,Capital Expenditure,Payments to Contractor,SPECIALIST COMPUTERS CENTRES PLC,27/07/2015,"13,650.00"
Customer Services,Library Services,LLAA,Supplies & Services,Printing - Print Room,ALLWAG PROMOTIONS LTD,30/07/2015,341.45
Customer Services,Library Services,LLAA,Supplies & Services,Libraries Book Fund,BERTRAMS LIBRARY SERVICES,22/07/2015,151.69
Customer Services,Library Services,LLAA,Supplies & Services,Libraries Book Fund,BERTRAMS LIBRARY SERVICES,22/07/2015,141.37
Customer Services,Library Services,LLAA,Supplies & Services,Libraries Book Fund,BERTRAMS LIBRARY SERVICES,22/07/2015,291.40
Customer Services,Library Services,LLAA,Supplies & Services,Libraries Book Fund,BERTRAMS LIBRARY SERVICES,17/07/2015,132.91
Customer Services,Library Services,LLAA,Supplies & Services,Libraries Book Fund,BERTRAMS LIBRARY SERVICES,08/07/2015,363.59
Customer Services,Library Services,LLAA,Supplies & Services,Libraries Book Fund,BERTRAMS LIBRARY SERVICES,08/07/2015,129.64
Customer Services,Library Services,LLAA,Supplies & Services,Libraries Book Fund,BERTRAMS LIBRARY SERVICES,17/07/2015,221.12
Customer Services,Library Services,LLAA,Supplies & Services,Libraries Book Fund,BERTRAMS LIBRARY SERVICES,17/07/2015,328.16
Customer Services,Library Services,LLAA,Supplies & Services,Libraries Book Fund,BERTRAMS LIBRARY SERVICES,17/07/2015,152.95
Customer Services,Library Services,LLAA,Supplies & Services,Libraries Book Fund,BERTRAMS LIBRARY SERVICES,17/07/2015,138.83
Customer Services,Library Services,LLAA,Supplies & Services,Libraries Book Fund,BERTRAMS LIBRARY SERVICES,17/07/2015,182.82
Customer Services,Library Services,LLAA,Supplies & Services,Libraries Book Fund,BERTRAMS LIBRARY SERVICES,17/07/2015,313.21
Customer Services,Library Services,LLAA,Supplies & Services,Libraries Book Fund,British Pathe,22/07/2015,840.00
Customer Services,Library Services,LLAA,Supplies & Services,Security Services,BUSINESS WATCH GUARDING LIMITED,21/07/2015,"1,222.00"
Customer Services,Library Services,LLAA,Supplies & Services,Security Services,BUSINESS WATCH GUARDING LIMITED,21/07/2015,"2,199.60"
Customer Services,Library Services,LLAA,Supplies & Services,Libraries Book Fund,LIBRARY MAGNA BOOKS LIMITED,08/07/2015,113.34
Customer Services,Library Services,LLAA,Supplies & Services,Libraries Book Fund,LIBRARY MAGNA BOOKS LIMITED,17/07/2015,296.78
Customer Services,Library Services,LLAA,Supplies & Services,Libraries Book Fund,OAKHILL PUBLISHING LTD,08/07/2015,236.79
Customer Services,Library Services,LLAA,Supplies & Services,Libraries Book Fund,PETERS  LTD,22/07/2015,106.62
Customer Services,Library Services,LLAA,Supplies & Services,Libraries Book Fund,PETERS  LTD,22/07/2015,101.88
Customer Services,Library Services,LLAA,Supplies & Services,Libraries Book Fund,PETERS  LTD,22/07/2015,200.88
Customer Services,Library Services,LLAA,Supplies & Services,Libraries Book Fund,PETERS  LTD,22/07/2015,491.69
Customer Services,Library Services,LLAA,Supplies & Services,Libraries Book Fund,PETERS  LTD,22/07/2015,116.66
Customer Services,Library Services,LLAA,Supplies & Services,Libraries Book Fund,PETERS  LTD,22/07/2015,773.29
Customer Services,Library Services,LLAA,Supplies & Services,Libraries Book Fund,PETERS  LTD,17/07/2015,727.32
Customer Services,Library Services,LLAA,Supplies & Services,Libraries Book Fund,PETERS  LTD,17/07/2015,106.62
Customer Services,Library Services,LLAA,Supplies & Services,Libraries Book Fund,PETERS  LTD,17/07/2015,532.64
Customer Services,Library Services,LLAA,Supplies & Services,Libraries Book Fund,PETERS  LTD,17/07/2015,446.11
Customer Services,Library Services,LLAA,Supplies & Services,Subscriptions,STAFFORDSHIRE COUNTY COUNCIL,21/07/2015,185.00
Customer Services,Library Services,LLAA,Supplies & Services,Equipment - Repair,Telford and Shropshire Carpet Cleaning,21/07/2015,130.00
Customer Services,Library Services,LLAA,Supplies & Services,Promotion Expenses,THE MIDLAND NEWS ASSOCIATION LTD,17/07/2015,291.91
Customer Services,Library Services,LLAA,Supplies & Services,Libraries Book Fund,ULVERSCROFT LARGE PRINT BOOKS LIMITED,17/07/2015,194.80
Customer Services,Library Services,LLAA,Supplies & Services,Libraries Book Fund,ULVERSCROFT LARGE PRINT BOOKS LIMITED,17/07/2015,237.60
Customer Services,Library Services,LLAA,Supplies & Services,Libraries Book Fund,ULVERSCROFT LARGE PRINT BOOKS LIMITED,17/07/2015,214.08
Customer Services,Library Services,LLAA,Supplies & Services,Libraries Book Fund,W F HOWES LTD,08/07/2015,217.60
Customer Services,Library Services,LLAA,Supplies & Services,Libraries Book Fund,W F HOWES LTD,17/07/2015,187.20
Customer Services,Library Services,LLAC,Supplies & Services,Computer Software (Maint),AXIELL LTD,08/07/2015,"11,045.00"
Customer Services,Library Services,LLAF,Supplies & Services,Comp Software (Purch / Hire),Round Software Ltd,08/07/2015,"1,900.00"
Customer Services,Revenues,CBAK,Supplies & Services,Stationery,HC SLINGSBY PLC,28/07/2015,106.50
Customer Services,Revenues,CBAK,Supplies & Services,Printing - External Supplies,LEXON,16/07/2015,148.00
Customer Services,Revenues,CBAK,Supplies & Services,Printing - External Supplies,LEXON,13/07/2015,158.00
Customer Services,Revenues,CBAK,Supplies & Services,Printing - External Supplies,LEXON,30/07/2015,177.72
Customer Services,Revenues,CBAK,Supplies & Services,Printing - External Supplies,LEXON,30/07/2015,800.00
Customer Services,Revenues,CBAK,Supplies & Services,Printing - External Supplies,LEXON,30/07/2015,174.05
Customer Services,Revenues,CBAK,Supplies & Services,Printing - External Supplies,LEXON,30/07/2015,168.91
Customer Services,Revenues,CBAK,Supplies & Services,Printing - External Supplies,LION FPG LIMITED,14/07/2015,341.00
Customer Services,Revenues,CBAK,Supplies & Services,Printing - External Supplies,LION FPG LIMITED,14/07/2015,299.00
Customer Services,Revenues,CBAK,Supplies & Services,Printing - External Supplies,LION FPG LIMITED,10/07/2015,659.00
Customer Services,Revenues,CBAK,Supplies & Services,Printing - External Supplies,LION FPG LIMITED,24/07/2015,"2,143.00"
Customer Services,Revenues,CBAK,Supplies & Services,Franking Machines,NEOPOST LIMITED 47639288,16/07/2015,"7,600.00"
Customer Services,Revenues,CBAK,Supplies & Services,Paper,PREMIER PAPER GROUP LTD,07/07/2015,299.30
Customer Services,Revenues,CBAK,Supplies & Services,Printing - External Supplies,TELFORD REPROGRAPHICS LTD,16/07/2015,129.00
Customer Services,Revenues,CBAK,Supplies & Services,Printing - External Supplies,TELFORD REPROGRAPHICS LTD,24/07/2015,126.00
Customer Services,Revenues,CBAK,Supplies & Services,Printing - External Supplies,TELFORD REPROGRAPHICS LTD,24/07/2015,430.00
Customer Services,Revenues,CBAK,Supplies & Services,Printing - External Supplies,TELFORD REPROGRAPHICS LTD,24/07/2015,245.00
Customer Services,Revenues,CBAK,Supplies & Services,Printing - External Supplies,THE FINISHING POINT LTD,13/07/2015,"1,408.00"
Customer Services,Revenues,CBAK,Supplies & Services,Printing - External Supplies,TUDOR PRINT & SIGNS,02/07/2015,113.00
Customer Services,Revenues,CBAK,Supplies & Services,Printing - External Supplies,TUDOR PRINT & SIGNS,02/07/2015,112.00
Customer Services,Revenues,CBAK,Supplies & Services,Printing - External Supplies,TUDOR PRINT & SIGNS,02/07/2015,108.00
Customer Services,Revenues,CBAK,Supplies & Services,Printing - External Supplies,TUDOR PRINT & SIGNS,02/07/2015,305.00
Customer Services,Revenues,CBAK,Supplies & Services,Printing - External Supplies,TUDOR PRINT & SIGNS,02/07/2015,625.00
Customer Services,Revenues,CBAK,Supplies & Services,Printing - External Supplies,TUDOR PRINT & SIGNS,21/07/2015,102.00
Customer Services,Revenues,CBAK,Supplies & Services,Printing - External Supplies,TUDOR PRINT & SIGNS,21/07/2015,102.00
Customer Services,Revenues,CBAK,Supplies & Services,Printing - External Supplies,TUDOR PRINT & SIGNS,21/07/2015,123.00
Customer Services,Revenues,CBAK,Supplies & Services,Printing - External Supplies,TUDOR PRINT & SIGNS,21/07/2015,102.00
Customer Services,Revenues,CBAK,Supplies & Services,Printing - Printer costs,XEROX (UK) LTD,30/07/2015,"1,670.00"
Customer Services,Revenues,CBAK,Supplies & Services,Printing - Printer costs,XEROX (UK) LTD,30/07/2015,"3,366.13"
Customer Services,Revenues,COAB,Supplies & Services,Postages- Courier,FREELANCE BUSINESS ASSOCIATES,16/07/2015,330.00
Customer Services,Revenues,COAB,Supplies & Services,Postages- Courier,FREELANCE BUSINESS ASSOCIATES,16/07/2015,330.00
Customer Services,Revenues,COAB,Supplies & Services,Postages,ROYAL MAIL GROUP LTD,16/07/2015,"3,495.00"
Customer Services,Revenues,COAB,Supplies & Services,Postages,ROYAL MAIL GROUP PLC,31/07/2015,"1,291.97"
Customer Services,Revenues,COAB,Supplies & Services,Printing - Print Room,XEROX FINANCE,31/07/2015,"14,096.47"
Customer Services,Revenues,COAC,Supplies & Services,Franking Machines Postage,FRANCOTYP-POSTALIA LTD (POSTAGE),08/07/2015,"3,000.00"
Customer Services,Revenues,COAC,Supplies & Services,Franking Machines Postage,FRANCOTYP-POSTALIA LTD (POSTAGE),23/07/2015,"3,000.00"
Customer Services,Revenues,LRTA,Supplies & Services,Postages- Courier,G FORCE EXPRESS PARCELS LTD,16/07/2015,684.45
Customer Services,Revenues,LRTA,Third Party Payments,Document scanning costs,NORTHGATE PUBLIC SERVICES (UK) LTD,22/07/2015,399.91
Customer Services,Revenues,LRTA,Supplies & Services,Postages,ROYAL MAIL GROUP LTD,07/07/2015,"2,739.81"
Customer Services,Revenues,LRTA,Supplies & Services,Postages,ROYAL MAIL GROUP LTD,08/07/2015,"3,172.85"
Customer Services,Revenues,LRTA,Supplies & Services,Postages,ROYAL MAIL GROUP LTD,27/07/2015,"2,341.15"
Customer Services,Revenues,LRTA,Supplies & Services,Postages,ROYAL MAIL GROUP LTD,30/07/2015,"2,214.91"
Customer Services,Revenues,LRTA,Supplies & Services,Postages,ROYAL MAIL GROUP LTD,20/07/2015,"2,601.90"
Customer Services,Revenues,LRTB,Employees,Staff Training,arvato government services ltd,07/07/2015,250.00
Customer Services,Revenues,LRTB,Third Party Payments,Debt Collection Agent Service,ROSSENDALES LTD,07/07/2015,238.69
Customer Services,Revenues,LRTB,Third Party Payments,Debt Collection Agent Service,ROSSENDALES LTD,22/07/2015,335.00
Customer Services,Revenues,LRTB,Third Party Payments,Debt Collection Agent Service,ROSSENDALES LTD,20/07/2015,"-2,856.00"
Customer Services,Revenues,LRTB,Third Party Payments,Debt Collection Agent Service,ROSSENDALES LTD,23/07/2015,"2,856.00"
Development Business & Employment,Regeneration & Investment,CEAV,commications,telephones,BT,20/07/2015, 60.00 
"Development, Business & Employment","AD - Development, Business & Housing",WCBE,Capital Expenditure,Payments to Contractor,VPS (UK) LTD,16/07/2015,211.35
"Development, Business & Employment",Business & Development Planning,AEAB,Supplies & Services,Marketing & Publicity,Breeze Strategy,24/07/2015,"1,250.00"
"Development, Business & Employment",Business & Development Planning,AEAB,Supplies & Services,Marketing & Publicity,Breeze Strategy,24/07/2015,"1,500.00"
"Development, Business & Employment",Business & Development Planning,AEAB,Supplies & Services,Marketing & Publicity,Elkro Limited,24/07/2015,372.90
"Development, Business & Employment",Business & Development Planning,AEAB,Supplies & Services,Contribution from Balances,IRONBRIDGE GORGE MUSEUM TRUST LTD,24/07/2015,"9,561.00"
"Development, Business & Employment",Business & Development Planning,AEAD,Supplies & Services,Marketing & Publicity,Blossom Media Communications,24/07/2015,450.00
"Development, Business & Employment",Business & Development Planning,AEAD,Supplies & Services,Computer Software (Maint),Conference & Travel Publications,24/07/2015,165.00
"Development, Business & Employment",Business & Development Planning,AEAD,Supplies & Services,Marketing & Publicity,GET SMART,03/07/2015,"1,260.00"
"Development, Business & Employment",Business & Development Planning,AEAD,Supplies & Services,Hospitality,PARK INN TELFORD,03/07/2015,346.67
"Development, Business & Employment",Business & Development Planning,AEAJ,Supplies & Services,Web Services,Bluehub IT Consultants,22/07/2015,"3,024.00"
"Development, Business & Employment",Business & Development Planning,AEAJ,Supplies & Services,Marketing & Publicity,YOUNG ENTERPRISE,22/07/2015,900.00
"Development, Business & Employment",Business & Development Planning,AHAC,Premises-Related Expenditure,Hire Of Rooms,SHROPSHIRE COUNCIL (55636551),14/07/2015,200.00
"Development, Business & Employment",Business & Development Planning,DHAX,Supplies & Services,Subsistence,UNIVERSITY OF WOLVERHAMPTON (80970905),09/07/2015,159.90
"Development, Business & Employment",Business & Development Planning,DHAX,Supplies & Services,Research Surveys,West Midland Economic Forum Limited,24/07/2015,300.00
"Development, Business & Employment",Business & Development Planning,DHBB,Supplies & Services,Other Grants (Expenses),Carillion Energy Services Ltd,03/07/2015,"6,000.00"
"Development, Business & Employment",Business & Development Planning,DHBB,Supplies & Services,Other Grants (Expenses),Carillion Energy Services Ltd,20/07/2015,"11,550.00"
"Development, Business & Employment",Business & Development Planning,EWAJ,Supplies & Services,Research Surveys,EMERGE DESIGN LTD,10/07/2015,893.00
"Development, Business & Employment",Business & Development Planning,EWAJ,Employees,Professional Subs,INST OF ENVIRONMENTAL MGT & ASSESSMENT,09/07/2015,152.00
"Development, Business & Employment",Business & Development Planning,EWAJ,Supplies & Services,Other Services,SITA UK,15/07/2015,"6,239.55"
"Development, Business & Employment",Business & Development Planning,EWAP,Supplies & Services,Advertising,THE MIDLAND NEWS ASSOCIATION LTD,21/07/2015,311.04
"Development, Business & Employment",Business & Development Planning,WDAD,Capital Expenditure,Other Capital Expenditure,Redacted Personal Information,24/07/2015,500.00
"Development, Business & Employment",Business & Development Planning,WDAF,Capital Expenditure,Expenditure on loans & other financial assistance,ADDISON & LANS LTD,03/07/2015,"2,149.00"
"Development, Business & Employment",Business & Development Planning,WDAF,Capital Expenditure,Expenditure on loans & other financial assistance,ADDISON & LANS LTD,22/07/2015,"1,952.00"
"Development, Business & Employment",Business & Development Planning,WDAF,Capital Expenditure,Expenditure on loans & other financial assistance,ADDISON & LANS LTD,20/07/2015,"1,627.50"
"Development, Business & Employment",Business & Development Planning,WDAF,Capital Expenditure,Expenditure on loans & other financial assistance,ADDISON & LANS LTD,21/07/2015,"2,843.08"
"Development, Business & Employment",Business & Development Planning,WDAF,Capital Expenditure,Expenditure on loans & other financial assistance,AIDS & ADAPTIONS LTD,03/07/2015,"4,389.34"
"Development, Business & Employment",Business & Development Planning,WDAF,Capital Expenditure,Expenditure on loans & other financial assistance,AIDS & ADAPTIONS LTD,30/07/2015,"1,990.31"
"Development, Business & Employment",Business & Development Planning,WDAF,Capital Expenditure,Expenditure on loans & other financial assistance,Carillion Energy Services Ltd,20/07/2015,"1,919.12"
"Development, Business & Employment",Business & Development Planning,WDAF,Capital Expenditure,Expenditure on loans & other financial assistance,DMW ENVIRONMENTAL SAFETY LTD,13/07/2015,150.00
"Development, Business & Employment",Business & Development Planning,WDAF,Capital Expenditure,Expenditure on loans & other financial assistance,DMW ENVIRONMENTAL SAFETY LTD,22/07/2015,150.00
"Development, Business & Employment",Business & Development Planning,WDAF,Capital Expenditure,Expenditure on loans & other financial assistance,DMW ENVIRONMENTAL SAFETY LTD,22/07/2015,150.00
"Development, Business & Employment",Business & Development Planning,WDAF,Capital Expenditure,Expenditure on loans & other financial assistance,DMW ENVIRONMENTAL SAFETY LTD,22/07/2015,150.00
"Development, Business & Employment",Business & Development Planning,WDAF,Capital Expenditure,Expenditure on loans & other financial assistance,DMW ENVIRONMENTAL SAFETY LTD,22/07/2015,150.00
"Development, Business & Employment",Business & Development Planning,WDAF,Capital Expenditure,Expenditure on loans & other financial assistance,DMW ENVIRONMENTAL SAFETY LTD,13/07/2015,150.00
"Development, Business & Employment",Business & Development Planning,WDAF,Capital Expenditure,Expenditure on loans & other financial assistance,DMW ENVIRONMENTAL SAFETY LTD,13/07/2015,150.00
"Development, Business & Employment",Business & Development Planning,WDAF,Capital Expenditure,Expenditure on loans & other financial assistance,DMW ENVIRONMENTAL SAFETY LTD,13/07/2015,122.40
"Development, Business & Employment",Business & Development Planning,WDAF,Capital Expenditure,Expenditure on loans & other financial assistance,DMW ENVIRONMENTAL SAFETY LTD,13/07/2015,150.00
"Development, Business & Employment",Business & Development Planning,WDAF,Capital Expenditure,Expenditure on loans & other financial assistance,R E BROWN BUILDERS LIMITED,20/07/2015,"4,188.11"
"Development, Business & Employment",Business & Development Planning,WDAF,Capital Expenditure,Expenditure on loans & other financial assistance,R E BROWN BUILDERS LIMITED,13/07/2015,"1,563.26"
"Development, Business & Employment",Business & Development Planning,WDAF,Capital Expenditure,Expenditure on loans & other financial assistance,Redacted Personal Information,31/07/2015,"8,671.00"
"Development, Business & Employment",Business & Development Planning,WDAF,Capital Expenditure,Expenditure on loans & other financial assistance,Redacted Personal Information,13/07/2015,"4,125.00"
"Development, Business & Employment",Business & Development Planning,WDAF,Capital Expenditure,Expenditure on loans & other financial assistance,ROSEMONT BUILDING CONTRACTORS,21/07/2015,"4,961.80"
"Development, Business & Employment",Business & Development Planning,WDAF,Capital Expenditure,Expenditure on loans & other financial assistance,ROSEMONT BUILDING CONTRACTORS,30/07/2015,"1,745.42"
"Development, Business & Employment",Business & Development Planning,WDAF,Capital Expenditure,Expenditure on loans & other financial assistance,ROSEMONT BUILDING CONTRACTORS,30/07/2015,"3,892.00"
"Development, Business & Employment",Business & Development Planning,WDAF,Capital Expenditure,Expenditure on loans & other financial assistance,ROSEMONT BUILDING CONTRACTORS,03/07/2015,"2,872.10"
"Development, Business & Employment",Business & Development Planning,WDAF,Capital Expenditure,Expenditure on loans & other financial assistance,SEAN BYRNE,09/07/2015,"2,847.50"
"Development, Business & Employment",Business & Development Planning,WDAF,Capital Expenditure,Expenditure on loans & other financial assistance,SEAN BYRNE,03/07/2015,"2,580.00"
"Development, Business & Employment",Business & Development Planning,WDAF,Capital Expenditure,Expenditure on loans & other financial assistance,STANNAH LIFT SERVICES LTD,03/07/2015,"2,165.00"
"Development, Business & Employment",Business & Development Planning,WDAF,Capital Expenditure,Expenditure on loans & other financial assistance,STANNAH LIFT SERVICES LTD,20/07/2015,"1,759.00"
"Development, Business & Employment",Business & Development Planning,WDAF,Capital Expenditure,Expenditure on loans & other financial assistance,STANNAH LIFT SERVICES LTD,21/07/2015,"1,330.55"
"Development, Business & Employment",Business & Development Planning,WDAF,Capital Expenditure,Expenditure on loans & other financial assistance,THE WREKIN HOUSING TRUST (INVOICES ONLY),03/07/2015,837.00
"Development, Business & Employment",Business & Development Planning,WDAF,Capital Expenditure,Expenditure on loans & other financial assistance,THE WREKIN HOUSING TRUST (INVOICES ONLY),03/07/2015,780.00
"Development, Business & Employment",Business & Development Planning,WDAF,Capital Expenditure,Expenditure on loans & other financial assistance,THE WREKIN HOUSING TRUST (INVOICES ONLY),20/07/2015,"1,600.00"
"Development, Business & Employment",Business & Development Planning,WDAF,Capital Expenditure,Expenditure on loans & other financial assistance,THE WREKIN HOUSING TRUST (INVOICES ONLY),20/07/2015,780.00
"Development, Business & Employment",Business & Development Planning,WDAF,Capital Expenditure,Expenditure on loans & other financial assistance,THE WREKIN HOUSING TRUST (INVOICES ONLY),30/07/2015,"1,600.00"
"Development, Business & Employment",Business & Development Planning,WDAK,Employees,Employee Costs Recharged,PARK LANE CENTRE,16/07/2015,"1,155.00"
"Development, Business & Employment",Business & Development Planning,WDGD,Capital Expenditure,Expenditure on loans & other financial assistance,Carillion Energy Services Ltd,03/07/2015,"2,108.41"
"Development, Business & Employment",Business & Development Planning,WDGD,Capital Expenditure,Expenditure on loans & other financial assistance,Carillion Energy Services Ltd,03/07/2015,"3,208.45"
"Development, Business & Employment",Business & Development Planning,WDGD,Capital Expenditure,Expenditure on loans & other financial assistance,Carillion Energy Services Ltd,03/07/2015,"4,950.18"
"Development, Business & Employment",Business & Development Planning,WDGD,Capital Expenditure,Expenditure on loans & other financial assistance,Carillion Energy Services Ltd,03/07/2015,"4,858.51"
"Development, Business & Employment",Business & Development Planning,WDGD,Capital Expenditure,Expenditure on loans & other financial assistance,Carillion Energy Services Ltd,03/07/2015,"1,466.72"
"Development, Business & Employment",Business & Development Planning,WDGD,Capital Expenditure,Expenditure on loans & other financial assistance,Carillion Energy Services Ltd,17/07/2015,"38,696.42"
"Development, Business & Employment",Business & Development Planning,WDSL,Capital Expenditure,Other Capital Expenditure,Sanctuary Affordable Housing ltd (03831868),14/07/2015,"200,000.00"
"Development, Business & Employment",Business & Development Planning,WDST,Capital Expenditure,Fixtures & Fittings & Equipment,A & M Joinery,01/07/2015,"1,560.00"
"Development, Business & Employment",Business & Development Planning,WDST,Capital Expenditure,Payments to Contractor,BUSINESS WATCH GUARDING LIMITED,22/07/2015,587.10
"Development, Business & Employment",Business & Development Planning,WDST,Capital Expenditure,Payments to Contractor,BUSINESS WATCH GUARDING LIMITED,01/07/2015,726.15
"Development, Business & Employment",Business & Development Planning,WDST,Capital Expenditure,Fixtures & Fittings & Equipment,ERIC NEVILLE CATERING SUPPLIES LTD,22/07/2015,679.50
"Development, Business & Employment",Business & Development Planning,WDST,Capital Expenditure,Payments to Contractor,RODEO BULL UK,09/07/2015,150.00
"Development, Business & Employment",Business & Development Planning,WDST,Capital Expenditure,Fixtures & Fittings & Equipment,SPECIALIST COMPUTERS CENTRES PLC,24/07/2015,-586.62
"Development, Business & Employment",Business & Development Planning,WDST,Capital Expenditure,Payments to Contractor,Stella Yardley T/A The Farm on Wheels,22/07/2015,230.00
"Development, Business & Employment",Business & Development Planning,WDSW,Capital Expenditure,Legal Fees,Bond Dickinson LLP,24/07/2015,"1,027.00"
"Development, Business & Employment",Business & Development Planning,WDSW,Capital Expenditure,Legal Fees,GALLAGHERS,08/07/2015,"1,110.00"
"Development, Business & Employment",Business & Development Planning,WDSW,Capital Expenditure,Other Capital Expenditure,NUPLACE LTD,09/07/2015,500000
"Development, Business & Employment",Business & Development Planning,WDSW,Capital Expenditure,External Professional Fees,PRICEWATERHOUSECOOPERS,20/07/2015,"5,000.00"
"Development, Business & Employment",Business & Development Planning,WDSX,Capital Expenditure,Other Capital Expenditure,ROB FINNEY PHOTOGRAPHY,30/07/2015,200.00
"Development, Business & Employment",Development Management,DDAA,Supplies & Services,Other Expenses,SDT ELECTRICAL LTD,02/07/2015,225.00
"Development, Business & Employment",Development Management,DDAA,Employees,Professional Subs,The Association of Building Engineers,24/07/2015,237.00
"Development, Business & Employment",Development Management,DDAC,Supplies & Services,Advertising,THE MIDLAND NEWS ASSOCIATION LTD,02/07/2015,259.20
"Development, Business & Employment",Development Management,DDAC,Supplies & Services,Advertising,THE MIDLAND NEWS ASSOCIATION LTD,17/07/2015,207.36
"Development, Business & Employment",Development Management,DDAC,Supplies & Services,Advertising,THE MIDLAND NEWS ASSOCIATION LTD,28/07/2015,233.28
"Development, Business & Employment",Development Management,DDAD,Premises-Related Expenditure,Planned Repairs,CLEANIT CLEANING SERVICES,27/07/2015,"2,845.00"
"Development, Business & Employment",Development Management,DDAE,Supplies & Services,Advertising,THE MIDLAND NEWS ASSOCIATION LTD,13/07/2015,207.36
"Development, Business & Employment",Development Management,DDAG,Supplies & Services,Subscriptions,HAYMARKET PUBLISHING SERVICES LTD,27/07/2015,"1,159.00"
"Development, Business & Employment",Development Management,DDAG,Supplies & Services,Ordnance Survey And Maps,LANDMARK INFORMATION GROUP LTD,06/07/2015,122.94
"Development, Business & Employment",Development Management,DDAG,Employees,Agency Supply Costs,matchtech,02/07/2015,276.00
"Development, Business & Employment",Development Management,DDAG,Employees,Agency Supply Costs,matchtech,13/07/2015,448.50
"Development, Business & Employment",Development Management,DDAG,Employees,Agency Supply Costs,matchtech,23/07/2015,690.00
"Development, Business & Employment",Development Management,DDAG,Employees,Agency Supply Costs,matchtech,30/07/2015,276.00
"Development, Business & Employment",Development Management,DDAG,Supplies & Services,Print & Data Services (Print Room) - Charges,RESOLUTION DATA MANAGEMENT LTD,23/07/2015,104.58
"Development, Business & Employment",Development Management,DDBD,Supplies & Services,Consultants Fees,MARLOW CONSULTING LTD,24/07/2015,"2,686.00"
"Development, Business & Employment",Property & Design,CAAG,Supplies & Services,Other Expenses,3S PRINT & DISPLAY LIMITED,07/07/2015,150.00
"Development, Business & Employment",Property & Design,CAAG,Supplies & Services,Other Services,JONES & HAMPTON LTD,22/07/2015,"1,403.31"
"Development, Business & Employment",Property & Design,CAAG,Supplies & Services,Printing - Other,STANFORD MARSH FINANCE LTD,23/07/2015,593.30
"Development, Business & Employment",Property & Design,CAAH,Premises-Related Expenditure,R&M -Buildings DLO Charge,A1 Glass & Glazing (Shropshire) Limited,15/07/2015,300.00
"Development, Business & Employment",Property & Design,CAAH,Premises-Related Expenditure,R&M -Buildings DLO Charge,AGS AUTOMATIC DOORS LTD,14/07/2015,190.00
"Development, Business & Employment",Property & Design,CAAH,Premises-Related Expenditure,R&M -Buildings DLO Charge,AGS AUTOMATIC DOORS LTD,24/07/2015,120.00
"Development, Business & Employment",Property & Design,CAAH,Premises-Related Expenditure,R&M -Buildings DLO Charge,ASLES (TOOL HIRE & SALES) LTD,02/07/2015,106.00
"Development, Business & Employment",Property & Design,CAAH,Premises-Related Expenditure,R&M -Buildings DLO Charge,CHRIS BREEZE LTD,14/07/2015,206.09
"Development, Business & Employment",Property & Design,CAAH,Premises-Related Expenditure,R&M -Buildings DLO Charge,CHRIS BREEZE LTD,14/07/2015,254.12
"Development, Business & Employment",Property & Design,CAAH,Premises-Related Expenditure,R&M -Buildings DLO Charge,CHRIS BREEZE LTD,14/07/2015,360.04
"Development, Business & Employment",Property & Design,CAAH,Premises-Related Expenditure,R&M -Buildings DLO Charge,Churches Fire Security Ltd,14/07/2015,169.55
"Development, Business & Employment",Property & Design,CAAH,Premises-Related Expenditure,R&M -Buildings DLO Charge,Churches Fire Security Ltd,14/07/2015,207.00
"Development, Business & Employment",Property & Design,CAAH,Premises-Related Expenditure,R&M -Buildings DLO Charge,Churches Fire Security Ltd,14/07/2015,238.59
"Development, Business & Employment",Property & Design,CAAH,Premises-Related Expenditure,R&M -Buildings DLO Charge,Churches Fire Security Ltd,14/07/2015,240.77
"Development, Business & Employment",Property & Design,CAAH,Premises-Related Expenditure,R&M -Buildings DLO Charge,Churches Fire Security Ltd,14/07/2015,191.57
"Development, Business & Employment",Property & Design,CAAH,Premises-Related Expenditure,R&M -Buildings DLO Charge,Churches Fire Security Ltd,14/07/2015,184.99
"Development, Business & Employment",Property & Design,CAAH,Premises-Related Expenditure,R&M -Buildings DLO Charge,Churches Fire Security Ltd,14/07/2015,375.78
"Development, Business & Employment",Property & Design,CAAH,Premises-Related Expenditure,R&M -Buildings DLO Charge,Churches Fire Security Ltd,14/07/2015,330.37
"Development, Business & Employment",Property & Design,CAAH,Premises-Related Expenditure,R&M -Buildings DLO Charge,Churches Fire Security Ltd,14/07/2015,276.65
"Development, Business & Employment",Property & Design,CAAH,Premises-Related Expenditure,R&M -Buildings DLO Charge,Churches Fire Security Ltd,14/07/2015,203.05
"Development, Business & Employment",Property & Design,CAAH,Premises-Related Expenditure,R&M -Buildings DLO Charge,Churches Fire Security Ltd,16/07/2015,215.08
"Development, Business & Employment",Property & Design,CAAH,Premises-Related Expenditure,R&M -Buildings DLO Charge,Clearstone Solutions Ltd,27/07/2015,108.00
"Development, Business & Employment",Property & Design,CAAH,Premises-Related Expenditure,R&M -Buildings DLO Charge,COOPER & WILLIAMS LTD,02/07/2015,721.55
"Development, Business & Employment",Property & Design,CAAH,Premises-Related Expenditure,R&M -Buildings DLO Charge,COTTAGE BLINDS OF SEDGLEY LTD,23/07/2015,125.00
"Development, Business & Employment",Property & Design,CAAH,Premises-Related Expenditure,R&M -Buildings DLO Charge,G M TREBLE LTD,14/07/2015,150.00
"Development, Business & Employment",Property & Design,CAAH,Premises-Related Expenditure,R&M -Buildings DLO Charge,G M TREBLE LTD,14/07/2015,150.00
"Development, Business & Employment",Property & Design,CAAH,Premises-Related Expenditure,R&M -Buildings DLO Charge,G M TREBLE LTD,14/07/2015,150.00
"Development, Business & Employment",Property & Design,CAAH,Premises-Related Expenditure,R&M -Buildings DLO Charge,G M TREBLE LTD,14/07/2015,150.00
"Development, Business & Employment",Property & Design,CAAH,Premises-Related Expenditure,R&M -Buildings DLO Charge,G M TREBLE LTD,24/07/2015,167.15
"Development, Business & Employment",Property & Design,CAAH,Premises-Related Expenditure,R&M -Buildings DLO Charge,George Birchall Limited,14/07/2015,302.50
"Development, Business & Employment",Property & Design,CAAH,Premises-Related Expenditure,R&M -Buildings DLO Charge,George Birchall Limited,14/07/2015,128.50
"Development, Business & Employment",Property & Design,CAAH,Premises-Related Expenditure,R&M -Buildings DLO Charge,George Birchall Limited,14/07/2015,507.87
"Development, Business & Employment",Property & Design,CAAH,Premises-Related Expenditure,R&M -Buildings DLO Charge,George Birchall Limited,15/07/2015,247.09
"Development, Business & Employment",Property & Design,CAAH,Premises-Related Expenditure,R&M -Buildings DLO Charge,George Birchall Limited,22/07/2015,416.51
"Development, Business & Employment",Property & Design,CAAH,Premises-Related Expenditure,R&M -Buildings DLO Charge,George Birchall Limited,17/07/2015,"3,227.71"
"Development, Business & Employment",Property & Design,CAAH,Premises-Related Expenditure,R&M -Buildings DLO Charge,George Birchall Limited,27/07/2015,204.90
"Development, Business & Employment",Property & Design,CAAH,Premises-Related Expenditure,R&M -Buildings DLO Charge,George Birchall Limited,27/07/2015,163.61
"Development, Business & Employment",Property & Design,CAAH,Premises-Related Expenditure,R&M -Buildings DLO Charge,George Birchall Limited,27/07/2015,219.50
"Development, Business & Employment",Property & Design,CAAH,Premises-Related Expenditure,R&M -Buildings DLO Charge,George Birchall Limited,14/07/2015,247.38
"Development, Business & Employment",Property & Design,CAAH,Premises-Related Expenditure,R&M -Buildings DLO Charge,George Birchall Limited,14/07/2015,101.41
"Development, Business & Employment",Property & Design,CAAH,Premises-Related Expenditure,R&M -Buildings DLO Charge,George Birchall Limited,02/07/2015,281.31
"Development, Business & Employment",Property & Design,CAAH,Premises-Related Expenditure,R&M -Buildings DLO Charge,George Birchall Limited,02/07/2015,128.50
"Development, Business & Employment",Property & Design,CAAH,Premises-Related Expenditure,R&M -Buildings DLO Charge,George Birchall Limited,02/07/2015,"1,388.20"
"Development, Business & Employment",Property & Design,CAAH,Premises-Related Expenditure,R&M -Buildings DLO Charge,George Birchall Limited,15/07/2015,110.78
"Development, Business & Employment",Property & Design,CAAH,Premises-Related Expenditure,R&M -Buildings DLO Charge,GRA-BERN,15/07/2015,170.11
"Development, Business & Employment",Property & Design,CAAH,Premises-Related Expenditure,R&M -Buildings DLO Charge,GRA-BERN,16/07/2015,117.20
"Development, Business & Employment",Property & Design,CAAH,Premises-Related Expenditure,R&M -Buildings DLO Charge,GRA-BERN,16/07/2015,729.90
"Development, Business & Employment",Property & Design,CAAH,Premises-Related Expenditure,R&M -Buildings DLO Charge,GRA-BERN,27/07/2015,125.86
"Development, Business & Employment",Property & Design,CAAH,Premises-Related Expenditure,R&M -Buildings DLO Charge,JCE & SONS LTD,02/07/2015,246.90
"Development, Business & Employment",Property & Design,CAAH,Premises-Related Expenditure,R&M -Buildings DLO Charge,JCE & SONS LTD,02/07/2015,113.38
"Development, Business & Employment",Property & Design,CAAH,Premises-Related Expenditure,R&M -Buildings DLO Charge,JCE & SONS LTD,02/07/2015,244.21
"Development, Business & Employment",Property & Design,CAAH,Premises-Related Expenditure,R&M -Buildings DLO Charge,JCE & SONS LTD,22/07/2015,176.25
"Development, Business & Employment",Property & Design,CAAH,Premises-Related Expenditure,R&M -Buildings DLO Charge,JCE & SONS LTD,16/07/2015,536.00
"Development, Business & Employment",Property & Design,CAAH,Premises-Related Expenditure,R&M -Buildings DLO Charge,JCE & SONS LTD,16/07/2015,581.30
"Development, Business & Employment",Property & Design,CAAH,Premises-Related Expenditure,R&M -Buildings DLO Charge,JCE & SONS LTD,16/07/2015,"1,312.80"
"Development, Business & Employment",Property & Design,CAAH,Premises-Related Expenditure,R&M -Buildings DLO Charge,JCE & SONS LTD,23/07/2015,118.59
"Development, Business & Employment",Property & Design,CAAH,Premises-Related Expenditure,R&M -Buildings DLO Charge,JCE & SONS LTD,23/07/2015,176.35
"Development, Business & Employment",Property & Design,CAAH,Premises-Related Expenditure,R&M -Buildings DLO Charge,JCE & SONS LTD,15/07/2015,128.38
"Development, Business & Employment",Property & Design,CAAH,Premises-Related Expenditure,R&M -Buildings DLO Charge,JONES & HAMPTON LTD,03/07/2015,123.18
"Development, Business & Employment",Property & Design,CAAH,Premises-Related Expenditure,R&M -Buildings DLO Charge,PP ELECTRICAL SERVICES (Shropshire) Ltd,14/07/2015,210.00
"Development, Business & Employment",Property & Design,CAAH,Premises-Related Expenditure,R&M -Buildings DLO Charge,PP ELECTRICAL SERVICES (Shropshire) Ltd,02/07/2015,"3,100.00"
"Development, Business & Employment",Property & Design,CAAH,Premises-Related Expenditure,R&M -Buildings DLO Charge,PP ELECTRICAL SERVICES (Shropshire) Ltd,27/07/2015,118.60
"Development, Business & Employment",Property & Design,CAAH,Premises-Related Expenditure,R&M -Buildings DLO Charge,PP ELECTRICAL SERVICES (Shropshire) Ltd,27/07/2015,178.80
"Development, Business & Employment",Property & Design,CAAH,Premises-Related Expenditure,R&M -Buildings DLO Charge,PP ELECTRICAL SERVICES (Shropshire) Ltd,27/07/2015,100.50
"Development, Business & Employment",Property & Design,CAAH,Premises-Related Expenditure,R&M -Buildings DLO Charge,PROKILL UK LIMITED,02/07/2015,150.00
"Development, Business & Employment",Property & Design,CAAH,Premises-Related Expenditure,R&M -Buildings DLO Charge,PROKILL UK LIMITED,02/07/2015,165.00
"Development, Business & Employment",Property & Design,CAAH,Premises-Related Expenditure,R&M -Buildings DLO Charge,PROKILL UK LIMITED,03/07/2015,200.00
"Development, Business & Employment",Property & Design,CAAH,Premises-Related Expenditure,R&M -Buildings DLO Charge,PROKILL UK LIMITED,23/07/2015,150.00
"Development, Business & Employment",Property & Design,CAAH,Premises-Related Expenditure,R&M -Buildings DLO Charge,RCS ROOFING CONSTRUCTION SERVICES LTD,27/07/2015,175.99
"Development, Business & Employment",Property & Design,CAAH,Premises-Related Expenditure,R&M -Buildings DLO Charge,RCS ROOFING CONSTRUCTION SERVICES LTD,27/07/2015,148.60
"Development, Business & Employment",Property & Design,CAAH,Premises-Related Expenditure,R&M -Buildings DLO Charge,RCS ROOFING CONSTRUCTION SERVICES LTD,27/07/2015,126.93
"Development, Business & Employment",Property & Design,CAAH,Premises-Related Expenditure,R&M -Buildings DLO Charge,RCS ROOFING CONSTRUCTION SERVICES LTD,27/07/2015,325.84
"Development, Business & Employment",Property & Design,CAAH,Premises-Related Expenditure,R&M -Buildings DLO Charge,SDT ELECTRICAL LTD,27/07/2015,225.00
"Development, Business & Employment",Property & Design,CAAH,Premises-Related Expenditure,R&M -Buildings DLO Charge,SDT ELECTRICAL LTD,27/07/2015,181.00
"Development, Business & Employment",Property & Design,CAAH,Premises-Related Expenditure,R&M -Buildings DLO Charge,SECURITY WISE LTD,14/07/2015,377.00
"Development, Business & Employment",Property & Design,CAAH,Premises-Related Expenditure,R&M -Buildings DLO Charge,SECURITY WISE LTD,03/07/2015,125.00
"Development, Business & Employment",Property & Design,CAAH,Premises-Related Expenditure,R&M -Buildings DLO Charge,SECURITY WISE LTD,23/07/2015,180.00
"Development, Business & Employment",Property & Design,CAAH,Premises-Related Expenditure,R&M -Buildings DLO Charge,SECURITY WISE LTD,23/07/2015,116.00
"Development, Business & Employment",Property & Design,CAAH,Premises-Related Expenditure,R&M -Buildings DLO Charge,SECURITY WISE LTD,24/07/2015,135.00
"Development, Business & Employment",Property & Design,CAAH,Premises-Related Expenditure,R&M -Buildings DLO Charge,SECURITY WISE LTD,24/07/2015,101.00
"Development, Business & Employment",Property & Design,CAAH,Premises-Related Expenditure,R&M -Buildings DLO Charge,SHROPSHIRE BLINDS & AWNINGS LIMITED,23/07/2015,338.50
"Development, Business & Employment",Property & Design,CAAH,Premises-Related Expenditure,R&M -Buildings DLO Charge,THOMAS CONSULTING,02/07/2015,683.40
"Development, Business & Employment",Property & Design,CAAH,Premises-Related Expenditure,R&M -Buildings DLO Charge,WREKIN DRAIN SERVICES LTD,16/07/2015,180.00
"Development, Business & Employment",Property & Design,COAE,Premises-Related Expenditure,Service Contracts,AGS AUTOMATIC DOORS LTD,24/07/2015,120.00
"Development, Business & Employment",Property & Design,COAE,Premises-Related Expenditure,Electricity,BRITISH GAS BUSINESS (52464055),21/07/2015,"1,264.34"
"Development, Business & Employment",Property & Design,COAE,Premises-Related Expenditure,Gas,Corona Energy,27/07/2015,360.96
"Development, Business & Employment",Property & Design,COAE,Premises-Related Expenditure,Gas,Corona Energy,27/07/2015,788.10
"Development, Business & Employment",Property & Design,COAE,Premises-Related Expenditure,Gas,Corona Energy,28/07/2015,"1,167.24"
"Development, Business & Employment",Property & Design,COAE,Premises-Related Expenditure,Gas,Corona Energy,28/07/2015,"1,465.72"
"Development, Business & Employment",Property & Design,COAE,Premises-Related Expenditure,Gas,Corona Energy,28/07/2015,"1,661.10"
"Development, Business & Employment",Property & Design,COAE,Premises-Related Expenditure,Gas,Corona Energy,28/07/2015,"2,832.47"
"Development, Business & Employment",Property & Design,COAE,Premises-Related Expenditure,Gas,Corona Energy,28/07/2015,"1,010.93"
"Development, Business & Employment",Property & Design,COAE,Premises-Related Expenditure,Gas,Corona Energy,28/07/2015,127.72
"Development, Business & Employment",Property & Design,COAE,Premises-Related Expenditure,Trade Refuse,FCC Recycling (UK) Ltd (39521486),23/07/2015,"-1,005.02"
"Development, Business & Employment",Property & Design,COAE,Premises-Related Expenditure,Trade Refuse,FCC Recycling (UK) Ltd (39521486),16/07/2015,416.26
"Development, Business & Employment",Property & Design,COAE,Premises-Related Expenditure,Trade Refuse,FCC Recycling (UK) Ltd (39521486),23/07/2015,"1,685.84"
"Development, Business & Employment",Property & Design,COAE,Premises-Related Expenditure,R&M -Buildings DLO Charge,JCE & SONS LTD,22/07/2015,432.33
"Development, Business & Employment",Property & Design,COAE,Premises-Related Expenditure,R&M -Buildings DLO Charge,JCE & SONS LTD,23/07/2015,240.47
"Development, Business & Employment",Property & Design,COAE,Premises-Related Expenditure,R&M -Buildings DLO Charge,JCE & SONS LTD,23/07/2015,121.59
"Development, Business & Employment",Property & Design,COAE,Premises-Related Expenditure,R&M -Buildings DLO Charge,Lift Source (UK) Limited,16/07/2015,350.00
"Development, Business & Employment",Property & Design,COAE,Premises-Related Expenditure,Service Contracts,SECURITY WISE LTD,24/07/2015,120.00
"Development, Business & Employment",Property & Design,COAE,Premises-Related Expenditure,Water Rates,SEVERN TRENT WATER LTD,15/07/2015,"2,287.93"
"Development, Business & Employment",Property & Design,COAE,Premises-Related Expenditure,Gas,West Mercia Energy (WME),15/07/2015,"-1,017.78"
"Development, Business & Employment",Property & Design,COAE,Premises-Related Expenditure,Electricity,West Mercia Energy (WME),17/07/2015,148.35
"Development, Business & Employment",Property & Design,COAE,Premises-Related Expenditure,Electricity,West Mercia Energy (WME),17/07/2015,111.10
"Development, Business & Employment",Property & Design,COAE,Premises-Related Expenditure,Electricity,West Mercia Energy (WME),17/07/2015,161.63
"Development, Business & Employment",Property & Design,COAE,Premises-Related Expenditure,Gas,West Mercia Energy (WME),31/07/2015,148.19
"Development, Business & Employment",Property & Design,COAE,Premises-Related Expenditure,Gas,West Mercia Energy (WME),31/07/2015,505.21
"Development, Business & Employment",Property & Design,COAE,Premises-Related Expenditure,Gas,West Mercia Energy (WME),31/07/2015,178.95
"Development, Business & Employment",Property & Design,COAE,Premises-Related Expenditure,Electricity,West Mercia Energy (WME),17/07/2015,"1,019.92"
"Development, Business & Employment",Property & Design,COAE,Premises-Related Expenditure,Electricity,West Mercia Energy (WME),17/07/2015,"-1,280.51"
"Development, Business & Employment",Property & Design,COAE,Premises-Related Expenditure,Electricity,West Mercia Energy (WME),17/07/2015,"1,171.41"
"Development, Business & Employment",Property & Design,COAE,Premises-Related Expenditure,Electricity,West Mercia Energy (WME),17/07/2015,152.27
"Development, Business & Employment",Property & Design,COAE,Premises-Related Expenditure,Electricity,West Mercia Energy (WME),17/07/2015,126.70
"Development, Business & Employment",Property & Design,COAE,Premises-Related Expenditure,Electricity,West Mercia Energy (WME),17/07/2015,206.03
"Development, Business & Employment",Property & Design,COAE,Premises-Related Expenditure,Electricity,West Mercia Energy (WME),10/07/2015,"2,561.22"
"Development, Business & Employment",Property & Design,COAE,Premises-Related Expenditure,Gas,West Mercia Energy (WME),10/07/2015,557.78
"Development, Business & Employment",Property & Design,COAE,Premises-Related Expenditure,Gas,West Mercia Energy (WME),10/07/2015,341.85
"Development, Business & Employment",Property & Design,COAE,Premises-Related Expenditure,Gas,West Mercia Energy (WME),15/07/2015,"1,118.87"
"Development, Business & Employment",Property & Design,COAE,Premises-Related Expenditure,Gas,West Mercia Energy (WME),15/07/2015,332.25
"Development, Business & Employment",Property & Design,COAE,Premises-Related Expenditure,Electricity,West Mercia Energy (WME),17/07/2015,"1,204.67"
"Development, Business & Employment",Property & Design,COAE,Premises-Related Expenditure,Electricity,West Mercia Energy (WME),10/07/2015,816.24
"Development, Business & Employment",Property & Design,COAG,Premises-Related Expenditure,R&M -Buildings DLO Charge,BRADLEY INDUSTRIAL SERVICES,07/07/2015,273.45
"Development, Business & Employment",Property & Design,COAG,Premises-Related Expenditure,R&M -Buildings DLO Charge,BRADLEY INDUSTRIAL SERVICES,17/07/2015,240.74
"Development, Business & Employment",Property & Design,COAG,Premises-Related Expenditure,Service Contracts,Churches Fire Security Ltd,14/07/2015,205.38
"Development, Business & Employment",Property & Design,COAG,Premises-Related Expenditure,R&M -Buildings DLO Charge,COOL SERVICES LTD,02/07/2015,108.10
"Development, Business & Employment",Property & Design,COAG,Premises-Related Expenditure,R&M -Buildings DLO Charge,COOL SERVICES LTD,24/07/2015,118.40
"Development, Business & Employment",Property & Design,COAG,Premises-Related Expenditure,R&M -Buildings DLO Charge,George Birchall Limited,06/07/2015,531.72
"Development, Business & Employment",Property & Design,COAG,Premises-Related Expenditure,Service Contracts,George Birchall Limited,14/07/2015,198.00
"Development, Business & Employment",Property & Design,COAG,Premises-Related Expenditure,R&M -Buildings DLO Charge,George Birchall Limited,14/07/2015,"2,176.51"
"Development, Business & Employment",Property & Design,COAG,Premises-Related Expenditure,R&M -Buildings DLO Charge,George Birchall Limited,22/07/2015,121.85
"Development, Business & Employment",Property & Design,COAG,Premises-Related Expenditure,R&M -Buildings DLO Charge,George Birchall Limited,22/07/2015,270.95
"Development, Business & Employment",Property & Design,COAG,Premises-Related Expenditure,R&M -Buildings DLO Charge,JCE & SONS LTD,15/07/2015,269.66
"Development, Business & Employment",Property & Design,COAG,Premises-Related Expenditure,R&M -Buildings DLO Charge,JCE & SONS LTD,22/07/2015,251.60
"Development, Business & Employment",Property & Design,COAG,Premises-Related Expenditure,R&M -Buildings DLO Charge,JCE & SONS LTD,22/07/2015,250.75
"Development, Business & Employment",Property & Design,COAG,Premises-Related Expenditure,R&M -Buildings DLO Charge,JCE & SONS LTD,15/07/2015,"7,000.00"
"Development, Business & Employment",Property & Design,COAG,Premises-Related Expenditure,R&M -Buildings DLO Charge,JCE & SONS LTD,15/07/2015,112.25
"Development, Business & Employment",Property & Design,COAG,Premises-Related Expenditure,R&M -Buildings DLO Charge,JCE & SONS LTD,15/07/2015,118.50
"Development, Business & Employment",Property & Design,COAG,Premises-Related Expenditure,R&M -Buildings DLO Charge,JCE & SONS LTD,15/07/2015,110.96
"Development, Business & Employment",Property & Design,COAG,Premises-Related Expenditure,R&M -Buildings DLO Charge,THOMAS CONSULTING,01/07/2015,687.00
"Development, Business & Employment",Property & Design,COAG,Premises-Related Expenditure,R&M -Buildings DLO Charge,THOMAS CONSULTING,22/07/2015,"1,144.20"
"Development, Business & Employment",Property & Design,COAG,Premises-Related Expenditure,R&M -Buildings DLO Charge,THOMAS CONSULTING,01/07/2015,683.40
"Development, Business & Employment",Property & Design,COAG,Premises-Related Expenditure,R&M -Buildings DLO Charge,THOMAS CONSULTING,01/07/2015,908.40
"Development, Business & Employment",Property & Design,COAG,Premises-Related Expenditure,R&M -Buildings DLO Charge,THOMAS CONSULTING,01/07/2015,907.20
"Development, Business & Employment",Property & Design,COAG,Premises-Related Expenditure,R&M -Buildings DLO Charge,THOMAS CONSULTING,01/07/2015,463.20
"Development, Business & Employment",Property & Design,COAG,Premises-Related Expenditure,R&M -Buildings DLO Charge,THOMAS CONSULTING,01/07/2015,907.20
"Development, Business & Employment",Property & Design,COAG,Premises-Related Expenditure,R&M -Buildings DLO Charge,THOMAS CONSULTING,01/07/2015,682.20
"Development, Business & Employment",Property & Design,COAK,Premises-Related Expenditure,R&M -Buildings DLO Charge,A1 Glass & Glazing (Shropshire) Limited,02/07/2015,245.00
"Development, Business & Employment",Property & Design,COAK,Premises-Related Expenditure,Leasehold Rents,CHURCHILL PL LIMITED,15/07/2015,385.50
"Development, Business & Employment",Property & Design,COAK,Premises-Related Expenditure,Leasehold Rents,CHURCHILL PL LIMITED,15/07/2015,420.60
"Development, Business & Employment",Property & Design,COAK,Premises-Related Expenditure,Leasehold Rents,CHURCHILL PL LIMITED,15/07/2015,431.10
"Development, Business & Employment",Property & Design,COAK,Premises-Related Expenditure,Leasehold Rents,CHURCHILL PL LIMITED,28/07/2015,420.6
"Development, Business & Employment",Property & Design,COAK,Premises-Related Expenditure,Leasehold Rents,CHURCHILL PL LIMITED,28/07/2015,420.6
"Development, Business & Employment",Property & Design,COAK,Premises-Related Expenditure,Leasehold Rents,CHURCHILL PL LIMITED,28/07/2015,420.6
"Development, Business & Employment",Property & Design,COAK,Premises-Related Expenditure,Electricity,E.ON (36166103),09/07/2015,204.02
"Development, Business & Employment",Property & Design,COAK,Premises-Related Expenditure,Electricity,E.ON (36166103),14/07/2015,135.49
"Development, Business & Employment",Property & Design,COAK,Premises-Related Expenditure,R&M -Buildings DLO Charge,George Birchall Limited,16/07/2015,101.33
"Development, Business & Employment",Property & Design,COAK,Premises-Related Expenditure,R&M -Buildings DLO Charge,George Birchall Limited,28/07/2015,161.00
"Development, Business & Employment",Property & Design,COAK,Premises-Related Expenditure,R&M -Buildings DLO Charge,George Birchall Limited,28/07/2015,136.47
"Development, Business & Employment",Property & Design,COAK,Premises-Related Expenditure,R&M -Buildings DLO Charge,JCE & SONS LTD,23/07/2015,171.56
"Development, Business & Employment",Property & Design,COAK,Premises-Related Expenditure,R&M -Buildings DLO Charge,JCE & SONS LTD,23/07/2015,431.01
"Development, Business & Employment",Property & Design,COAK,Premises-Related Expenditure,Vandal Damage,JONES & HAMPTON LTD,23/07/2015,549.83
"Development, Business & Employment",Property & Design,COAK,Premises-Related Expenditure,General Rents,KEY ANGELS LTD,06/07/2015,455.00
"Development, Business & Employment",Property & Design,COAK,Premises-Related Expenditure,General Rents,KEY ANGELS LTD,06/07/2015,400.00
"Development, Business & Employment",Property & Design,COAK,Premises-Related Expenditure,General Rents,KEY ANGELS LTD,06/07/2015,400.00
"Development, Business & Employment",Property & Design,COAK,Premises-Related Expenditure,General Rents,KEY ANGELS LTD,06/07/2015,400.00
"Development, Business & Employment",Property & Design,COAK,Premises-Related Expenditure,Leasehold Rents,Redacted Personal Information,06/07/2015,472.50
"Development, Business & Employment",Property & Design,COAK,Premises-Related Expenditure,General Rents,Redacted Personal Information,06/07/2015,450.00
"Development, Business & Employment",Property & Design,COAK,Premises-Related Expenditure,Leasehold Rents,Redacted Personal Information,06/07/2015,500.00
"Development, Business & Employment",Property & Design,COAK,Premises-Related Expenditure,Leasehold Rents,Redacted Personal Information,13/07/2015,378.54
"Development, Business & Employment",Property & Design,COAK,Premises-Related Expenditure,Electricity,SCOTTISH & SOUTHERN ENERGY,14/07/2015,211.79
"Development, Business & Employment",Property & Design,COAK,Premises-Related Expenditure,Gas,SCOTTISH & SOUTHERN ENERGY,23/07/2015,604.78
"Development, Business & Employment",Property & Design,COAK,Premises-Related Expenditure,R&M -Buildings DLO Charge,SECURITY WISE LTD,14/07/2015,224.00
"Development, Business & Employment",Property & Design,COAK,Premises-Related Expenditure,R&M -Buildings DLO Charge,SECURITY WISE LTD,16/07/2015,220.00
"Development, Business & Employment",Property & Design,COAK,Premises-Related Expenditure,Water Rates,SEVERN TRENT WATER LTD,14/07/2015,105.53
"Development, Business & Employment",Property & Design,COAK,Premises-Related Expenditure,Water Rates,SEVERN TRENT WATER LTD,14/07/2015,120.13
"Development, Business & Employment",Property & Design,COAK,Premises-Related Expenditure,Water Rates,SEVERN TRENT WATER LTD,14/07/2015,212.52
"Development, Business & Employment",Property & Design,COAK,Premises-Related Expenditure,Water Rates,SEVERN TRENT WATER LTD,14/07/2015,360.03
"Development, Business & Employment",Property & Design,COAK,Premises-Related Expenditure,Leasehold Rents,W J WIGLEY-SMITH,15/07/2015,452.65
"Development, Business & Employment",Property & Design,COAK,Premises-Related Expenditure,Gas,West Mercia Energy (WME),31/07/2015,354.64
"Development, Business & Employment",Property & Design,COAK,Premises-Related Expenditure,Electricity,West Mercia Energy (WME),17/07/2015,334.85
"Development, Business & Employment",Property & Design,COAK,Premises-Related Expenditure,Electricity,West Mercia Energy (WME),17/07/2015,109.40
"Development, Business & Employment",Property & Design,COAP,Premises-Related Expenditure,R&M -Buildings DLO Charge,A1 Glass & Glazing (Shropshire) Limited,27/07/2015,375.00
"Development, Business & Employment",Property & Design,COAP,Premises-Related Expenditure,R&M -Buildings DLO Charge,ADT FIRE & SECURITY PLC,02/07/2015,627.37
"Development, Business & Employment",Property & Design,COAP,Premises-Related Expenditure,R&M -Buildings DLO Charge,AGS AUTOMATIC DOORS LTD,15/07/2015,160.00
"Development, Business & Employment",Property & Design,COAP,Premises-Related Expenditure,R&M -Buildings DLO Charge,AGS AUTOMATIC DOORS LTD,16/07/2015,192.00
"Development, Business & Employment",Property & Design,COAP,Premises-Related Expenditure,R&M -Buildings DLO Charge,AGS AUTOMATIC DOORS LTD,23/07/2015,495.00
"Development, Business & Employment",Property & Design,COAP,Premises-Related Expenditure,R&M -Buildings DLO Charge,AGS AUTOMATIC DOORS LTD,21/07/2015,216.00
"Development, Business & Employment",Property & Design,COAP,Premises-Related Expenditure,Service Contracts,AGS AUTOMATIC DOORS LTD,14/07/2015,120.00
"Development, Business & Employment",Property & Design,COAP,Premises-Related Expenditure,Service Contracts,AGS AUTOMATIC DOORS LTD,24/07/2015,670.00
"Development, Business & Employment",Property & Design,COAP,Premises-Related Expenditure,Service Contracts,AGS AUTOMATIC DOORS LTD,24/07/2015,170.00
"Development, Business & Employment",Property & Design,COAP,Premises-Related Expenditure,R&M -Buildings DLO Charge,ARJOHUNTLEIGH UK,24/07/2015,220.54
"Development, Business & Employment",Property & Design,COAP,Premises-Related Expenditure,Service Contracts,ARJOHUNTLEIGH UK,24/07/2015,164.00
"Development, Business & Employment",Property & Design,COAP,Premises-Related Expenditure,Service Contracts,Automated building & energy controls,24/07/2015,840.00
"Development, Business & Employment",Property & Design,COAP,Premises-Related Expenditure,R&M -Buildings DLO Charge,BRADLEY INDUSTRIAL SERVICES,09/07/2015,219.77
"Development, Business & Employment",Property & Design,COAP,Supplies & Services,Telephones,BRITISH TELECOMMUNICATIONS PLC,27/07/2015,139.74
"Development, Business & Employment",Property & Design,COAP,Supplies & Services,Security Services,BUSINESS WATCH GUARDING LIMITED,15/07/2015,346.52
"Development, Business & Employment",Property & Design,COAP,Supplies & Services,Security Services,BUSINESS WATCH GUARDING LIMITED,16/07/2015,592.60
"Development, Business & Employment",Property & Design,COAP,Supplies & Services,Security Services,BUSINESS WATCH GUARDING LIMITED,03/07/2015,106.35
"Development, Business & Employment",Property & Design,COAP,Premises-Related Expenditure,Service Contracts,CHRIS BREEZE LTD,14/07/2015,187.11
"Development, Business & Employment",Property & Design,COAP,Premises-Related Expenditure,Service Contracts,Churches Fire Security Ltd,15/07/2015,109.54
"Development, Business & Employment",Property & Design,COAP,Premises-Related Expenditure,Service Contracts,Churches Fire Security Ltd,16/07/2015,216.99
"Development, Business & Employment",Property & Design,COAP,Premises-Related Expenditure,Service Contracts,Churches Fire Security Ltd,16/07/2015,107.00
"Development, Business & Employment",Property & Design,COAP,Premises-Related Expenditure,Service Contracts,Churches Fire Security Ltd,16/07/2015,198.28
"Development, Business & Employment",Property & Design,COAP,Premises-Related Expenditure,Contract Cleaning,CLEANIT CLEANING SERVICES,24/07/2015,677.00
"Development, Business & Employment",Property & Design,COAP,Premises-Related Expenditure,Contract Cleaning,CLEANIT CLEANING SERVICES,24/07/2015,677.00
"Development, Business & Employment",Property & Design,COAP,Premises-Related Expenditure,R&M -Buildings DLO Charge,COOL SERVICES LTD,24/07/2015,154.20
"Development, Business & Employment",Property & Design,COAP,Premises-Related Expenditure,Service Contracts,COOL SERVICES LTD,15/07/2015,235.40
"Development, Business & Employment",Property & Design,COAP,Supplies & Services,Security Services,DTZ CLIENT ACC RE:COMMON RECEIPTS NAT,16/07/2015,"4,500.00"
"Development, Business & Employment",Property & Design,COAP,Premises-Related Expenditure,Clean Mats & Toilet Requisites,FCC Recycling (UK) Ltd (39521486),21/07/2015,421.46
"Development, Business & Employment",Property & Design,COAP,Premises-Related Expenditure,Trade Refuse,FCC Recycling (UK) Ltd (39521486),15/07/2015,781.56
"Development, Business & Employment",Property & Design,COAP,Premises-Related Expenditure,Trade Refuse,FCC Recycling (UK) Ltd (39521486),15/07/2015,267.54
"Development, Business & Employment",Property & Design,COAP,Premises-Related Expenditure,Trade Refuse,FCC Recycling (UK) Ltd (39521486),24/07/2015,119.92
"Development, Business & Employment",Property & Design,COAP,Premises-Related Expenditure,Trade Refuse,FCC Recycling (UK) Ltd (39521486),15/07/2015,119.92
"Development, Business & Employment",Property & Design,COAP,Premises-Related Expenditure,Trade Refuse,FCC Recycling (UK) Ltd (39521486),22/07/2015,228.41
"Development, Business & Employment",Property & Design,COAP,Premises-Related Expenditure,Trade Refuse,FCC Recycling (UK) Ltd (39521486),23/07/2015,187.32
"Development, Business & Employment",Property & Design,COAP,Premises-Related Expenditure,Trade Refuse,FCC Recycling (UK) Ltd (39521486),23/07/2015,437.07
"Development, Business & Employment",Property & Design,COAP,Premises-Related Expenditure,Trade Refuse,FCC Recycling (UK) Ltd (39521486),24/07/2015,131.43
"Development, Business & Employment",Property & Design,COAP,Premises-Related Expenditure,Trade Refuse,FCC Recycling (UK) Ltd (39521486),24/07/2015,131.43
"Development, Business & Employment",Property & Design,COAP,Premises-Related Expenditure,R&M -Buildings DLO Charge,George Birchall Limited,16/07/2015,105.00
"Development, Business & Employment",Property & Design,COAP,Premises-Related Expenditure,R&M -Buildings DLO Charge,George Birchall Limited,27/07/2015,233.14
"Development, Business & Employment",Property & Design,COAP,Premises-Related Expenditure,R&M -Buildings DLO Charge,George Birchall Limited,27/07/2015,195.42
"Development, Business & Employment",Property & Design,COAP,Premises-Related Expenditure,Service Contracts,George Birchall Limited,02/07/2015,187.00
"Development, Business & Employment",Property & Design,COAP,Premises-Related Expenditure,Service Contracts,George Birchall Limited,15/07/2015,131.50
"Development, Business & Employment",Property & Design,COAP,Premises-Related Expenditure,Service Contracts,George Birchall Limited,27/07/2015,494.00
"Development, Business & Employment",Property & Design,COAP,Premises-Related Expenditure,R&M -Buildings DLO Charge,George Birchall Limited,02/07/2015,326.46
"Development, Business & Employment",Property & Design,COAP,Premises-Related Expenditure,R&M -Buildings DLO Charge,GRA-BERN,27/07/2015,438.70
"Development, Business & Employment",Property & Design,COAP,Premises-Related Expenditure,R&M -Buildings DLO Charge,GRANVILLE CONSTRUCTION & MAINTENANCE LTD,09/07/2015,568.00
"Development, Business & Employment",Property & Design,COAP,Premises-Related Expenditure,R&M -Buildings DLO Charge,GRANVILLE CONSTRUCTION & MAINTENANCE LTD,09/07/2015,"2,021.16"
"Development, Business & Employment",Property & Design,COAP,Premises-Related Expenditure,R&M -Buildings DLO Charge,HANOVIA LIMITED,21/07/2015,888.25
"Development, Business & Employment",Property & Design,COAP,Premises-Related Expenditure,Service Contracts,HYDRO-TECH ENVIRONMENTAL LLP,24/07/2015,125.00
"Development, Business & Employment",Property & Design,COAP,Premises-Related Expenditure,Service Contracts,HYDRO-TECH ENVIRONMENTAL LLP,24/07/2015,240.00
"Development, Business & Employment",Property & Design,COAP,Premises-Related Expenditure,R&M -Buildings DLO Charge,J.A.K. WATER SYSTEMS LTD,16/07/2015,"2,760.00"
"Development, Business & Employment",Property & Design,COAP,Premises-Related Expenditure,R&M -Buildings DLO Charge,JCE & SONS LTD,16/07/2015,106.76
"Development, Business & Employment",Property & Design,COAP,Premises-Related Expenditure,R&M -Buildings DLO Charge,JCE & SONS LTD,20/07/2015,900.59
"Development, Business & Employment",Property & Design,COAP,Premises-Related Expenditure,R&M -Buildings DLO Charge,JCE & SONS LTD,02/07/2015,"1,431.67"
"Development, Business & Employment",Property & Design,COAP,Premises-Related Expenditure,R&M -Buildings DLO Charge,JCE & SONS LTD,02/07/2015,443.60
"Development, Business & Employment",Property & Design,COAP,Premises-Related Expenditure,R&M -Buildings DLO Charge,JCE & SONS LTD,02/07/2015,242.64
"Development, Business & Employment",Property & Design,COAP,Premises-Related Expenditure,R&M -Buildings DLO Charge,JCE & SONS LTD,15/07/2015,140.42
"Development, Business & Employment",Property & Design,COAP,Premises-Related Expenditure,R&M -Buildings DLO Charge,JCE & SONS LTD,22/07/2015,289.62
"Development, Business & Employment",Property & Design,COAP,Premises-Related Expenditure,R&M -Buildings DLO Charge,JCE & SONS LTD,22/07/2015,382.59
"Development, Business & Employment",Property & Design,COAP,Premises-Related Expenditure,R&M -Buildings DLO Charge,JOHNSON CONTROLS LTD,24/07/2015,215.00
"Development, Business & Employment",Property & Design,COAP,Premises-Related Expenditure,R&M -Buildings DLO Charge,JONES & HAMPTON LTD,06/07/2015,208.33
"Development, Business & Employment",Property & Design,COAP,Premises-Related Expenditure,R&M -Buildings DLO Charge,JONES & HAMPTON LTD,20/07/2015,111.08
"Development, Business & Employment",Property & Design,COAP,Premises-Related Expenditure,R&M -Buildings DLO Charge,JONES & HAMPTON LTD,20/07/2015,590.68
"Development, Business & Employment",Property & Design,COAP,Supplies & Services,Security Services,LEISURE SEC PLC,14/07/2015,255.00
"Development, Business & Employment",Property & Design,COAP,Supplies & Services,Security Services,LEISURE SEC PLC,14/07/2015,255.00
"Development, Business & Employment",Property & Design,COAP,Supplies & Services,Security Services,LEISURE SEC PLC,15/07/2015,255.00
"Development, Business & Employment",Property & Design,COAP,Supplies & Services,Security Services,LEISURE SEC PLC,24/07/2015,255.00
"Development, Business & Employment",Property & Design,COAP,Supplies & Services,Security Services,LEISURE SEC PLC,24/07/2015,255.00
"Development, Business & Employment",Property & Design,COAP,Premises-Related Expenditure,R&M -Buildings DLO Charge,Lift Source (UK) Limited,16/07/2015,130.00
